Workbook

Sheet Instructions
C2: Guide to the PDGA Tour International Event Report
C3: =CONCATENATE("Version ",Cover!A1) -> Version 16.3
C4: Dear PDGA Tournament Director,
C6: Thanks for directing a PDGA Tour Event! The TD report has been updated to M/S Excel 2007+
C7: and serves as a key component of the PDGA's database system in M/S Access. All TDs are expected
C8: to use this tool and to return their completed event report to the PDGA by email as an attached
C9: file as soon as possible. This will speed the processing of your event including the posting of official
C10: results at www.pdga.com, and the calculation of player statistics including ratings.
B12: Instructions: | C12: The presentation of the report is similar to previous years. Please begin by filling in the Division Codes | E12: NOTE
C13: Player Names and PDGA#s on the Scores sheet - this in turn will auto-fill or auto-highlight fields in the
C14: Cover and Event Info sheets. The different worksheets can be accessed by clicking on the tabs at the bottom | E14: Type only in white
C15: of your screen. To simplify data entry, TDs should only enter information in the yellow boxes. All other parts of | E15: or yellow boxes
C16: the spreadsheet are locked. The green boxes are automated calculations, and the red text sections are areas | E16: DO NOT TYPE IN
C17: for PDGA office use only. If your info does not fit in the space provided, try using smaller sized text. | E17: BLUE OR
C19: Please note that certain details are essential for accurate data entry and for determining course and player | E19: GREEN BOXES!
C20: ratings. On the Event Info sheet this includes the order of course layouts played by the different divisions, | E20: These all use
C21: tiebreakers for 1st place, and the identification of players who decline pro cash. On the Scores sheet | E21: automatic entries
C22: please be sure to include player PDGA#s, the place of finish for all players, the cash won by the pros, | E22: Do not insert or
C23: and account for all ties in the places of finish and in the breakdown of the pro purse and am/junior prize value. | E23: delete rows. All
C24: Please also note that per PDGA Rules of Play, all ties for 1st place must be broken, and a winner declared. | E24: cells postitioned
E25: for data importing
C27: The following worksheets can be accessed by clicking on the tabs at bottom:
B29: Cover: | C29: Summarizes players, entry fees, prizes, and player fees and memberships collected for the PDGA.
C30: International TDs should choose their local currency and calculate the exchange rate to US$ on this sheet.
C31: The report can then be completed in the local currency and the report features will automatically
C32: calculate the values in US$ that will be entered into the PDGA database.
C33: Enter a 'Yes' in cell M8 if your event is part of the Eurotour Series. You may use your local currency to calculate
C34: event expenses and payouts. However, your Eurotour fees will be calculated in Euros and shown in cell M43.
B36: Event Info: | C36: Provides key and general information on the event including courses and layouts played which are used to
C37: generate player ratings. Please ensure that you also complete the section on Notes to Player Scores
C38: including any withdrawals, Ams who declined pro cash, and disqualifications.
B41: Scores: | C41: This sheet links to the PDGA database and shows the requested presentation of player information and
C42: scores. Remember that all ties for 1st place must be broken, and that the PDGA does not recognize
C43: the breaking of ties for places below first place. A new Basic Sort button has been added to help get your players into
C44: Final Finish position. When your event has Semi and/or Final rounds, use the new Special Finals Sort button.
C45: Note that the Cash/Local Column is used to enter each player's payout in Local Currency (Euros, Yen etc)
C46: From this the equivalent values in US$ are automatically calculated and displayed in the Cash/Value column.
B47: >> | C47: Code 888 was added for TDs to indicate when a player has been confirmed to have been
C48: manipulating their score or did not complete the round to protect their rating.
C49: In addition, enter 888 when a player does not play their next round and did not notify the TD in advance.
B51: ProPayout | C51: These sheets are provided to help TDs automatically calculate payouts. Information is linked from the
B52: AmJrPayout | C52: Cover sheet for each division being hosted. Note: Entry fee boxes must be filled in on the Cover sheet using your local
C53: currency before going to the Pro.Payout & Am.Jr.Payout sheets. Then, just enter the amount of net local currency
C54: cash added or subtracted for each division and the program will calculate both exact and rounded off payout values.
C55: On the Pro or Am/Jr payout tables, TDs can select 15%, 20%, 25%, 33%, or 40% (45% Ams) payout for each division.
C56: The Manual Adj. & Final Place columns let TDs adjust payouts to account for ties. For Am divisions, the
C57: currency values and "added cash" for the payouts are based on retail merchandise values in local currency.
C58: Once you have calculated your event payout make sure you enter the amounts won by the players
C59: in the Scores sheet in the Cash/Local in your local currency.
B61: Finance: | C61: Part 1 on Sponsors is requested of all TDs. The Income Statement that follows (Part 2) is provided as a
C62: resource to assist your event management. Only Majors and EuroTour events are required to complete and
C63: submit this section.
B65: Reporting | C65: Once you have completed the Tour Event Report please return it as an email attachment:
B66: to PDGA | C66: - To the PDGA Office at tdreport@pdga.com
C67: - For all EuroTour Series events, please copy to the EuroTour Manager at hans@pdga-europe.com
B69: Questions ? | C69: Please contact the report designers at ck34@aol.com or asweeton@pdga.com or bhoeniger@pdga.com .
B71: TDR2015 | C71: Thanks and good luck with your International PDGA Tour event!

Sheet Cover
A1: 16.3
A2: PDGA Tour International Event Report | K2: Event:
B3: Enter fees 'per player' in the yellow boxes using your local currency selected below.
B4: Player Names and DivCodes must be entered on the "Scores" sheet to see player counts. | O4: Date(s): | R4: to
B5: Gross | C5: PDGA | D5: Other | E5: Net | F5: # of | G5: Total Net | X5: Gross
A6: PROS | B6: Entry | C6: Fee | D6: Fees | E6: Entry | F6: Plyrs | G6: Entry Fees | X6: Entry Fees
A7: Open | C7: =IF(AND(F7<>0,M$8="Yes"),5*N$16,0) -> 0 | E7: =B7-C7-D7 -> 0 | F7: =COUNTIF(Division,"MPO") -> 0 | G7: =F7*E7 -> 0 | L7: Choose Currency > | M7: Euro € | P7: Tier: | W7: Pro | X7: =SUM(B7:B18*F7:F18) -> 0
A8: Master | C8: 0 | E8: 0 | F8: =COUNTIF(Division,"MPM") -> 0 | G8: =F8*E8 -> 0 | L8: Euro Tour Event? > | M8: No | W8: Am | X8: =SUM(B21:B36*F21:F36) -> 0
A9: Grandmaster | C9: 0 | E9: 0 | F9: =COUNTIF(Division,"MPG") -> 0 | G9: 0 | O9: TD Name: | W9: Jr | X9: =SUM(B39:B50*F39:F50) -> 0
A10: Sr Grandmaster | C10: 0 | E10: 0 | F10: =COUNTIF(Division,"MPS") -> 0 | G10: 0 | J10: =IF(M7="","",M7) -> Euro € | L10: to | M10: US $ | O10: Email Addr: | P10: @ | X10: =SUM(X7:X9) -> 0
A11: Legend 70+ | C11: 0 | E11: 0 | F11: =COUNTIF(Division,"MPL") -> 0 | G11: 0 | I11: Enter Conversion Rate > | O11: TD PDGA#: | S11: Country:
A12: Sr Legend 75+ | C12: 0 | E12: =B12-C12-D12 -> 0 | F12: =COUNTIF(Division,"MPE") -> 0 | G12: =F12*E12 -> 0 | I12: Enter value of 1 unit of local currency in USD on the tournament start date. For example on 1-1-15 EUR 1.00 = USD 1.22, Japan Yen 1 = USD .0084
A13: Gr Legend 80+ | C13: 0 | E13: =B13-C13-D13 -> 0 | F13: =COUNTIF(Division,"MPR") -> 0 | G13: =F13*E13 -> 0 | W13: 5
A14: Open Women | C14: 0 | E14: 0 | F14: =COUNTIF(Division,"FPO") -> 0 | G14: 0
A15: Master Women | C15: 0 | E15: 0 | F15: =COUNTIF(Division,"FPM") -> 0 | G15: 0 | O15: City:
A16: GM Women | C16: 0 | E16: 0 | F16: =COUNTIF(Division,"FPG") -> 0 | G16: 0 | I16: Conversion Rate > | L16: www.x-rates.com
A17: Sr GM Women | C17: 0 | E17: 0 | F17: =COUNTIF(Division,"FPS") -> 0 | G17: 0 | O17: Summary of Players, Entry Fees, & Payout
A18: Legend Women | C18: 0 | E18: 0 | F18: =COUNTIF(Division,"FPL") -> 0 | G18: 0 | O18: Total Players | T18: =F19+F37+F51 -> 0
A19: PRO Totals | F19: =SUM(F7:F17) -> 0 | G19: =SUM(G7:G18) -> 0 | M19: =IF(M7="","",M7) -> Euro € | N19: PROFESSIONALS | T19: US $
A20: AMATEURS | I20: NOTE | M20: =SUM(Scores!M10:M225) -> 0 | O20: Total Pro Cash Purse Paid Out | T20: =M20*$M$11 -> 0
A21: Advanced | C21: =IF(AND(F21<>0,M$8="Yes"),5*N$16,0) -> 0 | E21: =B21-C21-D21 -> 0 | F21: =COUNTIF(Division,"MA1") -> 0 | G21: =F21*E21 -> 0 | I21: Type only in white | M21: =G19 -> 0 | O21: Total Pro Net Entry Fees | T21: =M21*$M$11 -> 0 | W21: =IF(M21>0,M20/M21,"") -> 
A22: Intermediate | C22: 0 | E22: 0 | F22: =COUNTIF(Division,"MA2") -> 0 | G22: 0 | I22: or yellow boxes | M22: =M20-M21 -> 0 | O22: Net Cash to Purse - Added (Reduced) | T22: =M22*$M$11 -> 0
A23: Recreational | C23: 0 | E23: 0 | F23: =COUNTIF(Division,"MA3") -> 0 | G23: 0 | I23: DO NOT TYPE IN | O23: Pro Player Packs + Trophies $ Value | T23: =M23*$M$11 -> 0
A24: Novice | C24: 0 | E24: 0 | F24: =COUNTIF(Division,"MA4") -> 0 | G24: 0 | I24: BLUE OR | O24: Other Pro Prizes $ (CTPs etc) | T24: =M24*$M$11 -> 0
A25: Adv Master | C25: 0 | E25: =B25-C25-D25 -> 0 | F25: =COUNTIF(Division,"MM1") -> 0 | G25: 0 | I25: GREEN BOXES! | M25: =SUM(M20,M23,M24) -> 0 | P25: Pro Event Value | T25: =SUM(T20,T23,T24) -> 0 | W25: =IF(M21>0,M25/M21,"") -> 
A26: Adv GMaster | C26: 0 | E26: =B26-C26-D26 -> 0 | F26: =COUNTIF(Division,"MG1") -> 0 | G26: 0 | I26: These all use
A27: Adv Sr GM | C27: 0 | E27: =B27-C27-D27 -> 0 | F27: =COUNTIF(Division,"MS1") -> 0 | G27: 0 | I27: automatic entries
A28: Adv Legend | C28: 0 | E28: =B28-C28-D28 -> 0 | F28: =COUNTIF(Division,"ML1") -> 0 | G28: 0 | I28: Do not insert or | M28: =IF(M7="","",M7) -> Euro € | N28: AMATEURS & JUNIORS | T28: US $
A29: Adv W Master | C29: 0 | E29: 0 | F29: =COUNTIF(Division,"FM1") -> 0 | G29: 0 | I29: delete rows. All | M29: =G37+G51 -> 0 | O29: Total Am/Jr Net Entry Fees | T29: =M29*$M$11 -> 0
A30: Adv W GM | C30: 0 | E30: 0 | F30: =COUNTIF(Division,"FG1") -> 0 | G30: 0 | I30: cells postitioned | O30: Am/Jr Prizes + Player Packs + Trophies | T30: =M30*$M$11 -> 0
A31: Adv W Sr GM | C31: 0 | E31: =B31-C31-D31 -> 0 | F31: =COUNTIF(Division,"FS1") -> 0 | G31: 0 | I31: for data importing | O31: Other Am/Jr Prizes $ (CTPs etc) | T31: =M31*$M$11 -> 0
A32: Adv W Legend | C32: 0 | E32: 0 | F32: =COUNTIF(Division,"FL1") -> 0 | G32: 0 | M32: =SUM(M30:M31) -> 0 | P32: Am Event Value | T32: =SUM(T30:T31) -> 0
A33: Adv Women | C33: 0 | E33: =B33-C33-D33 -> 0 | F33: =COUNTIF(Division,"FA1") -> 0 | G33: =F33*E33 -> 0
A34: Inter Women | C34: 0 | E34: =B34-C34-D34 -> 0 | F34: =COUNTIF(Division,"FA2") -> 0 | G34: =F34*E34 -> 0
A35: Rec Women | C35: 0 | E35: =B35-C35-D35 -> 0 | F35: =COUNTIF(Division,"FA3") -> 0 | G35: =F35*E35 -> 0
A36: Novice Women | C36: 0 | E36: 0 | F36: =COUNTIF(Division,"FA4") -> 0 | G36: 0 | W36: =IF(M29>0,M32/M29,"") -> 
A37: AM Totals | F37: =SUM(F21:F36) -> 0 | G37: =SUM(G21:G36) -> 0
A38: JUNIORS | M38: =SUM(M25,M32) -> 0 | N38: Total Tour Event Value | T38: =M38*$M$11 -> 0
A39: Jr Boys <18 | C39: =IF(AND(F39<>0,M$8="Yes"),5*N$16,0) -> 0 | E39: =B39-C39-D39 -> 0 | F39: =COUNTIF(Division,"MJ1") -> 0 | G39: =F39*E39 -> 0
A40: Jr Boys <15 | C40: 0 | E40: 0 | F40: =COUNTIF(Division,"MJ2") -> 0 | G40: 0 | T40: =M51 -> 
A41: Jr Boys <12 | C41: 0 | E41: 0 | F41: =COUNTIF(Division,"MJ3") -> 0 | G41: 0 | I41: Please note: All TD | M41: EuroTour event sanctioning and player fees (€5 per player) are sent
A42: Jr Boys <10 | C42: 0 | E42: 0 | F42: =COUNTIF(Division,"MJ4") -> 0 | G42: 0 | I42: Reports and fees are | M42: to Hans Nagtegaal, PDGA EuroTour Manager. All other PDGA fees are
A43: Jr Boys <8 | C43: 0 | E43: 0 | F43: =COUNTIF(Division,"Mj5") -> 0 | G43: 0 | I43: due no more than | M43: are sent in US$ to the PDGA office in USA.
A44: Jr Boys <6 | C44: 0 | E44: 0 | F44: =COUNTIF(Division,"Mj6") -> 0 | G44: 0 | I44: one month after your
A45: Jr Girls <18 | C45: 0 | E45: 0 | F45: =COUNTIF(Division,"FJ1") -> 0 | G45: 0 | I45: event. Thank You! | M45: EuroTour
A46: Jr Girls <15 | C46: =IF(AND(F46<>0,M$8="Yes"),5*N$16,0) -> 0 | E46: =B46-C46-D46 -> 0 | F46: =COUNTIF(Division,"FJ2") -> 0 | G46: =F46*E46 -> 0
A47: Jr Girls <12 | C47: 0 | E47: 0 | F47: =COUNTIF(Division,"FJ3") -> 0 | G47: 0
A48: Jr Girls <10 | C48: 0 | E48: 0 | F48: =COUNTIF(Division,"FJ4") -> 0 | G48: 0
A49: Jr Girls <8 | C49: 0 | E49: 0 | F49: =COUNTIF(Division,"FJ5") -> 0 | G49: 0
A50: Jr Girls <6 | C50: 0 | E50: 0 | F50: =COUNTIF(Division,"FJ6") -> 0 | G50: 0 | M50: =IF(M8="Yes",F19+F37+F51,"") ->  | O50: Players
A51: JR Totals | F51: =SUM(F39:F50) -> 0 | G51: =SUM(G39:G50) -> 0 | M51: =M50*5 ->  | O51: Fees

Sheet Event Info
A1: PDGA Tour Event Report: General Information
A3: 1. | B3: Course Layouts - Important! | R3: Please enter your permanent courses in the PDGA Course Directory
B5: The PDGA uses Player Ratings for calculating amateur division eligibility. In order to accomplish this,
B6: it is VERY IMPORTANT that you complete the following information accurately. If the course(s) used are
B7: listed in the PDGA Course Directory please ensure that the same course name(s) are used as appear in the directory.
A9: Layout | B9: Please do not use apostrophes in any names or words! | F9: Number of Holes | L9: Length | R9: Meas? | T9: NOTE
A10: Code | B10: Park or Course Name | D10: Specific Layout / Configuration Name | F10: Perm | H10: Temp | J10: TOT | L10: (meters) | R10: or Est?
A11: A | J11: =IF(OR(F11>0,H11>0),F11+H11,"") ->  | S11: =IF(AND(OR(B11<>"",D11<>""),OR(J11="",L11="",R11="")),"< Please enter all info requested","") ->  | T11: Type only in white
A12: B | S12: =IF(AND(B12<>"",OR(J12="",L12="",R12="")),"< Please enter all info requested","") ->  | T12: or yellow boxes
A13: C | S13: =IF(AND(B13<>"",OR(J13="",L13="",R13="")),"< Please enter all info requested","") ->  | T13: DO NOT TYPE IN
A14: D | S14: =IF(AND(B14<>"",OR(J14="",L14="",R14="")),"< Please enter all info requested","") ->  | T14: BLUE OR
A15: E | S15: =IF(AND(B15<>"",OR(J15="",L15="",R15="")),"< Please enter all info requested","") ->  | T15: GREEN BOXES!
A16: F | S16: =IF(AND(B16<>"",OR(J16="",L16="",R16="")),"< Please enter all info requested","") ->  | T16: These all use
A17: G | J17: =IF(OR(F17>0,H17>0),F17+H17,"") ->  | T17: automatic entries
A18: H
A19: I
A20: J
A21: K
A22: L
A24: 2. | B24: Layouts Played by Division by Round - Important!
B26: Enter the proper course layout code letter from above for each round played by each division listed. | T26: Do not insert or
B27: NOTE: Division name is gray until at least one player has been entered for it on the COVER sheet. | T27: delete rows. All
J28: Course Layout Code | R28: Div | T28: cells postitioned
B29: Divisions with players entered in your event | F29: R 1 | H29: R 2 | J29: R 3 | L29: R 4 | N29: Semi | P29: Final | R29: Code | T29: for data importing
A30: PRO | B30: MPO - Pro Open | R30: =IF(Cover!F7>0,LEFT(B30,3),"") ->  | S30: =IF(AND(R30<>"",COUNTA(F30:P30)<COUNT(Scores!F$10:K$10))," < Course layout may be missing","") -> 
B31: MPM - Pro Master | R31: =IF(Cover!F8>0,LEFT(B31,3),"") ->  | S31: =IF(AND(R31<>"",COUNTA(F31:P31)<COUNT(Scores!F$10:K$10))," < Course layout may be missing","") -> 
B32: MPG - Pro Grandmaster | R32: =IF(Cover!F9>0,LEFT(B32,3),"") ->  | S32: =IF(AND(R32<>"",COUNTA(F32:P32)<COUNT(Scores!F$10:K$10))," < Course layout may be missing","") -> 
B33: MPS - Pro Sr Grandmaster | R33: =IF(Cover!F10>0,LEFT(B33,3),"") ->  | S33: =IF(AND(R33<>"",COUNTA(F33:P33)<COUNT(Scores!F$10:K$10))," < Course layout may be missing","") -> 
B34: MPL - Pro Legend | R34: =IF(Cover!F11>0,LEFT(B34,3),"") ->  | S34: =IF(AND(R34<>"",COUNTA(F34:P34)<COUNT(Scores!F$10:K$10))," < Course layout may be missing","") -> 
B35: MPE - Pro Sr Legend | R35: =IF(Cover!F12>0,LEFT(B35,3),"") ->  | S35: =IF(AND(R35<>"",COUNTA(F35:P35)<COUNT(Scores!F$10:K$10))," < Course layout may be missing","") -> 
B36: MPR - Pro Grand Legend | R36: =IF(Cover!F13>0,LEFT(B36,3),"") ->  | S36: =IF(AND(R36<>"",COUNTA(F36:P36)<COUNT(Scores!F$10:K$10))," < Course layout may be missing","") -> 
B37: FPO - Pro Women | R37: =IF(Cover!F14>0,LEFT(B37,3),"") ->  | S37: =IF(AND(R37<>"",COUNTA(F37:P37)<COUNT(Scores!F$10:K$10))," < Course layout may be missing","") -> 
B38: FPM - Pro Master Women | R38: =IF(Cover!F15>0,LEFT(B38,3),"") ->  | S38: =IF(AND(R38<>"",COUNTA(F38:P38)<COUNT(Scores!F$10:K$10))," < Course layout may be missing","") -> 
B39: FPG - Pro Grandmaster Women | R39: =IF(Cover!F16>0,LEFT(B39,3),"") ->  | S39: =IF(AND(R39<>"",COUNTA(F39:P39)<COUNT(Scores!F$10:K$10))," < Course layout may be missing","") -> 
B40: FPS - Pro Sr Grandmaster Women | R40: =IF(Cover!F17>0,LEFT(B40,3),"") ->  | S40: =IF(AND(R40<>"",COUNTA(F40:P40)<COUNT(Scores!F$10:K$10))," < Course layout may be missing","") -> 
B41: FPL - Pro Legend Women | R41: =IF(Cover!F18>0,LEFT(B41,3),"") ->  | S41: =IF(AND(R41<>"",COUNTA(F41:P41)<COUNT(Scores!F$10:K$10))," < Course layout may be missing","") -> 
A42: AM | B42: MA1 - Advanced | R42: =IF(Cover!F21>0,LEFT(B42,3),"") ->  | S42: =IF(AND(R42<>"",COUNTA(F42:P42)<COUNT(Scores!F$10:K$10))," < Course layout may be missing","") -> 
B43: MA2 - Intermediate | R43: =IF(Cover!F22>0,LEFT(B43,3),"") ->  | S43: =IF(AND(R43<>"",COUNTA(F43:P43)<COUNT(Scores!F$10:K$10))," < Course layout may be missing","") -> 
B44: MA3 - Recreational | R44: =IF(Cover!F23>0,LEFT(B44,3),"") ->  | S44: =IF(AND(R44<>"",COUNTA(F44:P44)<COUNT(Scores!F$10:K$10))," < Course layout may be missing","") -> 
B45: MA4 - Novice | R45: =IF(Cover!F24>0,LEFT(B45,3),"") ->  | S45: =IF(AND(R45<>"",COUNTA(F45:P45)<COUNT(Scores!F$10:K$10))," < Course layout may be missing","") -> 
B46: MM1 - Advanced Master | R46: =IF(Cover!F25>0,LEFT(B46,3),"") ->  | S46: =IF(AND(R46<>"",COUNTA(F46:P46)<COUNT(Scores!F$10:K$10))," < Course layout may be missing","") -> 
B47: MG1 - Advanced Grandmaster | R47: =IF(Cover!F26>0,LEFT(B47,3),"") ->  | S47: =IF(AND(R47<>"",COUNTA(F47:P47)<COUNT(Scores!F$10:K$10))," < Course layout may be missing","") -> 
B48: MS1 - Advanced Sr Grandmaster | R48: =IF(Cover!F27>0,LEFT(B48,3),"") ->  | S48: =IF(AND(R48<>"",COUNTA(F48:P48)<COUNT(Scores!F$10:K$10))," < Course layout may be missing","") -> 
B49: ML1 - Advanced Legend | R49: =IF(Cover!F28>0,LEFT(B49,3),"") ->  | S49: =IF(AND(R49<>"",COUNTA(F49:P49)<COUNT(Scores!F$10:K$10))," < Course layout may be missing","") -> 
B50: FM1 - Advanced Women Master | R50: =IF(Cover!F29>0,LEFT(B50,3),"") ->  | S50: =IF(AND(R50<>"",COUNTA(F50:P50)<COUNT(Scores!F$10:K$10))," < Course layout may be missing","") -> 
B51: FG1 - Advanced Women Grandmaster | R51: =IF(Cover!F30>0,LEFT(B51,3),"") ->  | S51: =IF(AND(R51<>"",COUNTA(F51:P51)<COUNT(Scores!F$10:K$10))," < Course layout may be missing","") -> 
B52: FS1 - Advanced Women Sr Grandmaster | R52: =IF(Cover!F31>0,LEFT(B52,3),"") ->  | S52: =IF(AND(R52<>"",COUNTA(F52:P52)<COUNT(Scores!F$10:K$10))," < Course layout may be missing","") -> 
B53: FL1 - Advanced Women Legend | R53: =IF(Cover!F32>0,LEFT(B53,3),"") ->  | S53: =IF(AND(R53<>"",COUNTA(F53:P53)<COUNT(Scores!F$10:K$10))," < Course layout may be missing","") -> 
B54: FA1 - Advanced Women | R54: =IF(Cover!F33>0,LEFT(B54,3),"") ->  | S54: =IF(AND(R54<>"",COUNTA(F54:P54)<COUNT(Scores!F$10:K$10))," < Course layout may be missing","") -> 
B55: FA2 - Intermediate Women | R55: =IF(Cover!F34>0,LEFT(B55,3),"") ->  | S55: =IF(AND(R55<>"",COUNTA(F55:P55)<COUNT(Scores!F$10:K$10))," < Course layout may be missing","") -> 
B56: FA3 - Recreational Women | R56: =IF(Cover!F35>0,LEFT(B56,3),"") ->  | S56: =IF(AND(R56<>"",COUNTA(F56:P56)<COUNT(Scores!F$10:K$10))," < Course layout may be missing","") -> 
B57: FA4 - Novice Women | R57: =IF(Cover!F36>0,LEFT(B57,3),"") ->  | S57: =IF(AND(R57<>"",COUNTA(F57:P57)<COUNT(Scores!F$10:K$10))," < Course layout may be missing","") -> 
J58: Course Layout Code | R58: Div
B59: Divisions with players entered in your event | F59: R 1 | H59: R 2 | J59: R 3 | L59: R 4 | N59: R 4 | P59: R 5 | R59: Code
A60: JR | B60: MJ1 - Junior Boys < 18 | R60: =IF(Cover!F39>0,LEFT(B60,3),"") ->  | S60: =IF(AND(R60<>"",COUNTA(F60:P60)<COUNT(Scores!F$10:K$10))," < Course layout may be missing","") -> 
B61: MJ2 - Junior Boys < 15 | R61: =IF(Cover!F40>0,LEFT(B61,3),"") ->  | S61: =IF(AND(R61<>"",COUNTA(F61:P61)<COUNT(Scores!F$10:K$10))," < Course layout may be missing","") -> 
B62: MJ3 - Junior Boys < 12 | R62: =IF(Cover!F41>0,LEFT(B62,3),"") ->  | S62: =IF(AND(R62<>"",COUNTA(F62:P62)<COUNT(Scores!F$10:K$10))," < Course layout may be missing","") -> 
B63: MJ4 - Junior Boys < 10 | R63: =IF(Cover!F42>0,LEFT(B63,3),"") ->  | S63: =IF(AND(R63<>"",COUNTA(F63:P63)<COUNT(Scores!F$10:K$10))," < Course layout may be missing","") -> 
B64: MJ5 - Junior Boys < 8 | R64: =IF(Cover!F43>0,LEFT(B64,3),"") ->  | S64: =IF(AND(R64<>"",COUNTA(F64:P64)<COUNT(Scores!F$10:K$10))," < Course layout may be missing","") -> 
B65: MJ6 - Junior Boys < 6 | R65: =IF(Cover!F44>0,LEFT(B65,3),"") ->  | S65: =IF(AND(R65<>"",COUNTA(F65:P65)<COUNT(Scores!F$10:K$10))," < Course layout may be missing","") -> 
B66: FJ1 - Junior Girls < 18 | R66: =IF(Cover!F45>0,LEFT(B66,3),"") ->  | S66: =IF(AND(R66<>"",COUNTA(F66:P66)<COUNT(Scores!F$10:K$10))," < Course layout may be missing","") -> 
B67: FJ2 - Junior Girls < 15 | R67: =IF(Cover!F46>0,LEFT(B67,3),"") -> 
B68: FJ3 - Junior Girls < 12 | R68: =IF(Cover!F47>0,LEFT(B68,3),"") -> 
B69: FJ4 - Junior Girls < 10 | R69: =IF(Cover!F48>0,LEFT(B69,3),"") -> 
B70: FJ5 - Junior Girls < 8 | R70: =IF(Cover!F49>0,LEFT(B70,3),"") -> 
B71: FJ6 - Junior Girls < 6 | R71: =IF(Cover!F50>0,LEFT(B71,3),"") ->  | S71: =IF(AND(R71<>"",COUNTA(F71:P71)<COUNT(Scores!F$10:K$10))," < Course layout may be missing","") -> 
A72: 3. | B72: Notes to Player Scores - Important!
B73: List any clarifications such as: Ams who played Pro and declined $, tiebreakers/playoff winners, extra skins $ won by top pros, DNFs, etc.
A78: 4. | B78: Holes in One
B79: For each tournament ace, please provide the player's name, course layout code (from section 1 above), hole number and distance:
B80: Player Name | E80: Layout Code | G80: Hole # | J80: Length
A86: 5. | B86: Conditions
B87: Describe any extraordinary weather or other unusual conditions that may have affected scoring, and indicate which rounds were affected.
A92: 6. | B92: Problems
B93: Please describe in detail any problems or disqualifications.
A98: 7. | B98: Comments to the PDGA
B99: Please provide us with your comments about how the PDGA Tour is working and any suggestions for its improvement.
B100: Are there any other specific ways in which the PDGA can help you, your club, and your event ?
A105: 8. | B105: TD Signature
B106: I hereby certify that the information I have provided in this report is accurate to the best of my ability and knowledge.
B109: Tournament Director | L109: Date | N109: Date
B111: Once you have completed the Tour Event Report please return it as an email attachment:
B112: - To the PDGA Office at tdreport@pdga.com
B113: - For all EuroTour Series events, please copy to the EuroTour Manager at: hans@pdga-europe.com
B114: and to the PDGA International Director at bhoeniger@pdga.com
B116: Please note, all TD reports and fees are due no more than one month after an event.
B118: Questions? Contact the PDGA International Director at bhoeniger@pdga.com
B119: Thanks for a job well done!

Sheet Scores
A1: Tour Event Name: | D1: =IF(Cover!L2<>"",Cover!L2,"") ->  | L1: Dates: | M1: =IF(Cover!P4<>"",Cover!P4,"") ->  | P1: NOTE ON DNF (Did Not Finish) CODES
A3: Please enter the player Division Codes, Names and PDGA#s on this page before | P3: Enter 888 when a player has not notified the TD they will not be playing the next scheduled round. Enter 888 when a player has been confirmed to have manipulated their score or dropped out to preserve their rating. For all other cases where a player was not able to finish the round, enter 999.
A4: completing the COVER page and using the PAYOUT worksheets. Do not include
A5: players who registered but did not show up or make a throw in the tournament. | N5: Use Special Sort button above when
A6: Click button to upload scores | H6: Use Basic Sort button after any > | N6: your Event has Semis or Finals.
H7: round through first 4 rounds. | N7: You MUST enter Final rankings in Place | P7: Guide to Division Codes: Enter players using the following 3 digit codes in the DivCode field.
N8: column for players in Semis/Finals. | P8: PROFESSIONAL DIVISIONS | T8: AMATEUR DIVISIONS | X8: JUNIOR DIVISIONS
A9: DivCode | B9: Place | C9: First Name | D9: Last Name | E9: PDGA | F9: Rd1 | G9: Rd2 | H9: Rd3 | I9: Rd4 | J9: Semi | K9: Final | L9: TOTAL | M9: Cash/Local | N9: Cash/Value | P9: MPO | Q9: Pro Open | T9: MA1 | U9: Advanced | X9: MJ1 | Y9: Junior Boys < 19
L10: =IF(F10="","",IF(SUM(F10:K10)>=888,"DNF",SUM(F10:K10))) ->  | N10: =IF(M10="","",M10*Cover!M$11) ->  | P10: MPM | Q10: Pro Master | T10: MA2 | U10: Intermediate | X10: MJ2 | Y10: Junior Boys < 16
N11: =IF(M11="","",M11*Cover!M$11) ->  | P11: MPG | Q11: Pro Grandmaster | T11: MA3 | U11: Recreational | X11: MJ3 | Y11: Junior Boys < 13
N12: =IF(M12="","",M12*Cover!M$11) ->  | P12: MPS | Q12: Pro Sr Grandmaster | T12: MA4 | U12: Novice | X12: MJ4 | Y12: Junior Boys < 10
N13: =IF(M13="","",M13*Cover!M$11) ->  | P13: MPL | Q13: Pro Legend | T13: FA1 | U13: Advanced Women | X13: FJ1 | Y13: Junior Girls < 19
N14: =IF(M14="","",M14*Cover!M$11) ->  | P14: MPE | Q14: Pro Sr Legend 75+ | T14: FA2 | U14: Intermediate Women | X14: FJ2 | Y14: Junior Girls < 16
N15: =IF(M15="","",M15*Cover!M$11) ->  | P15: MPR | Q15: Pro Grand Legend 80+ | T15: FA3 | U15: Recreational Women | X15: FJ3 | Y15: Junior Girls < 13
N16: =IF(M16="","",M16*Cover!M$11) ->  | P16: FPO | Q16: Pro Women | T16: FA4 | U16: Novice Women | X16: FJ4 | Y16: Junior Girls < 10
N17: =IF(M17="","",M17*Cover!M$11) ->  | P17: FPM | Q17: Pro Master Women | T17: MM1 | U17: Advanced Master | X17: FM1 | Y17: Adv Master Women
N18: =IF(M18="","",M18*Cover!M$11) ->  | P18: FPG | Q18: Pro Grandmaster Women | T18: MG1 | U18: Adv Grandmaster | X18: FG1 | Y18: Adv GM Women
N19: =IF(M19="","",M19*Cover!M$11) ->  | P19: FPS | Q19: Pro Sr Grandmaster Women | T19: MS1 | U19: Adv Sr Grandmaster | X19: FS1 | Y19: Adv Sr GM Women
N20: =IF(M20="","",M20*Cover!M$11) ->  | P20: FPL | Q20: Pro Legend Women | T20: ML1 | U20: Adv Legend | X20: FL1 | Y20: Adv Legend Women
N21: =IF(M21="","",M21*Cover!M$11) -> 
N22: =IF(M22="","",M22*Cover!M$11) ->  | P22: Instructions:
N23: =IF(M23="","",M23*Cover!M$11) ->  | P23: - How to avoid common mistakes, and ensure your event results are as correct as possible
N24: =IF(M24="","",M24*Cover!M$11) ->  | P24: - Please enter players and scores as follows:
N25: =IF(M25="","",M25*Cover!M$11) ->  | P25: - Enter players names in Proper Case = John Smith (Do NOT type in players as john smith or JOHN SMITH
N26: =IF(M26="","",M26*Cover!M$11) ->  | P26: or John SMITH, because the PDGA database cannot process official results in these formats)
N27: =IF(M27="","",M27*Cover!M$11) ->  | P27: - Make sure the players are sorted by division and score and that places of finish reflect their place within
N28: =IF(M28="","",M28*Cover!M$11) ->  | P28: their division only (and not their place within the overall event which some countries like to do)
N29: =IF(M29="","",M29*Cover!M$11) ->  | P29: - Do not leave a blank line between one division and the next division.
N30: =IF(M30="","",M30*Cover!M$11) ->  | P30: - If your event included Semi and/or Final Rounds, enter those Scores in columns J & K.
N31: =IF(M31="","",M31*Cover!M$11) ->  | P31: - TOTAL column L adds up round scores automatically
N32: =IF(M32="","",M32*Cover!M$11) ->  | P32: - Be sure to include the amounts of pro cash won by the players in local currency in the Cash/Local column
N33: =IF(M33="","",M33*Cover!M$11) ->  | P33: if your event had a Pro cash payout.
N34: =IF(M34="","",M34*Cover!M$11) ->  | P34: - DO NOT include prize values in Cash/Local column for Ams who played Pro and declined cash, but DO add that
N35: =IF(M35="","",M35*Cover!M$11) ->  | P35: value in cell M23 on the Cover page so your event gets credit for total value paid out in Pro divisions.
N36: =IF(M36="","",M36*Cover!M$11) ->  | P36: - List players declining cash and those values in the Notes to Players Scores on the Event Info worksheet.
N37: =IF(M37="","",M37*Cover!M$11) -> 
N38: =IF(M38="","",M38*Cover!M$11) ->  | P38: NOTES | S38: Type only in white
N39: =IF(M39="","",M39*Cover!M$11) ->  | S39: or yellow boxes
N40: =IF(M40="","",M40*Cover!M$11) ->  | P40: Do not insert or | S40: DO NOT TYPE IN
N41: =IF(M41="","",M41*Cover!M$11) ->  | P41: delete rows. All | S41: BLUE OR
N42: =IF(M42="","",M42*Cover!M$11) ->  | P42: cells positioned | S42: GREEN BOXES!
N43: =IF(M43="","",M43*Cover!M$11) ->  | P43: for data importing | S43: These all use
N44: =IF(M44="","",M44*Cover!M$11) ->  | S44: automatic entries
N45: =IF(M45="","",M45*Cover!M$11) -> 
N46: =IF(M46="","",M46*Cover!M$11) -> 
N47: =IF(M47="","",M47*Cover!M$11) -> 
N48: =IF(M48="","",M48*Cover!M$11) -> 
N49: =IF(M49="","",M49*Cover!M$11) -> 
N50: =IF(M50="","",M50*Cover!M$11) -> 
N51: =IF(M51="","",M51*Cover!M$11) -> 
N52: =IF(M52="","",M52*Cover!M$11) -> 
N53: =IF(M53="","",M53*Cover!M$11) -> 
N54: =IF(M54="","",M54*Cover!M$11) -> 
N55: =IF(M55="","",M55*Cover!M$11) -> 
N56: =IF(M56="","",M56*Cover!M$11) -> 
N57: =IF(M57="","",M57*Cover!M$11) -> 
N58: =IF(M58="","",M58*Cover!M$11) -> 
N59: =IF(M59="","",M59*Cover!M$11) -> 
N60: =IF(M60="","",M60*Cover!M$11) -> 
N61: =IF(M61="","",M61*Cover!M$11) -> 
N62: =IF(M62="","",M62*Cover!M$11) -> 
N63: =IF(M63="","",M63*Cover!M$11) -> 
N64: =IF(M64="","",M64*Cover!M$11) -> 
N65: =IF(M65="","",M65*Cover!M$11) -> 
N66: =IF(M66="","",M66*Cover!M$11) -> 
N67: =IF(M67="","",M67*Cover!M$11) -> 
N68: =IF(M68="","",M68*Cover!M$11) -> 
N69: =IF(M69="","",M69*Cover!M$11) -> 
N70: =IF(M70="","",M70*Cover!M$11) -> 
N71: =IF(M71="","",M71*Cover!M$11) -> 
N72: =IF(M72="","",M72*Cover!M$11) -> 
N73: =IF(M73="","",M73*Cover!M$11) -> 
L74: =IF(F74="","",IF(SUM(F74:K74)>=888,"DNF",SUM(F74:K74))) ->  | N74: =IF(M74="","",M74*Cover!M$11) -> 
N75: =IF(M75="","",M75*Cover!M$11) -> 
N76: =IF(M76="","",M76*Cover!M$11) -> 
N77: =IF(M77="","",M77*Cover!M$11) -> 
N78: =IF(M78="","",M78*Cover!M$11) -> 
N79: =IF(M79="","",M79*Cover!M$11) -> 
N80: =IF(M80="","",M80*Cover!M$11) -> 
N81: =IF(M81="","",M81*Cover!M$11) -> 
N82: =IF(M82="","",M82*Cover!M$11) -> 
N83: =IF(M83="","",M83*Cover!M$11) -> 
N84: =IF(M84="","",M84*Cover!M$11) -> 
N85: =IF(M85="","",M85*Cover!M$11) -> 
N86: =IF(M86="","",M86*Cover!M$11) -> 
N87: =IF(M87="","",M87*Cover!M$11) -> 
N88: =IF(M88="","",M88*Cover!M$11) -> 
N89: =IF(M89="","",M89*Cover!M$11) -> 
N90: =IF(M90="","",M90*Cover!M$11) -> 
N91: =IF(M91="","",M91*Cover!M$11) -> 
N92: =IF(M92="","",M92*Cover!M$11) -> 
N93: =IF(M93="","",M93*Cover!M$11) -> 
N94: =IF(M94="","",M94*Cover!M$11) -> 
N95: =IF(M95="","",M95*Cover!M$11) -> 
N96: =IF(M96="","",M96*Cover!M$11) -> 
N97: =IF(M97="","",M97*Cover!M$11) -> 
N98: =IF(M98="","",M98*Cover!M$11) -> 
N99: =IF(M99="","",M99*Cover!M$11) -> 
N100: =IF(M100="","",M100*Cover!M$11) -> 
N101: =IF(M101="","",M101*Cover!M$11) -> 
N102: =IF(M102="","",M102*Cover!M$11) -> 
N103: =IF(M103="","",M103*Cover!M$11) -> 
N104: =IF(M104="","",M104*Cover!M$11) -> 
N105: =IF(M105="","",M105*Cover!M$11) -> 
N106: =IF(M106="","",M106*Cover!M$11) -> 
N107: =IF(M107="","",M107*Cover!M$11) -> 
N108: =IF(M108="","",M108*Cover!M$11) -> 
N109: =IF(M109="","",M109*Cover!M$11) -> 
N110: =IF(M110="","",M110*Cover!M$11) -> 
N111: =IF(M111="","",M111*Cover!M$11) -> 
N112: =IF(M112="","",M112*Cover!M$11) -> 
N113: =IF(M113="","",M113*Cover!M$11) -> 
N114: =IF(M114="","",M114*Cover!M$11) -> 
N115: =IF(M115="","",M115*Cover!M$11) -> 
N116: =IF(M116="","",M116*Cover!M$11) -> 
N117: =IF(M117="","",M117*Cover!M$11) -> 
N118: =IF(M118="","",M118*Cover!M$11) -> 
N119: =IF(M119="","",M119*Cover!M$11) -> 
N120: =IF(M120="","",M120*Cover!M$11) -> 
N121: =IF(M121="","",M121*Cover!M$11) -> 
N122: =IF(M122="","",M122*Cover!M$11) -> 
N123: =IF(M123="","",M123*Cover!M$11) -> 
N124: =IF(M124="","",M124*Cover!M$11) -> 
N125: =IF(M125="","",M125*Cover!M$11) -> 
N126: =IF(M126="","",M126*Cover!M$11) -> 
N127: =IF(M127="","",M127*Cover!M$11) -> 
N128: =IF(M128="","",M128*Cover!M$11) -> 
N129: =IF(M129="","",M129*Cover!M$11) -> 
N130: =IF(M130="","",M130*Cover!M$11) -> 
N131: =IF(M131="","",M131*Cover!M$11) -> 
N132: =IF(M132="","",M132*Cover!M$11) -> 
N133: =IF(M133="","",M133*Cover!M$11) -> 
N134: =IF(M134="","",M134*Cover!M$11) -> 
N135: =IF(M135="","",M135*Cover!M$11) -> 
N136: =IF(M136="","",M136*Cover!M$11) -> 
N137: =IF(M137="","",M137*Cover!M$11) -> 
L138: =IF(F138="","",IF(SUM(F138:K138)>=888,"DNF",SUM(F138:K138))) ->  | N138: =IF(M138="","",M138*Cover!M$11) -> 
N139: =IF(M139="","",M139*Cover!M$11) -> 
N140: =IF(M140="","",M140*Cover!M$11) -> 
N141: =IF(M141="","",M141*Cover!M$11) -> 
N142: =IF(M142="","",M142*Cover!M$11) -> 
N143: =IF(M143="","",M143*Cover!M$11) -> 
N144: =IF(M144="","",M144*Cover!M$11) -> 
N145: =IF(M145="","",M145*Cover!M$11) -> 
N146: =IF(M146="","",M146*Cover!M$11) -> 
N147: =IF(M147="","",M147*Cover!M$11) -> 
N148: =IF(M148="","",M148*Cover!M$11) -> 
N149: =IF(M149="","",M149*Cover!M$11) -> 
N150: =IF(M150="","",M150*Cover!M$11) -> 
N151: =IF(M151="","",M151*Cover!M$11) -> 
N152: =IF(M152="","",M152*Cover!M$11) -> 
N153: =IF(M153="","",M153*Cover!M$11) -> 
N154: =IF(M154="","",M154*Cover!M$11) -> 
N155: =IF(M155="","",M155*Cover!M$11) -> 
N156: =IF(M156="","",M156*Cover!M$11) -> 
N157: =IF(M157="","",M157*Cover!M$11) -> 
N158: =IF(M158="","",M158*Cover!M$11) -> 
N159: =IF(M159="","",M159*Cover!M$11) -> 
N160: =IF(M160="","",M160*Cover!M$11) -> 
N161: =IF(M161="","",M161*Cover!M$11) -> 
N162: =IF(M162="","",M162*Cover!M$11) -> 
N163: =IF(M163="","",M163*Cover!M$11) -> 
N164: =IF(M164="","",M164*Cover!M$11) -> 
N165: =IF(M165="","",M165*Cover!M$11) -> 
N166: =IF(M166="","",M166*Cover!M$11) -> 
N167: =IF(M167="","",M167*Cover!M$11) -> 
N168: =IF(M168="","",M168*Cover!M$11) -> 
N169: =IF(M169="","",M169*Cover!M$11) -> 
N170: =IF(M170="","",M170*Cover!M$11) -> 
N171: =IF(M171="","",M171*Cover!M$11) -> 
N172: =IF(M172="","",M172*Cover!M$11) -> 
N173: =IF(M173="","",M173*Cover!M$11) -> 
N174: =IF(M174="","",M174*Cover!M$11) -> 
N175: =IF(M175="","",M175*Cover!M$11) -> 
N176: =IF(M176="","",M176*Cover!M$11) -> 
N177: =IF(M177="","",M177*Cover!M$11) -> 
N178: =IF(M178="","",M178*Cover!M$11) -> 
N179: =IF(M179="","",M179*Cover!M$11) -> 
N180: =IF(M180="","",M180*Cover!M$11) -> 
N181: =IF(M181="","",M181*Cover!M$11) -> 
N182: =IF(M182="","",M182*Cover!M$11) -> 
N183: =IF(M183="","",M183*Cover!M$11) -> 
N184: =IF(M184="","",M184*Cover!M$11) -> 
N185: =IF(M185="","",M185*Cover!M$11) -> 
N186: =IF(M186="","",M186*Cover!M$11) -> 
N187: =IF(M187="","",M187*Cover!M$11) -> 
N188: =IF(M188="","",M188*Cover!M$11) -> 
N189: =IF(M189="","",M189*Cover!M$11) -> 
N190: =IF(M190="","",M190*Cover!M$11) -> 
N191: =IF(M191="","",M191*Cover!M$11) -> 
N192: =IF(M192="","",M192*Cover!M$11) -> 
N193: =IF(M193="","",M193*Cover!M$11) -> 
N194: =IF(M194="","",M194*Cover!M$11) -> 
N195: =IF(M195="","",M195*Cover!M$11) -> 
N196: =IF(M196="","",M196*Cover!M$11) -> 
N197: =IF(M197="","",M197*Cover!M$11) -> 
N198: =IF(M198="","",M198*Cover!M$11) -> 
N199: =IF(M199="","",M199*Cover!M$11) -> 
N200: =IF(M200="","",M200*Cover!M$11) -> 
N201: =IF(M201="","",M201*Cover!M$11) -> 
... 22 more rows

Sheet Pro.Payouts
A1: WOMEN PRO DIVISION | H1: WOMEN MASTER PRO DIVISION | O1: WOMEN GM PRO DIVISION | V1: Field
E2: Add (or reduce) local cash here* > | L2: Add (or reduce) local cash here* > | S2: Add (or reduce) local cash here* > | T2: 0 | W2: 40 | X2: 33 | Y2: 25 | Z2: 20 | AA2: 15 | AC2: 1-2 | AD2: 3-4 | AE2: 5-6 | AF2: 7-9 | AG2: 10-13 | AH2: 14-16 | AI2: 17-19 | AJ2: 20-22 | AK2: 23-26 | AL2: 27-29 | AM2: 30-31
A3: # Paid | C3: Field Size | E3: Total Fees: | F3: =Cover!G14 -> 0 | H3: # Paid | J3: Field Size | L3: Total Fees: | M3: =Cover!G15 -> 0 | O3: # Paid | Q3: Field Size | S3: Total Fees: | T3: =Cover!G16 -> 0 | V3: 1 | W3: 1 | X3: 1 | Y3: 1 | Z3: 1 | AA3: 1 | AC3: Number of Places Paid
A4: =VLOOKUP(C4,paypct,B5,FALSE) ->  | C4: =IF(Cover!F14=0,91,Cover!F14) -> 91 | E4: Net Purse: | F4: =F3+F2 -> 0 | H4: =VLOOKUP(J4,paypct,I5,FALSE) ->  | J4: =IF(Cover!F15=0,91,Cover!F15) -> 91 | L4: Net Purse: | M4: =M3+M2 -> 0 | O4: =VLOOKUP(Q4,paypct,P5,FALSE) ->  | Q4: =IF(Cover!F16=0,91,Cover!F16) -> 91 | S4: Net Purse: | T4: =T3+T2 -> 0 | V4: 2 | W4: 1 | X4: 1 | Y4: 1 | Z4: 1 | AA4: 1 | AC4: 1 | AD4: 2 | AE4: 3 | AF4: 4 | AG4: 5 | AH4: 6 | AI4: 7 | AJ4: 8 | AK4: 9 | AL4: 10 | AM4: 11 | AN4: 12 | AO4: 13 | AP4: 14 | AQ4: 15 | AR4: 16 | AS4: 17 | AT4: 18 | AU4: 19 | AV4: 20 | AW4: 21 | AX4: 22 | AY4: 23 | AZ4: 24 | BA4: 25 | BB4: 26 | BC4: 27 | BD4: 28 | BE4: 29 | BF4: 30 | BG4: 31 | BH4: 32 | BI4: 33
B5: =IF(E5=33%,3,IF(E5=40%,2,IF(E5=25%,4,IF(E5=20%,5,6)))) -> 4 | D5: Choose Payout Percentage> | E5: 0.25 | I5: =IF(L5=33%,3,IF(L5=40%,2,IF(L5=25%,4,IF(L5=20%,5,6)))) -> 4 | K5: Choose Payout Percentage> | L5: 0.25 | P5: =IF(S5=33%,3,IF(S5=40%,2,IF(S5=25%,4,IF(S5=20%,5,6)))) -> 4 | R5: Choose Payout Percentage> | S5: 0.25 | V5: 3 | W5: 2 | X5: 1 | Y5: 1 | Z5: 1 | AA5: 1 | AB5: 1 | AC5: 1 | AD5: 0.625 | AE5: 0.475 | AF5: 0.41 | AG5: 0.36 | AH5: 0.33 | AI5: 0.3 | AJ5: 0.28 | AK5: 0.268 | AL5: 0.26 | AM5: 0.25 | AN5: 0.238 | AO5: 0.232 | AP5: 0.225 | AQ5: 0.22 | AR5: 0.21 | AS5: 0.2 | AT5: 0.19 | AU5: 0.18 | AV5: 0.165 | AW5: 0.152 | AX5: 0.145 | AY5: 0.142 | AZ5: 0.14 | BA5: 0.137 | BB5: 0.132 | BC5: 0.13 | BD5: 0.127 | BE5: 0.125 | BF5: 0.122 | BG5: 0.118 | BH5: 0.115 | BI5: 0.112 | BJ5: 1
B6: Prelim | C6: Proposed | D6: Round to | E6: Manual | F6: Final | I6: Prelim | J6: Proposed | K6: Round to | L6: Manual | M6: Final | P6: Prelim | Q6: Proposed | R6: Round to | S6: Manual | T6: Final | V6: 4 | W6: 2 | X6: 2 | Y6: 1 | Z6: 1 | AA6: 1 | AB6: 2 | AC6: ········· | AD6: 0.375 | AE6: 0.3 | AF6: 0.26 | AG6: 0.245 | AH6: 0.23 | AI6: 0.21 | AJ6: 0.19 | AK6: 0.185 | AL6: 0.18 | AM6: 0.165 | AN6: 0.16 | AO6: 0.155 | AP6: 0.15 | AQ6: 0.145 | AR6: 0.14 | AS6: 0.135 | AT6: 0.13 | AU6: 0.125 | AV6: 0.118 | AW6: 0.115 | AX6: 0.112 | AY6: 0.11 | AZ6: 0.107 | BA6: 0.105 | BB6: 0.1 | BC6: 0.098 | BD6: 0.095 | BE6: 0.093 | BF6: 0.09 | BG6: 0.087 | BH6: 0.085 | BI6: 0.082 | BJ6: 2
A7: Place | B7: Factor | C7: Local Pay | D7: nearest 5 | E7: Adj. (Local) | F7: Place | H7: Place | I7: Factor | J7: Local Pay | K7: nearest 5 | L7: Adj. (Local) | M7: Place | O7: Place | P7: Factor | Q7: Local Pay | R7: nearest 5 | S7: Adj. (Local) | T7: Place | V7: 5 | W7: 2 | X7: 2 | Y7: 2 | Z7: 1 | AA7: 1 | AB7: 3 | AC7: 3rd | AD7: ········· | AE7: 0.225 | AF7: 0.19 | AG7: 0.17 | AH7: 0.155 | AI7: 0.15 | AJ7: 0.145 | AK7: 0.14 | AL7: 0.13 | AM7: 0.127 | AN7: 0.12 | AO7: 0.115 | AP7: 0.11 | AQ7: 0.105 | AR7: 0.1 | AS7: 0.097 | AT7: 0.095 | AU7: 0.092 | AV7: 0.089 | AW7: 0.087 | AX7: 0.085 | AY7: 0.084 | AZ7: 0.082 | BA7: 0.078 | BB7: 0.076 | BC7: 0.075 | BD7: 0.073 | BE7: 0.071 | BF7: 0.068 | BG7: 0.065 | BH7: 0.063 | BI7: 0.058 | BJ7: 3
A8: =IF(ROW()-7>$A$4,"",ROW()-7) ->  | B8: =IF(A8="","",VLOOKUP(A8,_pay1,$A$4+1)) ->  | C8: =IF(B8="","",$F$4*B8) ->  | D8: =IF(C8="","",INT((C8+2.5)/5)*5) ->  | H8: =IF(ROW()-7>$H$4,"",ROW()-7) ->  | I8: =IF(H8="","",VLOOKUP(H8,_pay1,$H$4+1)) ->  | J8: =IF(I8="","",$M$4*I8) ->  | K8: =IF(J8="","",INT((J8+2.5)/5)*5) ->  | O8: =IF(ROW()-7>$O$4,"",ROW()-7) ->  | P8: =IF(O8="","",VLOOKUP(O8,_pay1,$O$4+1)) ->  | Q8: =IF(P8="","",$T$4*P8) ->  | R8: =IF(Q8="","",INT((Q8+2.5)/5)*5) ->  | V8: 6 | W8: 3 | X8: 2 | Y8: 2 | Z8: 2 | AA8: 1 | AB8: 4 | AD8: 4th | AE8: ········· | AF8: 0.14 | AG8: 0.125 | AH8: 0.12 | AI8: 0.11 | AJ8: 0.115 | AK8: 0.11 | AL8: 0.1 | AM8: 0.098 | AN8: 0.095 | AO8: 0.09 | AP8: 0.085 | AQ8: 0.084 | AR8: 0.083 | AS8: 0.081 | AT8: 0.08 | AU8: 0.078 | AV8: 0.076 | AW8: 0.075 | AX8: 0.072 | AY8: 0.071 | AZ8: 0.066 | BA8: 0.065 | BB8: 0.064 | BC8: 0.063 | BD8: 0.061 | BE8: 0.059 | BF8: 0.056 | BG8: 0.055 | BH8: 0.053 | BI8: 0.052 | BJ8: 4
V9: 7 | W9: 3 | X9: 3 | Y9: 2 | Z9: 2 | AA9: 2 | AB9: 5 | AC9: P | AE9: 5th | AF9: ········· | AG9: 0.1 | AH9: 0.095 | AI9: 0.095 | AJ9: 0.09 | AK9: 0.085 | AL9: 0.081 | AM9: 0.08 | AN9: 0.077 | AO9: 0.075 | AP9: 0.071 | AQ9: 0.069 | AR9: 0.068 | AS9: 0.067 | AT9: 0.065 | AU9: 0.065 | AV9: 0.064 | AW9: 0.063 | AX9: 0.061 | AY9: 0.06 | AZ9: 0.057 | BA9: 0.056 | BB9: 0.055 | BC9: 0.054 | BD9: 0.052 | BE9: 0.05 | BF9: 0.049 | BG9: 0.048 | BH9: 0.048 | BI9: 0.048 | BJ9: 5
V10: 8 | W10: 4 | X10: 3 | Y10: 2 | Z10: 2 | AA10: 2 | AB10: 6 | AD10: L | AF10: 6th | AG10: ········· | AH10: 0.07 | AI10: 0.075 | AJ10: 0.07 | AK10: 0.067 | AL10: 0.067 | AM10: 0.065 | AN10: 0.064 | AO10: 0.061 | AP10: 0.06 | AQ10: 0.058 | AR10: 0.057 | AS10: 0.056 | AT10: 0.055 | AU10: 0.055 | AV10: 0.054 | AW10: 0.054 | AX10: 0.053 | AY10: 0.052 | AZ10: 0.051 | BA10: 0.049 | BB10: 0.048 | BC10: 0.047 | BD10: 0.046 | BE10: 0.045 | BF10: 0.045 | BG10: 0.045 | BH10: 0.045 | BI10: 0.045 | BJ10: 6
V11: 9 | W11: 4 | X11: 3 | Y11: 3 | Z11: 2 | AA11: 2 | AB11: 7 | AE11: A | AG11: 7th | AH11: ········· | AI11: 0.06 | AJ11: 0.06 | AK11: 0.055 | AL11: 0.055 | AM11: 0.054 | AN11: 0.054 | AO11: 0.052 | AP11: 0.052 | AQ11: 0.05 | AR11: 0.05 | AS11: 0.05 | AT11: 0.05 | AU11: 0.05 | AV11: 0.049 | AW11: 0.049 | AX11: 0.048 | AY11: 0.046 | AZ11: 0.045 | BA11: 0.045 | BB11: 0.044 | BC11: 0.044 | BD11: 0.043 | BE11: 0.042 | BF11: 0.042 | BG11: 0.042 | BH11: 0.042 | BI11: 0.042 | BJ11: 7
V12: 10 | W12: 4 | X12: 4 | Y12: 3 | Z12: 2 | AA12: 2 | AB12: 8 | AF12: C | AH12: 8th | AI12: ········· | AJ12: 0.05 | AK12: 0.047 | AL12: 0.047 | AM12: 0.047 | AN12: 0.047 | AO12: 0.046 | AP12: 0.046 | AQ12: 0.045 | AR12: 0.045 | AS12: 0.045 | AT12: 0.045 | AU12: 0.045 | AV12: 0.045 | AW12: 0.045 | AX12: 0.045 | AY12: 0.042 | AZ12: 0.042 | BA12: 0.041 | BB12: 0.041 | BC12: 0.04 | BD12: 0.04 | BE12: 0.04 | BF12: 0.04 | BG12: 0.04 | BH12: 0.039 | BI12: 0.039 | BJ12: 8
V13: 11 | W13: 5 | X13: 4 | Y13: 3 | Z13: 3 | AA13: 2 | AB13: 9 | AG13: E | AI13: 9th | AJ13: ········· | AK13: 0.043 | AL13: 0.042 | AM13: 0.042 | AN13: 0.042 | AO13: 0.042 | AP13: 0.042 | AQ13: 0.041 | AR13: 0.041 | AS13: 0.041 | AT13: 0.041 | AU13: 0.041 | AV13: 0.041 | AW13: 0.041 | AX13: 0.041 | AY13: 0.039 | AZ13: 0.039 | BA13: 0.038 | BB13: 0.038 | BC13: 0.037 | BD13: 0.037 | BE13: 0.037 | BF13: 0.037 | BG13: 0.037 | BH13: 0.036 | BI13: 0.036 | BJ13: 9
V14: 12 | W14: 5 | X14: 4 | Y14: 3 | Z14: 3 | AA14: 2 | AB14: 10 | AJ14: 10th | AK14: ········· | AL14: 0.038 | AM14: 0.038 | AN14: 0.038 | AO14: 0.038 | AP14: 0.038 | AQ14: 0.037 | AR14: 0.037 | AS14: 0.037 | AT14: 0.037 | AU14: 0.037 | AV14: 0.037 | AW14: 0.037 | AX14: 0.037 | AY14: 0.036 | AZ14: 0.036 | BA14: 0.035 | BB14: 0.035 | BC14: 0.034 | BD14: 0.034 | BE14: 0.034 | BF14: 0.034 | BG14: 0.034 | BH14: 0.034 | BI14: 0.034 | BJ14: 10
V15: 13 | W15: 6 | X15: 5 | Y15: 4 | Z15: 3 | AA15: 2 | AB15: 11 | AI15: O | AK15: 11th | AL15: ········· | AM15: 0.034 | AN15: 0.034 | AO15: 0.034 | AP15: 0.034 | AQ15: 0.034 | AR15: 0.034 | AS15: 0.034 | AT15: 0.034 | AU15: 0.034 | AV15: 0.034 | AW15: 0.034 | AX15: 0.034 | AY15: 0.033 | AZ15: 0.033 | BA15: 0.033 | BB15: 0.033 | BC15: 0.032 | BD15: 0.032 | BE15: 0.032 | BF15: 0.032 | BG15: 0.032 | BH15: 0.032 | BI15: 0.032 | BJ15: 11
V16: 14 | W16: 6 | X16: 5 | Y16: 4 | Z16: 3 | AA16: 3 | AB16: 12 | AJ16: F | AL16: 12th | AM16: ········· | AN16: 0.031 | AO16: 0.031 | AP16: 0.031 | AQ16: 0.031 | AR16: 0.031 | AS16: 0.031 | AT16: 0.031 | AU16: 0.031 | AV16: 0.031 | AW16: 0.031 | AX16: 0.031 | AY16: 0.031 | AZ16: 0.031 | BA16: 0.031 | BB16: 0.031 | BC16: 0.03 | BD16: 0.03 | BE16: 0.03 | BF16: 0.03 | BG16: 0.03 | BH16: 0.03 | BI16: 0.03 | BJ16: 12
V17: 15 | W17: 6 | X17: 5 | Y17: 4 | Z17: 3 | AA17: 3 | AB17: 13 | AM17: 13th | AN17: ········· | AO17: 0.029 | AP17: 0.029 | AQ17: 0.029 | AR17: 0.029 | AS17: 0.029 | AT17: 0.029 | AU17: 0.029 | AV17: 0.029 | AW17: 0.029 | AX17: 0.029 | AY17: 0.029 | AZ17: 0.029 | BA17: 0.029 | BB17: 0.029 | BC17: 0.028 | BD17: 0.028 | BE17: 0.028 | BF17: 0.028 | BG17: 0.028 | BH17: 0.028 | BI17: 0.028 | BJ17: 13
V18: 16 | W18: 7 | X18: 6 | Y18: 4 | Z18: 4 | AA18: 3 | AB18: 14 | AL18: F | AN18: 14th | AO18: ········· | AP18: 0.027 | AQ18: 0.027 | AR18: 0.027 | AS18: 0.027 | AT18: 0.027 | AU18: 0.027 | AV18: 0.027 | AW18: 0.027 | AX18: 0.027 | AY18: 0.027 | AZ18: 0.027 | BA18: 0.027 | BB18: 0.027 | BC18: 0.027 | BD18: 0.027 | BE18: 0.027 | BF18: 0.027 | BG18: 0.027 | BH18: 0.027 | BI18: 0.027 | BJ18: 14
B19: =SUM(B8:B18) ->  | C19: =SUM(C8:C18) ->  | D19: =SUM(D8:D18) ->  | E19: =SUM(E8:E18) -> 0 | I19: =SUM(I8:I18) ->  | J19: =SUM(J8:J18) ->  | K19: =SUM(K8:K18) ->  | L19: =SUM(L8:L18) -> 0 | P19: =SUM(P8:P18) ->  | Q19: =SUM(Q8:Q18) ->  | R19: =SUM(R8:R18) ->  | S19: =SUM(S8:S18) -> 0 | V19: 17 | W19: 7 | X19: 6 | Y19: 5 | Z19: 4 | AA19: 3 | AB19: 15 | AM19: I | AO19: 15th | AP19: ········· | AQ19: 0.025 | AR19: 0.025 | AS19: 0.025 | AT19: 0.025 | AU19: 0.025 | AV19: 0.026 | AW19: 0.026 | AX19: 0.026 | AY19: 0.026 | AZ19: 0.026 | BA19: 0.026 | BB19: 0.026 | BC19: 0.026 | BD19: 0.026 | BE19: 0.026 | BF19: 0.026 | BG19: 0.026 | BH19: 0.026 | BI19: 0.026 | BJ19: 15
D20: =IF(C4=91," To use this table, enter player divisions on Scores page",IF(C4>27,"Field limit exceeded. Use printed Payout tables.","")) -> To use this table, enter player divisions on Scores page | K20: =IF(J4=91," To use this table, enter player divisions on Scores page",IF(J4>27,"Field limit exceeded. Use printed Payout tables.","")) -> To use this table, enter player divisions on Scores page | R20: =IF(Q4=91," To use this table, enter player divisions on Scores page",IF(Q4>27,"Field limit exceeded. Use printed Payout tables.","")) -> To use this table, enter player divisions on Scores page | V20: 18 | W20: 8 | X20: 6 | Y20: 5 | Z20: 4 | AA20: 3 | AB20: 16 | AN20: N | AP20: 16th | AQ20: ········· | AR20: 0.023 | AS20: 0.023 | AT20: 0.023 | AU20: 0.023 | AV20: 0.025 | AW20: 0.025 | AX20: 0.025 | AY20: 0.025 | AZ20: 0.025 | BA20: 0.025 | BB20: 0.025 | BC20: 0.025 | BD20: 0.025 | BE20: 0.025 | BF20: 0.025 | BG20: 0.025 | BH20: 0.025 | BI20: 0.025 | BJ20: 16
H21: WOMEN LEGEND DIVISION | O21: WOMEN SGM PRO DIVISION | V21: 19 | W21: 8 | X21: 7 | Y21: 5 | Z21: 4 | AA21: 3 | AB21: 17 | AO21: I | AQ21: 17th | AR21: ········· | AS21: 0.022 | AT21: 0.022 | AU21: 0.022 | AV21: 0.024 | AW21: 0.024 | AX21: 0.024 | AY21: 0.024 | AZ21: 0.024 | BA21: 0.024 | BB21: 0.024 | BC21: 0.024 | BD21: 0.024 | BE21: 0.024 | BF21: 0.024 | BG21: 0.024 | BH21: 0.024 | BI21: 0.024 | BJ21: 17
L22: Add (or reduce) local cash here* > | M22: 0 | S22: Add (or reduce) local cash here* > | T22: 0 | V22: 20 | W22: 8 | X22: 7 | Y22: 5 | Z22: 4 | AA22: 3 | AB22: 18 | AP22: S | AR22: 18th | AS22: ········· | AT22: 0.021 | AU22: 0.021 | AV22: 0.023 | AW22: 0.023 | AX22: 0.023 | AY22: 0.023 | AZ22: 0.023 | BA22: 0.023 | BB22: 0.023 | BC22: 0.023 | BD22: 0.023 | BE22: 0.023 | BF22: 0.023 | BG22: 0.023 | BH22: 0.023 | BI22: 0.023 | BJ22: 18
H23: # Paid | J23: Field Size | L23: Total Fees: | M23: =Cover!G18 -> 0 | O23: # Paid | Q23: Field Size | S23: Total Fees: | T23: =Cover!G17 -> 0 | V23: 21 | W23: 9 | X23: 7 | Y23: 6 | Z23: 5 | AA23: 4 | AB23: 19 | AQ23: H | AS23: 19th | AT23: ········· | AU23: 0.02 | AV23: 0.022 | AW23: 0.022 | AX23: 0.022 | AY23: 0.022 | AZ23: 0.022 | BA23: 0.022 | BB23: 0.022 | BC23: 0.022 | BD23: 0.022 | BE23: 0.022 | BF23: 0.022 | BG23: 0.022 | BH23: 0.022 | BI23: 0.022 | BJ23: 19
H24: =VLOOKUP(J24,paypct,I25,FALSE) ->  | J24: =IF(Cover!F18=0,91,Cover!F18) -> 91 | L24: Net Purse: | M24: =M23+M22 -> 0 | O24: =VLOOKUP(Q24,paypct,P25,FALSE) ->  | Q24: =IF(Cover!F17=0,91,Cover!F17) -> 91 | S24: Net Purse: | T24: =T23+T22 -> 0 | V24: 22 | W24: 9 | X24: 8 | Y24: 6 | Z24: 5 | AA24: 4 | AB24: 20 | AT24: 20th | AU24: ········· | AV24: 0.021 | AW24: 0.021 | AX24: 0.021 | AY24: 0.021 | AZ24: 0.021 | BA24: 0.021 | BB24: 0.021 | BC24: 0.021 | BD24: 0.021 | BE24: 0.021 | BF24: 0.021 | BG24: 0.021 | BH24: 0.021 | BI24: 0.021 | BJ24: 20
I25: =IF(L25=33%,3,IF(L25=40%,2,IF(L25=25%,4,IF(L25=20%,5,6)))) -> 4 | K25: Choose Payout Percentage> | L25: 0.25 | P25: =IF(S25=33%,3,IF(S25=40%,2,IF(S25=25%,4,IF(S25=20%,5,6)))) -> 4 | R25: Choose Payout Percentage> | S25: 0.25 | V25: 23 | W25: 10 | X25: 8 | Y25: 6 | Z25: 5 | AA25: 4 | AB25: 21 | AU25: 21st | AV25: ········· | AW25: 0.02 | AX25: 0.02 | AY25: 0.02 | AZ25: 0.02 | BA25: 0.02 | BB25: 0.02 | BC25: 0.02 | BD25: 0.02 | BE25: 0.02 | BF25: 0.02 | BG25: 0.02 | BH25: 0.02 | BI25: 0.02 | BJ25: 21
I26: Prelim | J26: Proposed | K26: Round to | L26: Manual | M26: Final | P26: Prelim | Q26: Proposed | R26: Round to | S26: Manual | T26: Final | V26: 24 | W26: 10 | X26: 8 | Y26: 6 | Z26: 5 | AA26: 4 | AB26: 22 | AV26: 22nd | AW26: ········· | AX26: 0.019 | AY26: 0.019 | AZ26: 0.019 | BA26: 0.019 | BB26: 0.019 | BC26: 0.019 | BD26: 0.019 | BE26: 0.019 | BF26: 0.019 | BG26: 0.019 | BH26: 0.019 | BI26: 0.019 | BJ26: 22
H27: Place | I27: Factor | J27: Local Pay | K27: nearest 5 | L27: Adj. (Local) | M27: Place | O27: Place | P27: Factor | Q27: Local Pay | R27: nearest 5 | S27: Adj. (Local) | T27: Place | V27: 25 | W27: 10 | X27: 9 | Y27: 7 | Z27: 5 | AA27: 4 | AB27: 23 | AW27: 23rd | AX27: ········· | AY27: 0.018 | AZ27: 0.018 | BA27: 0.018 | BB27: 0.018 | BC27: 0.018 | BD27: 0.018 | BE27: 0.018 | BF27: 0.018 | BG27: 0.018 | BH27: 0.017 | BI27: 0.017 | BJ27: 23
H28: =IF(ROW()-27>$H$24,"",ROW()-27) ->  | I28: =IF(H28="","",VLOOKUP(H28,_pay1,$H$24+1)) ->  | J28: =IF(I28="","",$M$24*I28) ->  | K28: =IF(J28="","",INT((J28+2.5)/5)*5) ->  | O28: =IF(ROW()-27>$O$24,"",ROW()-27) ->  | P28: =IF(O28="","",VLOOKUP(O28,_pay1,$O$24+1)) ->  | Q28: =IF(P28="","",$T$24*P28) ->  | R28: =IF(Q28="","",INT((Q28+2.5)/5)*5) ->  | V28: 26 | W28: 11 | X28: 9 | Y28: 7 | Z28: 6 | AA28: 4 | AB28: 24 | AX28: 24th | AY28: ········· | AZ28: 0.017 | BA28: 0.017 | BB28: 0.017 | BC28: 0.017 | BD28: 0.017 | BE28: 0.017 | BF28: 0.017 | BG28: 0.017 | BH28: 0.017 | BI28: 0.017 | BJ28: 24
H29: =IF(ROW()-27>$H$24,"",ROW()-27) ->  | I29: =IF(H29="","",VLOOKUP(H29,_pay1,$H$24+1)) ->  | J29: =IF(I29="","",$M$24*I29) ->  | K29: =IF(J29="","",INT((J29+2.5)/5)*5) ->  | O29: =IF(ROW()-27>$O$24,"",ROW()-27) ->  | P29: =IF(O29="","",VLOOKUP(O29,_pay1,$O$24+1)) ->  | Q29: =IF(P29="","",$T$24*P29) ->  | R29: =IF(Q29="","",INT((Q29+2.5)/5)*5) ->  | V29: 27 | W29: 11 | X29: 9 | Y29: 7 | Z29: 6 | AA29: 5 | AB29: 25 | AY29: 25th | AZ29: ········· | BA29: 0.016 | BB29: 0.016 | BC29: 0.016 | BD29: 0.016 | BE29: 0.016 | BF29: 0.016 | BG29: 0.016 | BH29: 0.016 | BI29: 0.016 | BJ29: 25
D30: =IF(C34=91," To use this table, enter player divisions on Scores page",IF(C34>83,"Field limit exceeded. Use printed Payout tables.","")) -> To use this table, enter player divisions on Scores page | J30: =SUM(J28:J29) ->  | K30: =SUM(K28:K29) ->  | L30: =SUM(L28:L29) -> 0 | P30: =SUM(P28:P29) ->  | Q30: =SUM(Q28:Q29) ->  | R30: =SUM(R28:R29) ->  | S30: =SUM(S28:S29) -> 0 | V30: 28 | W30: 12 | X30: 10 | Y30: 7 | Z30: 6 | AA30: 5 | AB30: 26 | AZ30: 26th | BA30: ········· | BB30: 0.016 | BC30: 0.015 | BD30: 0.015 | BE30: 0.015 | BF30: 0.015 | BG30: 0.015 | BH30: 0.015 | BI30: 0.015 | BJ30: 26
A31: OPEN PRO DIVISION | H31: MASTER PRO DIVISION | O31: GRANDMASTER PRO DIVISION | V31: 29 | W31: 12 | X31: 10 | Y31: 8 | Z31: 6 | AA31: 5 | AB31: 27 | BA31: 27th | BB31: ········· | BC31: 0.015 | BD31: 0.015 | BE31: 0.014 | BF31: 0.014 | BG31: 0.014 | BH31: 0.014 | BI31: 0.014 | BJ31: 27
E32: Add (or reduce) local cash here* > | L32: Add (or reduce) local cash here* > | M32: 0 | S32: Add (or reduce) local cash here* > | T32: 0 | V32: 30 | W32: 12 | X32: 10 | Y32: 8 | Z32: 6 | AA32: 5 | AB32: 28 | BB32: 28th | BC32: ········· | BD32: 0.014 | BE32: 0.014 | BF32: 0.014 | BG32: 0.013 | BH32: 0.013 | BI32: 0.013 | BJ32: 28
A33: # Paid | C33: Field Size | E33: Total Fees: | F33: =Cover!G7 -> 0 | H33: # Paid | J33: Field Size | L33: Total Fees: | M33: =Cover!G8 -> 0 | O33: # Paid | Q33: Field Size | R33: s | S33: Total Fees: | T33: =Cover!G9 -> 0 | V33: 31 | W33: 13 | X33: 11 | Y33: 8 | Z33: 7 | AA33: 5 | AB33: 29 | BC33: 29th | BD33: ········· | BE33: 0.013 | BF33: 0.013 | BG33: 0.013 | BH33: 0.013 | BI33: 0.013 | BJ33: 29
A34: =VLOOKUP(C34,paypct,B35,FALSE) ->  | C34: =IF(Cover!F7=0,91,Cover!F7) -> 91 | E34: Net Purse: | F34: =F33+F32 -> 0 | H34: =VLOOKUP(J34,paypct,I35,FALSE) ->  | J34: =IF(Cover!F8=0,91,Cover!F8) -> 91 | L34: Net Purse: | M34: =M33+M32 -> 0 | O34: =VLOOKUP(Q34,paypct,P35,FALSE) ->  | Q34: =IF(Cover!F9=0,91,Cover!F9) -> 91 | S34: Net Purse: | T34: =T33+T32 -> 0 | V34: 32 | W34: 13 | X34: 11 | Y34: 8 | Z34: 7 | AA34: 5 | AB34: 30 | BD34: 30th | BE34: ········· | BF34: 0.013 | BG34: 0.013 | BH34: 0.013 | BI34: 0.013 | BJ34: 30
B35: =IF(E35=33%,3,IF(E35=40%,2,IF(E35=25%,4,IF(E35=20%,5,6)))) -> 4 | D35: Choose Payout Percentage> | E35: 0.25 | I35: =IF(L35=33%,3,IF(L35=40%,2,IF(L35=25%,4,IF(L35=20%,5,6)))) -> 4 | K35: Choose Payout Percentage> | L35: 0.25 | P35: =IF(S35=33%,3,IF(S35=40%,2,IF(S35=25%,4,IF(S35=20%,5,6)))) -> 4 | R35: Choose Payout Percentage> | S35: 0.25 | V35: 33 | W35: 14 | X35: 11 | Y35: 9 | Z35: 7 | AA35: 5 | AB35: 31 | BE35: 31st | BF35: ········· | BG35: 0.013 | BH35: 0.013 | BI35: 0.013 | BJ35: 31
B36: Prelim | C36: Proposed | D36: Round to | E36: Manual | F36: Final | I36: Prelim | J36: Proposed | K36: Round to | L36: Manual | M36: Final | P36: Prelim | Q36: Proposed | R36: Round to | S36: Manual | T36: Final | V36: 34 | W36: 14 | X36: 12 | Y36: 9 | Z36: 7 | AA36: 6 | AB36: 32 | BF36: 32nd | BG36: ········· | BH36: 0.012 | BI36: 0.012 | BJ36: 32
A37: Place | B37: Factor | C37: Local Pay | D37: nearest 5 | E37: Adj. (Local) | F37: Place | H37: Place | I37: Factor | J37: Local Pay | K37: nearest 5 | L37: Adj. (Local) | M37: Place | O37: Place | P37: Factor | Q37: Local Pay | R37: nearest 5 | S37: Adj. (Local) | T37: Place | V37: 35 | W37: 14 | X37: 12 | Y37: 9 | Z37: 7 | AA37: 6 | AB37: 33 | BG37: 33rd | BH37: ········· | BI37: 0.012 | BJ37: 33
A38: =IF(ROW()-37>$A$34,"",ROW()-37) ->  | B38: =IF(A38="","",VLOOKUP(A38,_pay1,$A$34+1)) ->  | C38: =IF(B38="","",$F$34*B38) ->  | D38: =IF(C38="","",INT((C38+2.5)/5)*5) ->  | H38: =IF(ROW()-37>$H$34,"",ROW()-37) ->  | I38: =IF(H38="","",VLOOKUP(H38,_pay1,$H$34+1)) ->  | J38: =IF(I38="","",$M$34*I38) ->  | K38: =IF(J38="","",INT((J38+2.5)/5)*5) ->  | O38: =IF(ROW()-37>$O$34,"",ROW()-37) ->  | P38: =IF(O38="","",VLOOKUP(O38,_pay1,$O$34+1)) ->  | Q38: =IF(P38="","",$T$34*P38) ->  | R38: =IF(Q38="","",INT((Q38+2.5)/5)*5) ->  | V38: 36 | W38: 15 | X38: 12 | Y38: 9 | Z38: 8 | AA38: 6 | AC38: =SUM(AD39:AD$42) -> 0.157 | AD38: 0.05 | AE38: 0.05 | AF38: 0.03140666218 | AG38: =SUM(AF$32:AF38) -> 0.03140666218
V39: 37 | W39: 15 | X39: 13 | Y39: 10 | Z39: 8 | AA39: 6 | AC39: =SUM(AD40:AD$42) -> 0.112 | AD39: 0.045 | AE39: 0.045 | AF39: 0.02848968594 | AG39: =SUM(AF$32:AF39) -> 0.05989634812
V40: 38 | W40: 16 | X40: 13 | Y40: 10 | Z40: 8 | AA40: 6 | AC40: =SUM(AD41:AD$42) -> 0.071 | AD40: 0.041 | AE40: 0.041 | AF40: 0.02614245207 | AG40: =SUM(AF$32:AF40) -> 0.08603880019
V41: 39 | W41: 16 | X41: 13 | Y41: 10 | Z41: 8 | AA41: 6 | AC41: =SUM(AD42:AD$42) -> 0.034 | AD41: 0.037 | AE41: 0.037 | AF41: 0.02420713278 | AG41: =SUM(AF$32:AF41) -> 0.110245933
V42: 40 | W42: 16 | X42: 14 | Y42: 10 | Z42: 8 | AA42: 6 | AC42: 0 | AD42: 0.034 | AE42: 0.034 | AF42: 0.02258014322 | AG42: =SUM(AF$32:AF42) -> 0.1328260762
V43: 41 | W43: 17 | X43: 14 | Y43: 11 | Z43: 9 | AA43: 7 | AD43: =SUM(AE44:AE$50) -> 0.167 | AE43: 0.031 | AF43: 0.02119049212 | AG43: =SUM(AF$32:AF43) -> 0.1540165683
V44: 42 | W44: 17 | X44: 14 | Y44: 11 | Z44: 9 | AA44: 7 | AD44: =SUM(AE45:AE$50) -> 0.138 | AE44: 0.029 | AF44: 0.01998778665 | AG44: =SUM(AF$32:AF44) -> 0.1740043549
V45: 43 | W45: 18 | X45: 15 | Y45: 11 | Z45: 9 | AA45: 7 | AD45: =SUM(AE46:AE$50) -> 0.111 | AE45: 0.027 | AF45: 0.01893519955 | AG45: =SUM(AF$32:AF45) -> 0.1929395545
V46: 44 | W46: 18 | X46: 15 | Y46: 11 | Z46: 9 | AA46: 7 | AD46: =SUM(AE47:AE$50) -> 0.086 | AE46: 0.025 | AF46: 0.01800514956 | AG46: =SUM(AF$32:AF46) -> 0.2109447041
V47: 45 | W47: 18 | X47: 15 | Y47: 12 | Z47: 9 | AA47: 7 | AD47: =SUM(AE48:AE$50) -> 0.063 | AE47: 0.023 | AF47: 0.01717654316 | AG47: =SUM(AF$32:AF47) -> 0.2281212472
V48: 46 | W48: 19 | X48: 16 | Y48: 12 | Z48: 10 | AA48: 7 | AD48: =SUM(AE49:AE$50) -> 0.041 | AE48: 0.022 | AF48: 0.01643295401 | AG48: =SUM(AF$32:AF48) -> 0.2445542012
V49: 47 | W49: 19 | X49: 16 | Y49: 12 | Z49: 10 | AA49: 8 | AD49: =SUM(AE50:AE$50) -> 0.02 | AE49: 0.021 | AF49: 0.01576138667 | AG49: =SUM(AF$32:AF49) -> 0.2603155879
P50: =SUM(P38:P49) ->  | Q50: =SUM(Q38:Q49) ->  | R50: =SUM(R38:R49) ->  | S50: =SUM(S38:S49) -> 0 | V50: 48 | W50: 20 | X50: 16 | Y50: 12 | Z50: 10 | AA50: 8 | AD50: 0 | AE50: 0.02 | AF50: 0.01515141604 | AG50: =SUM(AF$32:AF50) -> 0.2754670039
R51: =IF(Q34=91," To use this table, enter player divisions on Scores page",IF(Q34>31,"Field limit exceeded. Use printed Payout tables.","")) -> To use this table, enter player divisions on Scores page | V51: 49 | W51: 20 | X51: 17 | Y51: 13 | Z51: 10 | AA51: 8 | AF51: 0.01459457509 | AG51: =SUM(AF$32:AF51) -> 0.290061579
O52: SENIOR GM PRO DIVISION | V52: 50 | W52: 20 | X52: 17 | Y52: 13 | Z52: 10 | AA52: 8 | AF52: 0.01408391084 | AG52: =SUM(AF$32:AF52) -> 0.3041454899
S53: Add (or reduce) local cash here* > | T53: 0 | V53: 51 | W53: 21 | X53: 17 | Y53: 13 | Z53: 11 | AA53: 8 | AF53: 0.01361365672 | AG53: =SUM(AF$32:AF53) -> 0.3177591466
O54: # Paid | Q54: Field Size | S54: Total Fees: | T54: =Cover!G10 -> 0 | V54: 52 | W54: 21 | X54: 18 | Y54: 13 | Z54: 11 | AA54: 8 | AF54: 0.01317898707 | AG54: =SUM(AF$32:AF54) -> 0.3309381337
O55: =VLOOKUP(Q55,paypct,P56,FALSE) ->  | Q55: =IF(Cover!F10=0,91,Cover!F10) -> 91 | S55: Net Purse: | T55: =T54+T53 -> 0 | V55: 53 | W55: 22 | X55: 18 | Y55: 14 | Z55: 11 | AA55: 8 | AF55: 0.01277583063 | AG55: =SUM(AF$32:AF55) -> 0.3437139643
P56: =IF(S56=33%,3,IF(S56=40%,2,IF(S56=25%,4,IF(S56=20%,5,6)))) -> 4 | R56: Choose Payout Percentage> | S56: 0.25 | V56: 54 | W56: 22 | X56: 18 | Y56: 14 | Z56: 11 | AA56: 9 | AF56: 0.01240072698 | AG56: =SUM(AF$32:AF56) -> 0.3561146913
P57: Prelim | Q57: Proposed | R57: Round to | S57: Manual | T57: Final | V57: 55 | W57: 22 | X57: 19 | Y57: 14 | Z57: 11 | AA57: 9 | AF57: 0.0120507148 | AG57: =SUM(AF$32:AF57) -> 0.3681654061
O58: Place | P58: Factor | Q58: Local Pay | R58: nearest 5 | S58: Adj. (Local) | T58: Place | V58: 56 | W58: 23 | X58: 19 | Y58: 14 | Z58: 12 | AA58: 9 | AF58: 0.01172324401 | AG58: =SUM(AF$32:AF58) -> 0.3798886501
O59: =IF(ROW()-58>$O$55,"",ROW()-58) ->  | P59: =IF(O59="","",VLOOKUP(O59,_pay1,$O$55+1)) ->  | Q59: =IF(P59="","",$T$55*P59) ->  | R59: =IF(Q59="","",INT((Q59+2.5)/5)*5) ->  | V59: 57 | W59: 23 | X59: 19 | Y59: 15 | Z59: 12 | AA59: 9 | AF59: 0.01141610592 | AG59: =SUM(AF$32:AF59) -> 0.391304756
V60: 58 | W60: 24 | X60: 20 | Y60: 15 | Z60: 12 | AA60: 9 | AF60: 0.01112737729 | AG60: =SUM(AF$32:AF60) -> 0.4024321333
V61: 59 | W61: 24 | X61: 20 | Y61: 15 | Z61: 12 | AA61: 9 | AF61: 0.01085537514 | AG61: =SUM(AF$32:AF61) -> 0.4132875084
V62: 60 | W62: 24 | X62: 20 | Y62: 15 | Z62: 12 | AA62: 9 | AF62: 0.01059861986 | AG62: =SUM(AF$32:AF62) -> 0.4238861283
V63: 61 | W63: 25 | X63: 21 | Y63: 16 | Z63: 13 | AA63: 10 | AF63: 0.0103558051 | AG63: =SUM(AF$32:AF63) -> 0.4342419334
V64: 62 | W64: 25 | X64: 21 | Y64: 16 | Z64: 13 | AA64: 10 | AF64: 0.01012577275 | AG64: =SUM(AF$32:AF64) -> 0.4443677061
V65: 63 | W65: 26 | X65: 21 | Y65: 16 | Z65: 13 | AA65: 10
P66: =SUM(P59:P65) ->  | Q66: =SUM(Q59:Q65) ->  | R66: =SUM(R59:R65) ->  | S66: =SUM(S59:S65) -> 0 | V66: 64 | W66: 26 | X66: 22 | Y66: 16 | Z66: 13 | AA66: 10
V67: 65 | W67: 26 | X67: 22 | Y67: 17 | Z67: 13 | AA67: 10
V68: 66 | W68: 27 | X68: 22 | Y68: 17 | Z68: 14 | AA68: 10
V69: 67 | W69: 27 | X69: 23 | Y69: 17 | Z69: 14 | AA69: 11
V70: 68 | W70: 28 | X70: 23 | Y70: 17 | Z70: 14 | AA70: 11
B71: =SUM(B38:B70) ->  | C71: =SUM(C38:C70) ->  | D71: =SUM(D38:D70) ->  | E71: =SUM(E38:E70) -> 0 | I71: =SUM(I38:I70) ->  | J71: =SUM(J38:J70) ->  | K71: =SUM(K38:K70) ->  | L71: =SUM(L38:L70) -> 0 | V71: 69 | W71: 28 | X71: 23 | Y71: 18 | Z71: 14 | AA71: 11
A72: * Can be a negative number when expenses like trophies involved | K72: =IF(Q70=91," To use this table, enter player divisions on Scores page >",IF(Q70>4,"Field limit exceeded. Use printed Payout tables.","")) ->  | V72: 70 | W72: 28 | X72: 24 | Y72: 18 | Z72: 14 | AA72: 11
V73: 71 | W73: 29 | X73: 24 | Y73: 18 | Z73: 15 | AA73: 11
A74: SENIOR LEGENDS DIVISION | H74: GRAND LEGENDS DIVISION | O74: LEGENDS DIVISION | V74: 72 | W74: 29 | X74: 24 | Y74: 18 | Z74: 15 | AA74: 11
E75: Add (or reduce) local cash here* > | F75: 0 | L75: Add (or reduce) local cash here* > | M75: 0 | S75: Add (or reduce) local cash here* > | T75: 0 | V75: 73 | W75: 30 | X75: 25 | Y75: 19 | Z75: 15 | AA75: 11
A76: # Paid | C76: Field Size | E76: Total Fees: | F76: =Cover!G12 -> 0 | H76: # Paid | J76: Field Size | L76: Total Fees: | M76: =Cover!G13 -> 0 | O76: # Paid | Q76: Field Size | S76: Total Fees: | T76: =Cover!G11 -> 0 | V76: 74 | W76: 30 | X76: 25 | Y76: 19 | Z76: 15 | AA76: 12
A77: =VLOOKUP(C77,paypct,B78,FALSE) ->  | C77: =IF(Cover!F12=0,91,Cover!F12) -> 91 | E77: Net Purse: | F77: =F76+F75 -> 0 | H77: =VLOOKUP(J77,paypct,I78,FALSE) ->  | J77: =IF(Cover!F13=0,91,Cover!F13) -> 91 | L77: Net Purse: | M77: =M76+M75 -> 0 | O77: =VLOOKUP(Q77,paypct,P78,FALSE) ->  | Q77: =IF(Cover!F11=0,91,Cover!F11) -> 91 | S77: Net Purse: | T77: =T76+T75 -> 0 | V77: 75 | W77: 30 | X77: 25 | Y77: 19 | Z77: 15 | AA77: 12
B78: =IF(E78=33%,3,IF(E78=40%,2,IF(E78=25%,4,IF(E78=20%,5,6)))) -> 4 | D78: Choose Payout Percentage> | E78: 0.25 | I78: =IF(L78=33%,3,IF(L78=40%,2,IF(L78=25%,4,IF(L78=20%,5,6)))) -> 4 | K78: Choose Payout Percentage> | L78: 0.25 | P78: =IF(S78=33%,3,IF(S78=40%,2,IF(S78=25%,4,IF(S78=20%,5,6)))) -> 4 | R78: Choose Payout Percentage> | S78: 0.25 | V78: 76 | W78: 31 | X78: 26 | Y78: 19 | Z78: 16 | AA78: 12
B79: Prelim | C79: Proposed | D79: Round to | E79: Manual | F79: Final | I79: Prelim | J79: Proposed | K79: Round to | L79: Manual | M79: Final | P79: Prelim | Q79: Proposed | R79: Round to | S79: Manual | T79: Final | V79: 77 | W79: 31 | X79: 26 | Y79: 20 | Z79: 16 | AA79: 12
A80: Place | B80: Factor | C80: Local Pay | D80: nearest 5 | E80: Adj. (Local) | F80: Place | H80: Place | I80: Factor | J80: Local Pay | K80: nearest 5 | L80: Adj. (Local) | M80: Place | O80: Place | P80: Factor | Q80: Local Pay | R80: nearest 5 | S80: Adj. (Local) | T80: Place | V80: 78 | W80: 32 | X80: 26 | Y80: 20 | Z80: 16 | AA80: 12
A81: =IF(ROW()-80>$A$77,"",ROW()-80) ->  | B81: =IF(A81="","",VLOOKUP(A81,_pay1,$A$77+1)) ->  | C81: =IF(B81="","",$F$77*B81) ->  | D81: =IF(C81="","",INT((C81+2.5)/5)*5) ->  | H81: =IF(ROW()-80>$H$77,"",ROW()-80) ->  | I81: =IF(H81="","",VLOOKUP(H81,_pay1,$H$77+1)) ->  | J81: =IF(I81="","",$M$77*I81) ->  | K81: =IF(J81="","",INT((J81+2.5)/5)*5) ->  | O81: =IF(ROW()-80>$O$77,"",ROW()-80) ->  | P81: =IF(O81="","",VLOOKUP(O81,_pay1,$O$77+1)) ->  | Q81: =IF(P81="","",$T$77*P81) ->  | R81: =IF(Q81="","",INT((Q81+2.5)/5)*5) ->  | V81: 79 | W81: 32 | X81: 27 | Y81: 20 | Z81: 16 | AA81: 12
A82: =IF(ROW()-80>$A$77,"",ROW()-80) ->  | B82: =IF(A82="","",VLOOKUP(A82,_pay1,$A$77+1)) ->  | C82: =IF(B82="","",$F$77*B82) ->  | D82: =IF(C82="","",INT((C82+2.5)/5)*5) ->  | H82: =IF(ROW()-80>$H$77,"",ROW()-80) ->  | I82: =IF(H82="","",VLOOKUP(H82,_pay1,$H$77+1)) ->  | J82: =IF(I82="","",$M$77*I82) ->  | K82: =IF(J82="","",INT((J82+2.5)/5)*5) ->  | O82: =IF(ROW()-80>$O$77,"",ROW()-80) ->  | P82: =IF(O82="","",VLOOKUP(O82,_pay1,$O$77+1)) ->  | Q82: =IF(P82="","",$T$77*P82) ->  | R82: =IF(Q82="","",INT((Q82+2.5)/5)*5) ->  | V82: 80 | W82: 32 | X82: 27 | Y82: 20 | Z82: 16 | AA82: 12
B83: =SUM(B81:B82) ->  | C83: =SUM(C81:C82) ->  | D83: =SUM(D81:D82) ->  | E83: =SUM(E81:E82) -> 0 | I83: =SUM(I81:I82) ->  | J83: =SUM(J81:J82) ->  | K83: =SUM(K81:K82) ->  | L83: =SUM(L81:L82) -> 0 | P83: =SUM(P81:P82) ->  | Q83: =SUM(Q81:Q82) ->  | R83: =SUM(R81:R82) ->  | S83: =SUM(S81:S82) -> 0 | V83: 81 | W83: 33 | X83: 27 | Y83: 21 | Z83: 17 | AA83: 13
V84: 82 | W84: 33 | X84: 28 | Y84: 21 | Z84: 17 | AA84: 13

Sheet Am.Jr.Payouts
A1: ADVANCED DIVISION | H1: ADVANCED MASTERS DIVISION | O1: ADVANCED WOMEN DIVISION | BE1: 0.33 | BH1: 0.45 | BJ1: 0.25 | BL1: 0.2 | BN1: 0.15
E2: Add (or reduce) local cash here* > | F2: 0 | L2: Add (or reduce) local cash here* > | M2: 0 | S2: Add (or reduce) local cash here* > | T2: 0 | BE2: Field | BF2: # paid | BH2: Field | BI2: # paid | BJ2: Field | BK2: # paid | BL2: Field | BM2: # paid | BN2: Field | BO2: # paid
A3: # Paid | C3: Field Size | D3: Pay pct | E3: Total Fees: | F3: =Cover!G21 -> 0 | H3: # Paid | J3: Field Size | K3: Pay pct | L3: Total Fees: | M3: =Cover!G25 -> 0 | O3: # Paid | Q3: Field Size | R3: Pay pct | S3: Total Fees: | T3: =Cover!G33 -> 0
A4: =IF(D4=45%,VLOOKUP(C4,dbd,2,FALSE),IF(D4=33%,VLOOKUP(C4,dbe,2,FALSE),IF(D4=25%,VLOOKUP(C4,dbf,2,FALSE),IF(D4=20%,VLOOKUP(C4,dbg,2,FALSE),VLOOKUP(C4,dbh,2,FALSE))))) -> 23 | C4: =IF(Cover!F21=0,91,Cover!F21) -> 91 | D4: 0.25 | E4: Net Purse: | F4: =F3+F2 -> 0 | H4: =IF(K4=45%,VLOOKUP(J4,dbd,2,FALSE),IF(K4=33%,VLOOKUP(J4,dbe,2,FALSE),IF(K4=25%,VLOOKUP(J4,dbf,2,FALSE),IF(K4=20%,VLOOKUP(J4,dbg,2,FALSE),VLOOKUP(J4,dbh,2,FALSE))))) -> 23 | J4: =IF(Cover!F25=0,91,Cover!F25) -> 91 | K4: 0.25 | L4: Net Purse: | M4: =M3+M2 -> 0 | O4: =IF(R4=45%,VLOOKUP(Q4,dbd,2,FALSE),IF(R4=33%,VLOOKUP(Q4,dbe,2,FALSE),IF(R4=25%,VLOOKUP(Q4,dbf,2,FALSE),IF(R4=20%,VLOOKUP(Q4,dbg,2,FALSE),VLOOKUP(Q4,dbh,2,FALSE))))) -> 23 | Q4: =IF(Cover!F33=0,91,Cover!F33) -> 91 | R4: 0.25 | S4: Net Purse: | T4: =T3+T2 -> 0 | BE4: 1 | BF4: 1 | BH4: 1 | BI4: 1 | BJ4: 1 | BK4: 1 | BL4: 1 | BM4: 1 | BN4: 1 | BO4: 1
D5: =IF(C4=91," To use this table, enter player divisions on Scores page",IF(C4>75,"Field limit exceeded. Use printed Payout tables.","")) -> To use this table, enter player divisions on Scores page | K5: =IF(J4=91," To use this table, enter player divisions on Scores page",IF(J4>30,"Field limit exceeded. Use printed Payout tables.","")) -> To use this table, enter player divisions on Scores page | R5: =IF(Q4=91," To use this table, enter player divisions on Scores page",IF(Q4>30,"Field limit exceeded. Use printed Payout tables.","")) -> To use this table, enter player divisions on Scores page | BE5: 2 | BF5: 1 | BH5: 2 | BI5: 1 | BJ5: 2 | BK5: 1 | BL5: 2 | BM5: 1 | BN5: 2 | BO5: 1
B6: Prelim | C6: Proposed | D6: Round to | E6: Manual | F6: Final | I6: Prelim | J6: Proposed | K6: Round to | L6: Manual | M6: Final | P6: Prelim | Q6: Proposed | R6: Round to | S6: Manual | T6: Final | BE6: 3 | BF6: =ROUND(0.33*BE6,0) -> 1 | BH6: 3 | BI6: 2 | BJ6: 3 | BK6: =ROUND(0.25*BJ6,0) -> 1 | BL6: 3 | BM6: 1 | BN6: 3 | BO6: 1
A7: Place | B7: Factor | C7: Local Pay | D7: nearest 5 | E7: Adj. (Local) | F7: Place | H7: Place | I7: Factor | J7: Local Pay | K7: nearest 5 | L7: Adj. (Local) | M7: Place | O7: Place | P7: Factor | Q7: Local Pay | R7: nearest 5 | S7: Adj. (Local) | T7: Place | BE7: 4 | BF7: 2 | BH7: 4 | BI7: 2 | BJ7: 4 | BK7: =ROUND(0.25*BJ7,0) -> 1 | BL7: 4 | BM7: 1 | BN7: 4 | BO7: 1
A8: =IF(ROW()-7>$A$4,"",ROW()-7) -> 1 | B8: =IF(A8>$A$4,"",IF(D$4=45%,VLOOKUP(A8,_pay5,$A$4+1),VLOOKUP(A8,_pay3,$A$4+1))) -> 0.07 | C8: =IF(B8="","",$F$4*B8) -> 0 | D8: =IF(C8="","",INT((C8+2.5)/5)*5) -> 0 | H8: =IF(ROW()-7>$H$4,"",ROW()-7) -> 1 | I8: =IF(K$4=45%,VLOOKUP(H8,_pay5,$H$4+1),VLOOKUP(H8,_pay3,$H$4+1)) -> 0.07 | J8: =IF(I8="","",$M$4*I8) -> 0 | K8: =IF(J8="","",INT((J8+2.5)/5)*5) -> 0 | O8: =IF(ROW()-7>$O$4,"",ROW()-7) -> 1 | P8: =IF(R$4=45%,VLOOKUP(O8,_pay5,$O$4+1),VLOOKUP(O8,_pay3,$O$4+1)) -> 0.07 | Q8: =IF(P8="","",$T$4*P8) -> 0 | R8: =IF(Q8="","",INT((Q8+2.5)/5)*5) -> 0 | BE8: 5 | BF8: =ROUND(0.33*BE8,0) -> 2 | BH8: 5 | BI8: 2 | BJ8: 5 | BK8: =ROUND(0.25*BJ8,0) -> 1 | BL8: 5 | BM8: 1 | BN8: 5 | BO8: 1
A9: 2 | B9: =IF(A9="","",IF(D$4=45%,VLOOKUP(A9,_pay5,A$4+1),VLOOKUP(A9,_pay3,A$4+1))) -> 0.065 | C9: 0 | D9: 0 | H9: 2 | I9: =IF(H9="","",IF(K$4=45%,VLOOKUP(H9,_pay5,H$4+1),VLOOKUP(H9,_pay3,H$4+1))) -> 0.065 | J9: 0 | K9: 0 | O9: 2 | P9: =IF(O9="","",IF(R$4=45%,VLOOKUP(O9,_pay5,O$4+1),VLOOKUP(O9,_pay3,O$4+1))) -> 0.065 | Q9: 0 | R9: 0 | BE9: 6 | BF9: 2 | BH9: 6 | BI9: 3 | BJ9: 6 | BK9: 2 | BL9: 6 | BM9: 1 | BN9: 6 | BO9: 1
A10: 3 | B10: 0.06 | C10: 0 | D10: 0 | H10: 3 | I10: 0.06 | J10: 0 | K10: 0 | O10: 3 | P10: 0.06 | Q10: 0 | R10: 0 | BE10: 7 | BF10: 2 | BH10: 7 | BI10: 3 | BJ10: 7 | BK10: 2 | BL10: 7 | BM10: 2 | BN10: 7 | BO10: 1
A11: 4 | B11: 0.06 | C11: 0 | D11: 0 | H11: 4 | I11: 0.06 | J11: 0 | K11: 0 | O11: 4 | P11: 0.06 | Q11: 0 | R11: 0 | BE11: 8 | BF11: 3 | BH11: 8 | BI11: 4 | BJ11: 8 | BK11: 2 | BL11: 8 | BM11: 2 | BN11: 8 | BO11: 1
A12: 5 | B12: 0.055 | C12: 0 | D12: 0 | H12: 5 | I12: 0.055 | J12: 0 | K12: 0 | O12: 5 | P12: 0.055 | Q12: 0 | R12: 0 | BE12: 9 | BF12: 3 | BH12: 9 | BI12: 4 | BJ12: 9 | BK12: 2 | BL12: 9 | BM12: 2 | BN12: 9 | BO12: 2
A13: 6 | B13: 0.055 | C13: 0 | D13: 0 | H13: 6 | I13: 0.055 | J13: 0 | K13: 0 | O13: 6 | P13: 0.055 | Q13: 0 | R13: 0 | BE13: 10 | BF13: 3 | BH13: 10 | BI13: 5 | BJ13: 10 | BK13: 3 | BL13: 10 | BM13: 2 | BN13: 10 | BO13: 2
A14: 7 | B14: 0.05 | C14: 0 | D14: 0 | H14: 7 | I14: 0.05 | J14: 0 | K14: 0 | O14: 7 | P14: 0.05 | Q14: 0 | R14: 0 | BE14: 11 | BF14: 4 | BH14: 11 | BI14: 5 | BJ14: 11 | BK14: 3 | BL14: 11 | BM14: 2 | BN14: 11 | BO14: 2
A15: 8 | B15: 0.05 | C15: 0 | D15: 0 | H15: 8 | I15: 0.05 | J15: 0 | K15: 0 | O15: 8 | P15: 0.05 | Q15: 0 | R15: 0 | BE15: 12 | BF15: 4 | BH15: 12 | BI15: 6 | BJ15: 12 | BK15: 3 | BL15: 12 | BM15: 3 | BN15: 12 | BO15: 2
A16: 9 | B16: 0.05 | C16: 0 | D16: 0 | H16: 9 | I16: 0.05 | J16: 0 | K16: 0 | O16: 9 | P16: 0.05 | Q16: 0 | R16: 0 | BE16: 13 | BF16: 4 | BH16: 13 | BI16: 6 | BJ16: 13 | BK16: 3 | BL16: 13 | BM16: 3 | BN16: 13 | BO16: 2
A17: 10 | B17: 0.045 | C17: 0 | D17: 0 | H17: 10 | I17: 0.045 | J17: 0 | K17: 0 | O17: 10 | P17: 0.045 | Q17: 0 | R17: 0 | BE17: 14 | BF17: 5 | BH17: 14 | BI17: 6 | BJ17: 14 | BK17: 4 | BL17: 14 | BM17: 3 | BN17: 14 | BO17: 2
A18: 11 | B18: 0.045 | C18: 0 | D18: 0 | H18: 11 | I18: 0.045 | J18: 0 | K18: 0 | O18: 11 | P18: 0.045 | Q18: 0 | R18: 0 | BE18: 15 | BF18: 5 | BH18: 15 | BI18: 7 | BJ18: 15 | BK18: 4 | BL18: 15 | BM18: 3 | BN18: 15 | BO18: 2
A19: 12 | B19: 0.045 | C19: 0 | D19: 0 | H19: 12 | I19: 0.045 | J19: 0 | K19: 0 | O19: 12 | P19: 0.045 | Q19: 0 | R19: 0 | BE19: 16 | BF19: 5 | BH19: 16 | BI19: 7 | BJ19: 16 | BK19: 4 | BL19: 16 | BM19: 3 | BN19: 16 | BO19: 3
A20: 13 | B20: 0.04 | C20: 0 | D20: 0 | H20: 13 | I20: 0.04 | J20: 0 | K20: 0 | O20: 13 | P20: 0.04 | Q20: 0 | R20: 0 | BE20: 17 | BF20: 6 | BH20: 17 | BI20: 8 | BJ20: 17 | BK20: 4 | BL20: 17 | BM20: 4 | BN20: 17 | BO20: 3
A21: 14 | B21: 0.04 | C21: 0 | D21: 0 | I21: =SUM(I8:I20) -> 0.69 | J21: =SUM(J8:J20) -> 0 | K21: =SUM(K8:K20) -> 0 | L21: =SUM(L8:L20) -> 0 | P21: =SUM(P8:P20) -> 0.69 | Q21: =SUM(Q8:Q20) -> 0 | R21: =SUM(R8:R20) -> 0 | S21: =SUM(S8:S20) -> 0 | BE21: 18 | BF21: 6 | BH21: 18 | BI21: 8 | BJ21: 18 | BK21: 5 | BL21: 18 | BM21: 4 | BN21: 18 | BO21: 3
A22: 15 | B22: 0.04 | C22: 0 | D22: 0 | BE22: 19 | BF22: 6 | BH22: 19 | BI22: 9 | BJ22: 19 | BK22: 5 | BL22: 19 | BM22: 4 | BN22: 19 | BO22: 3
A23: 16 | B23: 0.035 | C23: 0 | D23: 0 | H23: ADVANCED GRANDMASTER AM | O23: RECREATIONAL WOMEN AM | BE23: 20 | BF23: 7 | BH23: 20 | BI23: 9 | BJ23: 20 | BK23: 5 | BL23: 20 | BM23: 4 | BN23: 20 | BO23: 3
A24: 17 | B24: 0.035 | C24: 0 | D24: 0 | L24: Add (or reduce) local cash here* > | M24: 0 | S24: Add (or reduce) local cash here* > | T24: 0 | BE24: 21 | BF24: 7 | BH24: 21 | BI24: 10 | BJ24: 21 | BK24: 5 | BL24: 21 | BM24: 4 | BN24: 21 | BO24: 3
A25: 18 | B25: 0.03 | C25: 0 | D25: 0 | H25: # Paid | J25: Field Size | K25: Pay pct | L25: Total Fees: | M25: =Cover!G26 -> 0 | O25: # Paid | Q25: Field Size | R25: Pay pct | S25: Total Fees: | T25: =Cover!G35 -> 0 | BE25: 22 | BF25: 7 | BH25: 22 | BI25: 10 | BJ25: 22 | BK25: 6 | BL25: 22 | BM25: 5 | BN25: 22 | BO25: 3
A26: 19 | B26: 0.03 | C26: 0 | D26: 0 | H26: =IF(K26=45%,VLOOKUP(J26,dbd,2,FALSE),IF(K26=33%,VLOOKUP(J26,dbe,2,FALSE),IF(K26=25%,VLOOKUP(J26,dbf,2,FALSE),IF(K26=20%,VLOOKUP(J26,dbg,2,FALSE),VLOOKUP(J26,dbh,2,FALSE))))) -> 23 | J26: =IF(Cover!F26=0,91,Cover!F26) -> 91 | K26: 0.25 | L26: Net Purse: | M26: =M25+M24 -> 0 | O26: =IF(R26=45%,VLOOKUP(Q26,dbd,2,FALSE),IF(R26=33%,VLOOKUP(Q26,dbe,2,FALSE),IF(R26=25%,VLOOKUP(Q26,dbf,2,FALSE),IF(R26=20%,VLOOKUP(Q26,dbg,2,FALSE),VLOOKUP(Q26,dbh,2,FALSE))))) -> 23 | Q26: =IF(Cover!F35=0,91,Cover!F35) -> 91 | R26: 0.25 | S26: Net Purse: | T26: =T25+T24 -> 0 | BE26: 23 | BF26: 8 | BH26: 23 | BI26: 10 | BJ26: 23 | BK26: 6 | BL26: 23 | BM26: 5 | BN26: 23 | BO26: 4
A27: 20 | B27: 0.03 | C27: 0 | D27: 0 | K27: =IF(J26=91," To use this table, enter player divisions on Scores page",IF(J26>30,"Field limit exceeded. Use printed Payout tables.","")) -> To use this table, enter player divisions on Scores page | R27: =IF(Q26=91," To use this table, enter player divisions on Scores page",IF(Q26>26,"Field limit exceeded. Use printed Payout tables.","")) -> To use this table, enter player divisions on Scores page | BE27: 24 | BF27: 8 | BH27: 24 | BI27: 11 | BJ27: 24 | BK27: 6 | BL27: 24 | BM27: 5 | BN27: 24 | BO27: 4
A28: 21 | B28: 0.025 | C28: 0 | D28: 0 | I28: Prelim | J28: Proposed | K28: Round to | L28: Manual | M28: Final | P28: Prelim | Q28: Proposed | R28: Round to | S28: Manual | T28: Final | BE28: 25 | BF28: 8 | BH28: 25 | BI28: 11 | BJ28: 25 | BK28: 6 | BL28: 25 | BM28: 5 | BN28: 25 | BO28: 4
A29: 22 | B29: 0.025 | C29: 0 | D29: 0 | H29: Place | I29: Factor | J29: Local Pay | K29: nearest 5 | L29: Adj. (Local) | M29: Place | O29: Place | P29: Factor | Q29: Local Pay | R29: nearest 5 | S29: Adj. (Local) | T29: Place | BE29: 26 | BF29: 9 | BH29: 26 | BI29: 12 | BJ29: 26 | BK29: 7 | BL29: 26 | BM29: 5 | BN29: 26 | BO29: 4
A30: 23 | B30: 0.02 | C30: 0 | D30: 0 | H30: =IF(ROW()-29>$H$26,"",ROW()-29) -> 1 | I30: =IF(K$26=45%,VLOOKUP(H30,_pay5,$H$26+1),VLOOKUP(H30,_pay3,$H$26+1)) -> 0.07 | J30: =IF(I30="","",$M$26*I30) -> 0 | K30: =IF(J30="","",INT((J30+2.5)/5)*5) -> 0 | O30: =IF(ROW()-29>$O$26,"",ROW()-29) -> 1 | P30: =IF(R$26=45%,VLOOKUP(O30,_pay5,O$26+1),VLOOKUP(O30,_pay3,O$26+1)) -> 0.07 | Q30: =IF(P30="","",$T$26*P30) -> 0 | R30: =IF(Q30="","",INT((Q30+2.5)/5)*5) -> 0 | BE30: 27 | BF30: 9 | BH30: 27 | BI30: 12 | BJ30: 27 | BK30: 7 | BL30: 27 | BM30: 6 | BN30: 27 | BO30: 4
H31: 2 | I31: =IF(H31="","",IF(K$26=45%,VLOOKUP(H31,_pay5,H$26+1),VLOOKUP(H31,_pay3,H$26+1))) -> 0.065 | J31: 0 | K31: 0 | O31: 2 | P31: =IF(O31="","",IF(R$26=45%,VLOOKUP(O31,_pay5,O$26+1),VLOOKUP(O31,_pay3,O$26+1))) -> 0.065 | Q31: 0 | R31: 0 | BE31: 28 | BF31: 9 | BH31: 28 | BI31: 13 | BJ31: 28 | BK31: 7 | BL31: 28 | BM31: 6 | BN31: 28 | BO31: 4
H32: 3 | I32: 0.06 | J32: 0 | K32: 0 | O32: 3 | P32: 0.06 | Q32: 0 | R32: 0 | BE32: 29 | BF32: 10 | BH32: 29 | BI32: 13 | BJ32: 29 | BK32: 7 | BL32: 29 | BM32: 6 | BN32: 29 | BO32: 4
H33: 4 | I33: 0.06 | J33: 0 | K33: 0 | O33: 4 | P33: 0.06 | Q33: 0 | R33: 0 | BE33: 30 | BF33: 10 | BH33: 30 | BI33: 14 | BJ33: 30 | BK33: 8 | BL33: 30 | BM33: 6 | BN33: 30 | BO33: 5
H34: 5 | I34: 0.055 | J34: 0 | K34: 0 | O34: 5 | P34: 0.055 | Q34: 0 | R34: 0 | BE34: 31 | BF34: 10 | BH34: 31 | BI34: 14 | BJ34: 31 | BK34: 8 | BL34: 31 | BM34: 6 | BN34: 31 | BO34: 5
H35: 6 | I35: 0.055 | J35: 0 | K35: 0 | O35: 6 | P35: 0.055 | Q35: 0 | R35: 0 | BE35: 32 | BF35: 11 | BH35: 32 | BI35: 15 | BJ35: 32 | BK35: 8 | BL35: 32 | BM35: 7 | BN35: 32 | BO35: 5
H36: 7 | I36: 0.05 | J36: 0 | K36: 0 | O36: 7 | P36: 0.05 | Q36: 0 | R36: 0 | BE36: 33 | BF36: 11 | BH36: 33 | BI36: 15 | BJ36: 33 | BK36: 8 | BL36: 33 | BM36: 7 | BN36: 33 | BO36: 5
H37: 8 | I37: 0.05 | J37: 0 | K37: 0 | O37: 8 | P37: 0.05 | Q37: 0 | R37: 0 | BE37: 34 | BF37: 11 | BH37: 34 | BI37: 15 | BJ37: 34 | BK37: 9 | BL37: 34 | BM37: 7 | BN37: 34 | BO37: 5
H38: 9 | I38: 0.05 | J38: 0 | K38: 0 | O38: 9 | P38: 0.05 | Q38: 0 | R38: 0 | BE38: 35 | BF38: 12 | BH38: 35 | BI38: 16 | BJ38: 35 | BK38: 9 | BL38: 35 | BM38: 7 | BN38: 35 | BO38: 5
H39: 10 | I39: 0.045 | J39: 0 | K39: 0 | O39: 10 | P39: 0.045 | Q39: 0 | R39: 0 | BE39: 36 | BF39: 12 | BH39: 36 | BI39: 16 | BJ39: 36 | BK39: 9 | BL39: 36 | BM39: 7 | BN39: 36 | BO39: 5
H40: 11 | I40: 0.045 | J40: 0 | K40: 0 | O40: 11 | P40: 0.045 | Q40: 0 | R40: 0 | BE40: 37 | BF40: 12 | BH40: 37 | BI40: 17 | BJ40: 37 | BK40: 9 | BL40: 37 | BM40: 8 | BN40: 37 | BO40: 6
B41: =SUM(B8:B40) -> 1 | C41: =SUM(C8:C40) -> 0 | D41: =SUM(D8:D40) -> 0 | E41: =SUM(E8:E40) -> 0 | H41: 12 | I41: 0.045 | J41: 0 | K41: 0 | O41: 12 | P41: 0.045 | Q41: 0 | R41: 0 | BE41: 38 | BF41: 13 | BH41: 38 | BI41: 17 | BJ41: 38 | BK41: 10 | BL41: 38 | BM41: 8 | BN41: 38 | BO41: 6
H42: 13 | I42: 0.04 | J42: 0 | K42: 0 | O42: 13 | P42: 0.04 | Q42: 0 | R42: 0 | BE42: 39 | BF42: 13 | BH42: 39 | BI42: 18 | BJ42: 39 | BK42: 10 | BL42: 39 | BM42: 8 | BN42: 39 | BO42: 6
A43: * Can be a negative number when expenses like trophies involved | I43: =SUM(I30:I42) -> 0.69 | J43: =SUM(J30:J42) -> 0 | K43: =SUM(K30:K42) -> 0 | L43: =SUM(L30:L42) -> 0 | P43: =SUM(P30:P42) -> 0.69 | Q43: =SUM(Q30:Q42) -> 0 | R43: =SUM(R30:R42) -> 0 | S43: =SUM(S30:S42) -> 0 | BE43: 40 | BF43: 13 | BH43: 40 | BI43: 18 | BJ43: 40 | BK43: 10 | BL43: 40 | BM43: 8 | BN43: 40 | BO43: 6
A44: INTERMEDIATE AM DIVISION | H44: ADVANCED SR GRANDMASTER AM | O44: INTERMEDIATE WOMEN AM | W44: Flatter | BE44: 41 | BF44: 14 | BH44: 41 | BI44: 19 | BJ44: 41 | BK44: 10 | BL44: 41 | BM44: 8 | BN44: 41 | BO44: 6
E45: Add (or reduce) local cash here* > | F45: 0 | L45: Add (or reduce) local cash here* > | M45: 0 | S45: Add (or reduce) local cash here* > | T45: 0 | W45: 1 | X45: 2 | Y45: 3 | Z45: 4 | AA45: 5 | AB45: 6 | AC45: 7 | AD45: 8 | AE45: 9 | AF45: 10 | AG45: 11 | AH45: 12 | AI45: 13 | AJ45: 14 | AK45: 15 | AL45: 16 | AM45: 17 | AN45: 18 | AO45: 19 | AP45: 20 | AQ45: 21 | AR45: 22 | AS45: 23 | AT45: 24 | AU45: 25 | AV45: 26 | AW45: 27 | AX45: 28 | AY45: 29 | AZ45: 30 | BA45: 31 | BB45: 32 | BC45: 33 | BE45: 42 | BF45: 14 | BH45: 42 | BI45: 19 | BJ45: 42 | BK45: 11 | BL45: 42 | BM45: 9 | BN45: 42 | BO45: 6
A46: # Paid | C46: Field Size | D46: Pay pct | E46: Total Fees: | F46: =Cover!G22 -> 0 | H46: # Paid | J46: Field Size | K46: Pay pct | L46: Total Fees: | M46: =Cover!G27 -> 0 | O46: # Paid | Q46: Field Size | R46: Pay pct | S46: Total Fees: | T46: =Cover!G34 -> 0 | V46: 1 | W46: 1 | X46: 0.6 | Y46: 0.45 | Z46: 0.39 | AA46: 0.3 | AB46: 0.25 | AC46: 0.21 | AD46: 0.19 | AE46: 0.17 | AF46: 0.15 | AG46: 0.14 | AH46: 0.13 | AI46: 0.115 | AJ46: 0.11 | AK46: 0.1 | AL46: 0.095 | AM46: 0.09 | AN46: 0.085 | AO46: 0.08 | AP46: 0.075 | AQ46: 0.072 | AR46: 0.07 | AS46: 0.07 | AT46: 0.065 | AU46: 0.062 | AV46: 0.06 | AW46: 0.057 | AX46: 0.055 | AY46: 0.055 | AZ46: 0.052 | BA46: 0.05 | BB46: 0.048 | BC46: 0.046 | BE46: 43 | BF46: 14 | BH46: 43 | BI46: 19 | BJ46: 43 | BK46: 11 | BL46: 43 | BM46: 9 | BN46: 43 | BO46: 6
A47: =IF(D47=45%,VLOOKUP(C47,dbd,2,FALSE),IF(D47=33%,VLOOKUP(C47,dbe,2,FALSE),IF(D47=25%,VLOOKUP(C47,dbf,2,FALSE),IF(D47=20%,VLOOKUP(C47,dbg,2,FALSE),VLOOKUP(C47,dbh,2,FALSE))))) -> 23 | C47: =IF(Cover!F22=0,91,Cover!F22) -> 91 | D47: 0.25 | E47: Net Purse: | F47: =F46+F45 -> 0 | H47: =IF(K47=45%,VLOOKUP(J47,dbd,2,FALSE),IF(K47=33%,VLOOKUP(J47,dbe,2,FALSE),IF(K47=25%,VLOOKUP(J47,dbf,2,FALSE),IF(K47=20%,VLOOKUP(J47,dbg,2,FALSE),VLOOKUP(J47,dbh,2,FALSE))))) -> 23 | J47: =IF(Cover!F27=0,91,Cover!F27) -> 91 | K47: 0.25 | L47: Net Purse: | M47: =M46+M45 -> 0 | O47: =IF(R47=45%,VLOOKUP(Q47,dbd,2,FALSE),IF(R47=33%,VLOOKUP(Q47,dbe,2,FALSE),IF(R47=25%,VLOOKUP(Q47,dbf,2,FALSE),IF(R47=20%,VLOOKUP(Q47,dbg,2,FALSE),VLOOKUP(Q47,dbh,2,FALSE))))) -> 23 | Q47: =IF(Cover!F34=0,91,Cover!F34) -> 91 | R47: 0.25 | S47: Net Purse: | T47: =T46+T45 -> 0 | V47: 2 | X47: 0.4 | Y47: 0.325 | Z47: 0.29 | AA47: 0.25 | AB47: 0.22 | AC47: 0.19 | AD47: 0.17 | AE47: 0.15 | AF47: 0.14 | AG47: 0.13 | AH47: 0.12 | AI47: 0.11 | AJ47: 0.1 | AK47: 0.095 | AL47: 0.09 | AM47: 0.085 | AN47: 0.08 | AO47: 0.075 | AP47: 0.07 | AQ47: 0.068 | AR47: 0.065 | AS47: 0.065 | AT47: 0.06 | AU47: 0.058 | AV47: 0.055 | AW47: 0.055 | AX47: 0.05 | AY47: 0.05 | AZ47: 0.05 | BA47: 0.048 | BB47: 0.046 | BC47: 0.044 | BE47: 44 | BF47: 15 | BH47: 44 | BI47: 20 | BJ47: 44 | BK47: 11 | BL47: 44 | BM47: 9 | BN47: 44 | BO47: 7
D48: =IF(C47=91," To use this table, enter player divisions on Scores page",IF(C47>66,"Field limit exceeded. Use printed Payout tables.","")) -> To use this table, enter player divisions on Scores page | K48: =IF(J47=91," To use this table, enter player divisions on Scores page",IF(J47>9,"Field limit exceeded. Use printed Payout tables.","")) -> To use this table, enter player divisions on Scores page | R48: =IF(Q47=91," To use this table, enter player divisions on Scores page",IF(Q47>26,"Field limit exceeded. Use printed Payout tables.","")) -> To use this table, enter player divisions on Scores page | V48: 3 | Y48: 0.225 | Z48: 0.2 | AA48: 0.2 | AB48: 0.18 | AC48: 0.17 | AD48: 0.15 | AE48: 0.14 | AF48: 0.13 | AG48: 0.12 | AH48: 0.11 | AI48: 0.105 | AJ48: 0.095 | AK48: 0.09 | AL48: 0.085 | AM48: 0.08 | AN48: 0.075 | AO48: 0.075 | AP48: 0.07 | AQ48: 0.065 | AR48: 0.065 | AS48: 0.06 | AT48: 0.06 | AU48: 0.055 | AV48: 0.055 | AW48: 0.053 | AX48: 0.05 | AY48: 0.05 | AZ48: 0.048 | BA48: 0.046 | BB48: 0.045 | BC48: 0.044 | BE48: 45 | BF48: 15 | BH48: 45 | BI48: 20 | BJ48: 45 | BK48: 11 | BL48: 45 | BM48: 9 | BN48: 45 | BO48: 7
B49: Prelim | C49: Proposed | D49: Round to | E49: Manual | F49: Final | I49: Prelim | J49: Proposed | K49: Round to | L49: Manual | M49: Final | P49: Prelim | Q49: Proposed | R49: Round to | S49: Manual | T49: Final | V49: 4 | Z49: 0.12 | AA49: 0.15 | AB49: 0.15 | AC49: 0.14 | AD49: 0.13 | AE49: 0.12 | AF49: 0.12 | AG49: 0.11 | AH49: 0.1 | AI49: 0.095 | AJ49: 0.09 | AK49: 0.085 | AL49: 0.08 | AM49: 0.075 | AN49: 0.075 | AO49: 0.07 | AP49: 0.065 | AQ49: 0.065 | AR49: 0.06 | AS49: 0.06 | AT49: 0.055 | AU49: 0.055 | AV49: 0.055 | AW49: 0.05 | AX49: 0.05 | AY49: 0.05 | AZ49: 0.045 | BA49: 0.045 | BB49: 0.044 | BC49: 0.042 | BE49: 46 | BF49: 15 | BH49: 46 | BI49: 21 | BJ49: 46 | BK49: 12 | BL49: 46 | BM49: 9 | BN49: 46 | BO49: 7
A50: Place | B50: Factor | C50: Local Pay | D50: nearest 5 | E50: Adj. (Local) | F50: Place | H50: Place | I50: Factor | J50: Local Pay | K50: nearest 5 | L50: Adj. (Local) | M50: Place | O50: Place | P50: Factor | Q50: Local Pay | R50: nearest 5 | S50: Adj. (Local) | T50: Place | V50: 5 | AA50: 0.1 | AB50: 0.12 | AC50: 0.12 | AD50: 0.12 | AE50: 0.11 | AF50: 0.11 | AG50: 0.1 | AH50: 0.09 | AI50: 0.09 | AJ50: 0.085 | AK50: 0.08 | AL50: 0.075 | AM50: 0.075 | AN50: 0.07 | AO50: 0.065 | AP50: 0.065 | AQ50: 0.06 | AR50: 0.06 | AS50: 0.055 | AT50: 0.055 | AU50: 0.055 | AV50: 0.05 | AW50: 0.05 | AX50: 0.05 | AY50: 0.045 | AZ50: 0.045 | BA50: 0.044 | BB50: 0.042 | BC50: 0.042 | BE50: 47 | BF50: 16 | BH50: 47 | BI50: 21 | BJ50: 47 | BK50: 12 | BL50: 47 | BM50: 10 | BN50: 47 | BO50: 7
A51: =IF(ROW()-50>$A$47,"",ROW()-50) -> 1 | B51: =IF(D$47=45%,VLOOKUP(A51,_pay5,A$47+1),VLOOKUP(A51,_pay3,A$47+1)) -> 0.07 | C51: =IF(B51="","",$F$47*B51) -> 0 | D51: =IF(C51="","",INT((C51+2.5)/5)*5) -> 0 | H51: =IF(ROW()-50>$H$47,"",ROW()-50) -> 1 | I51: =IF(K$47=45%,VLOOKUP(H51,_pay5,H$47+1),VLOOKUP(H51,_pay3,H$47+1)) -> 0.07 | J51: =IF(I51="","",$M$47*I51) -> 0 | K51: =IF(J51="","",INT((J51+2.5)/5)*5) -> 0 | O51: =IF(ROW()-50>$O$47,"",ROW()-50) -> 1 | P51: =IF(R$47=45%,VLOOKUP(O51,_pay5,O$47+1),VLOOKUP(O51,_pay3,O$47+1)) -> 0.07 | Q51: =IF(P51="","",$T$47*P51) -> 0 | R51: =IF(Q51="","",INT((Q51+2.5)/5)*5) -> 0 | V51: 6 | AB51: 0.08 | AC51: 0.1 | AD51: 0.1 | AE51: 0.1 | AF51: 0.09 | AG51: 0.09 | AH51: 0.09 | AI51: 0.08 | AJ51: 0.08 | AK51: 0.075 | AL51: 0.075 | AM51: 0.07 | AN51: 0.065 | AO51: 0.065 | AP51: 0.06 | AQ51: 0.06 | AR51: 0.055 | AS51: 0.055 | AT51: 0.055 | AU51: 0.05 | AV51: 0.05 | AW51: 0.05 | AX51: 0.045 | AY51: 0.045 | AZ51: 0.045 | BA51: 0.042 | BB51: 0.04 | BC51: 0.04 | BE51: 48 | BF51: 16 | BH51: 48 | BI51: 22 | BJ51: 48 | BK51: 12 | BL51: 48 | BM51: 10 | BN51: 48 | BO51: 7
A52: 2 | B52: =IF(A52="","",IF(D$47=45%,VLOOKUP(A52,_pay5,A$47+1),VLOOKUP(A52,_pay3,A$47+1))) -> 0.065 | C52: 0 | D52: 0 | H52: =IF(ROW()-50>$H$47,"",ROW()-50) -> 2 | I52: =IF(H52="","",IF(K$47=45%,VLOOKUP(H52,_pay5,H$47+1),VLOOKUP(H52,_pay3,H$47+1))) -> 0.065 | J52: =IF(I52="","",$M$47*I52) -> 0 | K52: =IF(J52="","",INT((J52+2.5)/5)*5) -> 0 | O52: 2 | P52: =IF(O52="","",IF(R$47=45%,VLOOKUP(O52,_pay5,O$47+1),VLOOKUP(O52,_pay3,O$47+1))) -> 0.065 | Q52: 0 | R52: 0 | V52: 7 | AC52: 0.07 | AD52: 0.08 | AE52: 0.08 | AF52: 0.08 | AG52: 0.08 | AH52: 0.08 | AI52: 0.075 | AJ52: 0.075 | AK52: 0.07 | AL52: 0.07 | AM52: 0.065 | AN52: 0.065 | AO52: 0.06 | AP52: 0.06 | AQ52: 0.055 | AR52: 0.055 | AS52: 0.05 | AT52: 0.05 | AU52: 0.05 | AV52: 0.05 | AW52: 0.05 | AX52: 0.045 | AY52: 0.045 | AZ52: 0.045 | BA52: 0.04 | BB52: 0.04 | BC52: 0.04 | BE52: 49 | BF52: 16 | BH52: 49 | BI52: 22 | BJ52: 49 | BK52: 12 | BL52: 49 | BM52: 10 | BN52: 49 | BO52: 7
A53: 3 | B53: 0.06 | C53: 0 | D53: 0 | H53: =IF(ROW()-50>$H$47,"",ROW()-50) -> 3 | I53: =IF(H53="","",IF(K$47=45%,VLOOKUP(H53,_pay5,H$47+1),VLOOKUP(H53,_pay3,H$47+1))) -> 0.06 | J53: =IF(I53="","",$M$47*I53) -> 0 | K53: =IF(J53="","",INT((J53+2.5)/5)*5) -> 0 | O53: 3 | P53: 0.06 | Q53: 0 | R53: 0 | V53: 8 | AD53: 0.06 | AE53: 0.07 | AF53: 0.07 | AG53: 0.07 | AH53: 0.07 | AI53: 0.07 | AJ53: 0.07 | AK53: 0.065 | AL53: 0.065 | AM53: 0.065 | AN53: 0.06 | AO53: 0.06 | AP53: 0.055 | AQ53: 0.055 | AR53: 0.055 | AS53: 0.05 | AT53: 0.05 | AU53: 0.05 | AV53: 0.045 | AW53: 0.045 | AX53: 0.045 | AY53: 0.045 | AZ53: 0.04 | BA53: 0.04 | BB53: 0.04 | BC53: 0.038 | BE53: 50 | BF53: 17 | BH53: 50 | BI53: 23 | BJ53: 50 | BK53: 13 | BL53: 50 | BM53: 10 | BN53: 50 | BO53: 7
A54: 4 | B54: 0.06 | C54: 0 | D54: 0 | H54: =IF(ROW()-50>$H$47,"",ROW()-50) -> 4 | I54: =IF(H54="","",IF(K$47=45%,VLOOKUP(H54,_pay5,H$47+1),VLOOKUP(H54,_pay3,H$47+1))) -> 0.06 | J54: =IF(I54="","",$M$47*I54) -> 0 | K54: =IF(J54="","",INT((J54+2.5)/5)*5) -> 0 | O54: 4 | P54: 0.06 | Q54: 0 | R54: 0 | V54: 9 | AE54: 0.06 | AF54: 0.06 | AG54: 0.06 | AH54: 0.06 | AI54: 0.065 | AJ54: 0.065 | AK54: 0.06 | AL54: 0.06 | AM54: 0.06 | AN54: 0.055 | AO54: 0.055 | AP54: 0.055 | AQ54: 0.05 | AR54: 0.05 | AS54: 0.05 | AT54: 0.05 | AU54: 0.045 | AV54: 0.045 | AW54: 0.045 | AX54: 0.045 | AY54: 0.04 | AZ54: 0.04 | BA54: 0.04 | BB54: 0.04 | BC54: 0.038 | BE54: 51 | BF54: 17 | BH54: 51 | BI54: 23 | BJ54: 51 | BK54: 13 | BL54: 51 | BM54: 10 | BN54: 51 | BO54: 8
A55: 5 | B55: 0.055 | C55: 0 | D55: 0 | I55: =SUM(I51:I54) -> 0.255 | J55: =SUM(J51:J54) -> 0 | K55: =SUM(K51:K54) -> 0 | L55: =SUM(L51:L54) -> 0 | O55: 5 | P55: 0.055 | Q55: 0 | R55: 0 | V55: 10 | AF55: 0.05 | AG55: 0.05 | AH55: 0.06 | AI55: 0.06 | AJ55: 0.06 | AK55: 0.06 | AL55: 0.055 | AM55: 0.055 | AN55: 0.055 | AO55: 0.055 | AP55: 0.05 | AQ55: 0.05 | AR55: 0.05 | AS55: 0.045 | AT55: 0.045 | AU55: 0.045 | AV55: 0.045 | AW55: 0.045 | AX55: 0.04 | AY55: 0.04 | AZ55: 0.04 | BA55: 0.04 | BB55: 0.04 | BC55: 0.036 | BE55: 52 | BF55: 17 | BH55: 52 | BI55: 23 | BJ55: 52 | BK55: 13 | BL55: 52 | BM55: 11 | BN55: 52 | BO55: 8
A56: 6 | B56: 0.055 | C56: 0 | D56: 0 | O56: 6 | P56: 0.055 | Q56: 0 | R56: 0 | V56: 11 | AG56: 0.05 | AH56: 0.05 | AI56: 0.05 | AJ56: 0.05 | AK56: 0.055 | AL56: 0.05 | AM56: 0.05 | AN56: 0.05 | AO56: 0.05 | AP56: 0.05 | AQ56: 0.05 | AR56: 0.045 | AS56: 0.045 | AT56: 0.045 | AU56: 0.045 | AV56: 0.04 | AW56: 0.04 | AX56: 0.04 | AY56: 0.04 | AZ56: 0.04 | BA56: 0.04 | BB56: 0.035 | BC56: 0.036 | BE56: 53 | BF56: 17 | BH56: 53 | BI56: 24 | BJ56: 53 | BK56: 13 | BL56: 53 | BM56: 11 | BN56: 53 | BO56: 8
A57: 7 | B57: 0.05 | C57: 0 | D57: 0 | H57: ADVANCED WOMEN MASTER | O57: 7 | P57: 0.05 | Q57: 0 | R57: 0 | V57: 12 | AH57: 0.04 | AI57: 0.045 | AJ57: 0.045 | AK57: 0.05 | AL57: 0.05 | AM57: 0.05 | AN57: 0.045 | AO57: 0.05 | AP57: 0.045 | AQ57: 0.045 | AR57: 0.045 | AS57: 0.045 | AT57: 0.04 | AU57: 0.04 | AV57: 0.04 | AW57: 0.04 | AX57: 0.04 | AY57: 0.04 | AZ57: 0.035 | BA57: 0.035 | BB57: 0.035 | BC57: 0.036 | BE57: 54 | BF57: 18 | BH57: 54 | BI57: 24 | BJ57: 54 | BK57: 14 | BL57: 54 | BM57: 11 | BN57: 54 | BO57: 8
A58: 8 | B58: 0.05 | C58: 0 | D58: 0 | L58: Add (or reduce) local cash here* > | M58: 0 | O58: 8 | P58: 0.05 | Q58: 0 | R58: 0 | V58: 13 | AI58: 0.04 | AJ58: 0.04 | AK58: 0.045 | AL58: 0.045 | AM58: 0.045 | AN58: 0.045 | AO58: 0.045 | AP58: 0.045 | AQ58: 0.045 | AR58: 0.04 | AS58: 0.04 | AT58: 0.04 | AU58: 0.04 | AV58: 0.04 | AW58: 0.04 | AX58: 0.04 | AY58: 0.035 | AZ58: 0.035 | BA58: 0.035 | BB58: 0.035 | BC58: 0.034 | BE58: 55 | BF58: 18 | BH58: 55 | BI58: 25 | BJ58: 55 | BK58: 14 | BL58: 55 | BM58: 11 | BN58: 55 | BO58: 8
A59: 9 | B59: 0.05 | C59: 0 | D59: 0 | H59: # Paid | J59: Field Size | K59: Pay pct | L59: Total Fees: | M59: =Cover!G29 -> 0 | O59: 9 | P59: 0.05 | Q59: 0 | R59: 0 | V59: 14 | AJ59: 0.03 | AK59: 0.04 | AL59: 0.04 | AM59: 0.04 | AN59: 0.04 | AO59: 0.04 | AP59: 0.04 | AQ59: 0.04 | AR59: 0.04 | AS59: 0.04 | AT59: 0.04 | AU59: 0.04 | AV59: 0.04 | AW59: 0.035 | AX59: 0.035 | AY59: 0.035 | AZ59: 0.035 | BA59: 0.035 | BB59: 0.035 | BC59: 0.034 | BE59: 56 | BF59: 18 | BH59: 56 | BI59: 25 | BJ59: 56 | BK59: 14 | BL59: 56 | BM59: 11 | BN59: 56 | BO59: 8
A60: 10 | B60: 0.045 | C60: 0 | D60: 0 | H60: =IF(K60=45%,VLOOKUP(J60,dbd,2,FALSE),IF(K60=33%,VLOOKUP(J60,dbe,2,FALSE),IF(K60=25%,VLOOKUP(J60,dbf,2,FALSE),IF(K60=20%,VLOOKUP(J60,dbg,2,FALSE),VLOOKUP(J60,dbh,2,FALSE))))) -> 23 | J60: =IF(Cover!F29=0,91,Cover!F29) -> 91 | K60: 0.25 | L60: Net Purse: | M60: =M59+M58 -> 0 | O60: 10 | P60: 0.045 | Q60: 0 | R60: 0 | V60: 15 | AK60: 0.03 | AL60: 0.035 | AM60: 0.035 | AN60: 0.04 | AO60: 0.04 | AP60: 0.04 | AQ60: 0.04 | AR60: 0.04 | AS60: 0.04 | AT60: 0.035 | AU60: 0.035 | AV60: 0.035 | AW60: 0.035 | AX60: 0.035 | AY60: 0.035 | AZ60: 0.035 | BA60: 0.035 | BB60: 0.035 | BC60: 0.032 | BE60: 57 | BF60: 19 | BH60: 57 | BI60: 26 | BJ60: 57 | BK60: 14 | BL60: 57 | BM60: 12 | BN60: 57 | BO60: 8
A61: 11 | B61: 0.045 | C61: 0 | D61: 0 | K61: =IF(J60=91," To use this table, enter player divisions on Scores page",IF(J60>9,"Field limit exceeded. Use printed Payout tables.","")) -> To use this table, enter player divisions on Scores page | O61: 11 | P61: 0.045 | Q61: 0 | R61: 0 | V61: 16 | AL61: 0.03 | AM61: 0.03 | AN61: 0.035 | AO61: 0.035 | AP61: 0.035 | AQ61: 0.035 | AR61: 0.035 | AS61: 0.035 | AT61: 0.035 | AU61: 0.035 | AV61: 0.035 | AW61: 0.035 | AX61: 0.035 | AY61: 0.035 | AZ61: 0.035 | BA61: 0.03 | BB61: 0.03 | BC61: 0.032 | BE61: 58 | BF61: 19 | BH61: 58 | BI61: 26 | BJ61: 58 | BK61: 15 | BL61: 58 | BM61: 12 | BN61: 58 | BO61: 9
A62: 12 | B62: 0.045 | C62: 0 | D62: 0 | I62: Prelim | J62: Proposed | K62: Round to | L62: Manual | M62: Final | O62: 12 | P62: 0.045 | Q62: 0 | R62: 0 | V62: 17 | AM62: 0.03 | AN62: 0.03 | AO62: 0.03 | AP62: 0.035 | AQ62: 0.035 | AR62: 0.035 | AS62: 0.035 | AT62: 0.035 | AU62: 0.035 | AV62: 0.035 | AW62: 0.03 | AX62: 0.03 | AY62: 0.03 | AZ62: 0.03 | BA62: 0.03 | BB62: 0.03 | BC62: 0.03 | BE62: 59 | BF62: 19 | BH62: 59 | BI62: 27 | BJ62: 59 | BK62: 15 | BL62: 59 | BM62: 12 | BN62: 59 | BO62: 9
A63: 13 | B63: 0.04 | C63: 0 | D63: 0 | H63: Place | I63: Factor | J63: Local Pay | K63: nearest 5 | L63: Adj. (Local) | M63: Place | O63: 13 | P63: 0.04 | Q63: 0 | R63: 0 | V63: 18 | AN63: 0.03 | AO63: 0.025 | AP63: 0.03 | AQ63: 0.03 | AR63: 0.03 | AS63: 0.03 | AT63: 0.03 | AU63: 0.03 | AV63: 0.03 | AW63: 0.03 | AX63: 0.03 | AY63: 0.03 | AZ63: 0.03 | BA63: 0.03 | BB63: 0.03 | BC63: 0.03 | BE63: 60 | BF63: 20 | BH63: 60 | BI63: 27 | BJ63: 60 | BK63: 15 | BL63: 60 | BM63: 12 | BN63: 60 | BO63: 9
A64: 14 | B64: 0.04 | C64: 0 | D64: 0 | H64: =IF(ROW()-63>$H$60,"",ROW()-63) -> 1 | I64: =IF(K$60=45%,VLOOKUP(H64,_pay5,H$60+1),VLOOKUP(H64,_pay3,H$60+1)) -> 0.07 | J64: =IF(I64="","",$M$60*I64) -> 0 | K64: =IF(J64="","",INT((J64+2.5)/5)*5) -> 0 | P64: =SUM(P51:P63) -> 0.69 | Q64: =SUM(Q51:Q63) -> 0 | R64: =SUM(R51:R63) -> 0 | S64: =SUM(S51:S63) -> 0 | V64: 19 | AO64: 0.025 | AP64: 0.03 | AQ64: 0.03 | AR64: 0.03 | AS64: 0.03 | AT64: 0.03 | AU64: 0.03 | AV64: 0.03 | AW64: 0.03 | AX64: 0.03 | AY64: 0.03 | AZ64: 0.03 | BA64: 0.03 | BB64: 0.03 | BC64: 0.028 | BE64: 61 | BF64: 20 | BH64: 61 | BI64: 28 | BJ64: 61 | BK64: 15 | BL64: 61 | BM64: 12 | BN64: 61 | BO64: 9
A65: 15 | B65: 0.04 | C65: 0 | D65: 0 | H65: =IF(ROW()-63>$H$60,"",ROW()-63) -> 2 | I65: =IF(H65="","",IF(K$60=45%,VLOOKUP(H65,_pay5,H$60+1),VLOOKUP(H65,_pay3,H$60+1))) -> 0.065 | J65: =IF(I65="","",$M$60*I65) -> 0 | K65: =IF(J65="","",INT((J65+2.5)/5)*5) -> 0 | V65: 20 | AP65: 0.025 | AQ65: 0.025 | AR65: 0.025 | AS65: 0.03 | AT65: 0.03 | AU65: 0.03 | AV65: 0.03 | AW65: 0.03 | AX65: 0.03 | AY65: 0.03 | AZ65: 0.03 | BA65: 0.03 | BB65: 0.03 | BC65: 0.028 | BE65: 62 | BF65: 20 | BH65: 62 | BI65: 28 | BJ65: 62 | BK65: 16 | BL65: 62 | BM65: 13 | BN65: 62 | BO65: 9
A66: 16 | B66: 0.035 | C66: 0 | D66: 0 | H66: =IF(ROW()-63>$H$60,"",ROW()-63) -> 3 | I66: =IF(H66="","",IF(K$60=45%,VLOOKUP(H66,_pay5,H$60+1),VLOOKUP(H66,_pay3,H$60+1))) -> 0.06 | J66: =IF(I66="","",$M$60*I66) -> 0 | K66: =IF(J66="","",INT((J66+2.5)/5)*5) -> 0 | O66: BOYS JR < 18 | V66: 21 | AQ66: 0.025 | AR66: 0.025 | AS66: 0.025 | AT66: 0.025 | AU66: 0.025 | AV66: 0.025 | AW66: 0.025 | AX66: 0.025 | AY66: 0.025 | AZ66: 0.025 | BA66: 0.025 | BB66: 0.025 | BC66: 0.026 | BE66: 63 | BF66: 21 | BH66: 63 | BI66: 28 | BJ66: 63 | BK66: 16 | BL66: 63 | BM66: 13 | BN66: 63 | BO66: 9
A67: 17 | B67: 0.035 | C67: 0 | D67: 0 | H67: =IF(ROW()-63>$H$60,"",ROW()-63) -> 4 | I67: =IF(H67="","",IF(K$60=45%,VLOOKUP(H67,_pay5,H$60+1),VLOOKUP(H67,_pay3,H$60+1))) -> 0.06 | J67: =IF(I67="","",$M$60*I67) -> 0 | K67: =IF(J67="","",INT((J67+2.5)/5)*5) -> 0 | S67: Add (or reduce) local cash here* > | T67: 0 | V67: 22 | AR67: 0.025 | AS67: 0.025 | AT67: 0.025 | AU67: 0.025 | AV67: 0.025 | AW67: 0.025 | AX67: 0.025 | AY67: 0.025 | AZ67: 0.025 | BA67: 0.025 | BB67: 0.025 | BC67: 0.026 | BE67: 64 | BF67: 21 | BH67: 64 | BI67: 29 | BJ67: 64 | BK67: 16 | BL67: 64 | BM67: 13 | BN67: 64 | BO67: 9
A68: 18 | B68: 0.03 | C68: 0 | D68: 0 | I68: =SUM(I64:I67) -> 0.255 | J68: =SUM(J64:J67) -> 0 | K68: =SUM(K64:K67) -> 0 | L68: =SUM(L64:L67) -> 0 | O68: # Paid | Q68: Field Size | R68: Pay pct | S68: Total Fees: | T68: =Cover!G39 -> 0 | V68: 23 | AS68: 0.02 | AT68: 0.025 | AU68: 0.025 | AV68: 0.025 | AW68: 0.025 | AX68: 0.025 | AY68: 0.025 | AZ68: 0.025 | BA68: 0.025 | BB68: 0.025 | BC68: 0.024 | BE68: 65 | BF68: 21 | BH68: 65 | BI68: 29 | BJ68: 65 | BK68: 16 | BL68: 65 | BM68: 13 | BN68: 65 | BO68: 10
A69: 19 | B69: 0.03 | C69: 0 | D69: 0 | O69: =IF(R69=45%,VLOOKUP(Q69,dbd,2,FALSE),IF(R69=33%,VLOOKUP(Q69,dbe,2,FALSE),IF(R69=25%,VLOOKUP(Q69,dbf,2,FALSE),IF(R69=20%,VLOOKUP(Q69,dbg,2,FALSE),VLOOKUP(Q69,dbh,2,FALSE))))) -> 23 | Q69: =IF(Cover!F39=0,91,Cover!F39) -> 91 | R69: 0.25 | S69: Net Purse: | T69: =T68+T67 -> 0 | V69: 24 | AT69: 0.02 | AU69: 0.02 | AV69: 0.02 | AW69: 0.02 | AX69: 0.025 | AY69: 0.025 | AZ69: 0.025 | BA69: 0.025 | BB69: 0.025 | BC69: 0.024 | BE69: 66 | BF69: 22 | BH69: 66 | BI69: 30 | BJ69: 66 | BK69: 17 | BL69: 66 | BM69: 13 | BN69: 66 | BO69: 10
A70: 20 | B70: 0.03 | C70: 0 | D70: 0 | H70: GIRLS JR < 18 | R70: =IF(Q69=91," To use this table, enter player divisions on Scores page",IF(Q69>26,"Field limit exceeded. Use printed Payout tables.","")) -> To use this table, enter player divisions on Scores page | V70: 25 | AU70: 0.02 | AV70: 0.02 | AW70: 0.02 | AX70: 0.02 | AY70: 0.02 | AZ70: 0.02 | BA70: 0.025 | BB70: 0.02 | BC70: 0.022 | BE70: 67 | BF70: 22 | BH70: 67 | BI70: 30 | BJ70: 67 | BK70: 17 | BL70: 67 | BM70: 14 | BN70: 67 | BO70: 10
A71: 21 | B71: 0.025 | C71: 0 | D71: 0 | L71: Add (or reduce) local cash here* > | M71: 0 | P71: Prelim | Q71: Proposed | R71: Round to | S71: Manual | T71: Final | V71: 26 | AV71: 0.02 | AW71: 0.02 | AX71: 0.02 | AY71: 0.02 | AZ71: 0.02 | BA71: 0.02 | BB71: 0.02 | BC71: 0.022 | BE71: 68 | BF71: =ROUND(0.33*BE71,0) -> 22 | BH71: 68 | BI71: 31 | BJ71: 68 | BK71: 17 | BL71: 68 | BM71: 14 | BN71: 68 | BO71: 10
A72: 22 | B72: 0.025 | C72: 0 | D72: 0 | H72: # Paid | J72: Field Size | K72: Pay pct | L72: Total Fees: | M72: =Cover!G43 -> 0 | O72: Place | P72: Factor | Q72: Local Pay | R72: nearest 5 | S72: Adj. (Local) | T72: Place | V72: 27 | AW72: 0.02 | AX72: 0.02 | AY72: 0.02 | AZ72: 0.02 | BA72: 0.02 | BB72: 0.02 | BC72: 0.02 | BE72: 69 | BF72: 23 | BH72: 69 | BI72: 31 | BJ72: 69 | BK72: =ROUND(0.25*BJ72,0) -> 17 | BL72: 69 | BM72: 14 | BN72: 69 | BO72: 10
A73: 23 | B73: 0.02 | C73: 0 | D73: 0 | H73: =IF(K73=45%,VLOOKUP(J73,dbd,2,FALSE),IF(K73=33%,VLOOKUP(J73,dbe,2,FALSE),IF(K73=25%,VLOOKUP(J73,dbf,2,FALSE),IF(K73=20%,VLOOKUP(J73,dbg,2,FALSE),VLOOKUP(J73,dbh,2,FALSE))))) -> 23 | J73: =IF(Cover!F45=0,91,Cover!F45) -> 91 | K73: 0.25 | L73: Net Purse: | M73: =M72+M71 -> 0 | O73: =IF(ROW()-72>$O$69,"",ROW()-72) -> 1 | P73: =IF(R$69=45%,VLOOKUP(O73,_pay5,O$69+1),VLOOKUP(O73,_pay3,O$69+1)) -> 0.07 | Q73: =IF(P73="","",$T$69*P73) -> 0 | R73: =IF(Q73="","",INT((Q73+2.5)/5)*5) -> 0 | V73: 28 | AX73: 0.02 | AY73: 0.02 | AZ73: 0.02 | BA73: 0.02 | BB73: 0.02 | BC73: 0.02 | BE73: 70 | BF73: 23 | BH73: 70 | BI73: 32 | BJ73: 70 | BK73: 18 | BL73: 70 | BM73: 14 | BN73: 70 | BO73: 10
K74: =IF(J73=91," To use this table, enter player divisions on Scores page",IF(J73>18,"Field limit exceeded. Use printed Payout tables.","")) -> To use this table, enter player divisions on Scores page | O74: 2 | P74: =IF(O74="","",IF(R$69=45%,VLOOKUP(O74,_pay5,O$69+1),VLOOKUP(O74,_pay3,O$69+1))) -> 0.065 | Q74: 0 | R74: 0 | V74: 29 | AY74: 0.015 | AZ74: 0.02 | BA74: 0.02 | BB74: 0.02 | BC74: 0.018 | BE74: 71 | BF74: 23 | BH74: 71 | BI74: 32 | BJ74: 71 | BK74: 18 | BL74: 71 | BM74: 14 | BN74: 71 | BO74: 10
I75: Prelim | J75: Proposed | K75: Round to | L75: Manual | M75: Final | O75: 3 | P75: 0.06 | Q75: 0 | R75: 0 | V75: 30 | AZ75: 0.015 | BA75: 0.015 | BB75: 0.02 | BC75: 0.018 | BE75: 72 | BF75: 24 | BH75: 72 | BI75: 33 | BJ75: 72 | BK75: 18 | BL75: 72 | BM75: 15 | BN75: 72 | BO75: 11
H76: Place | I76: Factor | J76: Local Pay | K76: nearest 5 | L76: Adj. (Local) | M76: Place | O76: 4 | P76: 0.06 | Q76: 0 | R76: 0 | V76: 31 | BA76: 0.015 | BB76: 0.015 | BC76: 0.018 | BE76: 73 | BF76: 24 | BH76: 73 | BI76: 33 | BJ76: 73 | BK76: 18 | BL76: 73 | BM76: 15 | BN76: 73 | BO76: 11
H77: =IF(ROW()-76>$H$73,"",ROW()-76) -> 1 | I77: =IF(K$73=45%,VLOOKUP(H77,_pay5,H$73+1),VLOOKUP(H77,_pay3,H$73+1)) -> 0.07 | J77: =IF(I77="","",$M$73*I77) -> 0 | K77: =IF(J77="","",INT((J77+2.5)/5)*5) -> 0 | O77: 5 | P77: 0.055 | Q77: 0 | R77: 0 | V77: 32 | BB77: 0.015 | BC77: 0.016 | BE77: 74 | BF77: 24 | BH77: 74 | BI77: 33 | BJ77: 74 | BK77: 19 | BL77: 74 | BM77: 15 | BN77: 74 | BO77: 11
H78: 2 | I78: =IF(H78="","",IF(K$73=45%,VLOOKUP(H78,_pay5,H$73+1),VLOOKUP(H78,_pay3,H$73+1))) -> 0.065 | J78: 0 | K78: 0 | O78: 6 | P78: 0.055 | Q78: 0 | R78: 0 | V78: 33 | BC78: 0.016 | BE78: 75 | BF78: 25 | BJ78: 75 | BK78: 19 | BL78: 75 | BM78: 15 | BN78: 75 | BO78: 11
H79: 3 | I79: 0.06 | J79: 0 | K79: 0 | O79: 7 | P79: 0.05 | Q79: 0 | R79: 0 | BE79: 76 | BF79: 25 | BJ79: 76 | BK79: 19 | BL79: 76 | BM79: 15 | BN79: 76 | BO79: 11
H80: 4 | I80: 0.06 | J80: 0 | K80: 0 | O80: 8 | P80: 0.05 | Q80: 0 | R80: 0 | BE80: 77 | BF80: 25 | BJ80: 77 | BK80: 19 | BL80: 77 | BM80: 16 | BN80: 77 | BO80: 11
H81: 5 | I81: 0.055 | J81: 0 | K81: 0 | O81: 9 | P81: 0.05 | Q81: 0 | R81: 0 | W81: Flatter (Same as above) | BE81: 78 | BF81: 26 | BJ81: 78 | BK81: 20 | BL81: 78 | BM81: 16 | BN81: 78 | BO81: 11
H82: 6 | I82: 0.055 | J82: 0 | K82: 0 | O82: 10 | P82: 0.045 | Q82: 0 | R82: 0 | W82: 1 | X82: 2 | Y82: 3 | Z82: 4 | AA82: 5 | AB82: 6 | AC82: 7 | AD82: 8 | AE82: 9 | AF82: 10 | AG82: 11 | AH82: 12 | AI82: 13 | AJ82: 14 | AK82: 15 | AL82: 16 | AM82: 17 | AN82: 18 | AO82: 19 | AP82: 20 | AQ82: 21 | AR82: 22 | AS82: 23 | AT82: 24 | AU82: 25 | AV82: 26 | AW82: 27 | AX82: 28 | AY82: 29 | AZ82: 30 | BA82: 31 | BB82: 32 | BC82: 33 | BE82: 79 | BF82: 26 | BJ82: 79 | BK82: 20 | BL82: 79 | BM82: 16 | BN82: 79 | BO82: 12
H83: 7 | I83: 0.05 | J83: 0 | K83: 0 | O83: 11 | P83: 0.045 | Q83: 0 | R83: 0 | V83: 1 | W83: 1 | X83: 0.6 | Y83: 0.45 | Z83: 0.39 | AA83: 0.3 | AB83: 0.25 | AC83: 0.21 | AD83: 0.19 | AE83: 0.17 | AF83: 0.15 | AG83: 0.14 | AH83: 0.13 | AI83: 0.115 | AJ83: 0.11 | AK83: 0.1 | AL83: 0.095 | AM83: 0.09 | AN83: 0.085 | AO83: 0.08 | AP83: 0.075 | AQ83: 0.072 | AR83: 0.07 | AS83: 0.07 | AT83: 0.065 | AU83: 0.062 | AV83: 0.06 | AW83: 0.057 | AX83: 0.055 | AY83: 0.055 | AZ83: 0.052 | BA83: 0.05 | BB83: 0.048 | BC83: 0.046 | BE83: 80 | BF83: 26 | BJ83: 80 | BK83: 20 | BL83: 80 | BM83: 16 | BN83: 80 | BO83: 12
B84: =SUM(B51:B83) -> 1 | C84: =SUM(C51:C83) -> 0 | D84: =SUM(D51:D83) -> 0 | E84: =SUM(E51:E83) -> 0 | H84: 8 | I84: 0.05 | J84: 0 | K84: 0 | O84: 12 | P84: 0.045 | Q84: 0 | R84: 0 | V84: 2 | X84: 0.4 | Y84: 0.325 | Z84: 0.29 | AA84: 0.25 | AB84: 0.22 | AC84: 0.19 | AD84: 0.17 | AE84: 0.15 | AF84: 0.14 | AG84: 0.13 | AH84: 0.12 | AI84: 0.11 | AJ84: 0.1 | AK84: 0.095 | AL84: 0.09 | AM84: 0.085 | AN84: 0.08 | AO84: 0.075 | AP84: 0.07 | AQ84: 0.068 | AR84: 0.065 | AS84: 0.065 | AT84: 0.06 | AU84: 0.058 | AV84: 0.055 | AW84: 0.055 | AX84: 0.05 | AY84: 0.05 | AZ84: 0.05 | BA84: 0.048 | BB84: 0.046 | BC84: 0.044 | BE84: 81 | BF84: 27 | BJ84: 81 | BK84: 20 | BL84: 81 | BM84: 16 | BN84: 81 | BO84: 12
H85: 9 | I85: 0.05 | J85: 0 | K85: 0 | O85: 13 | P85: 0.04 | Q85: 0 | R85: 0 | V85: 3 | Y85: 0.225 | Z85: 0.2 | AA85: 0.2 | AB85: 0.18 | AC85: 0.17 | AD85: 0.15 | AE85: 0.14 | AF85: 0.13 | AG85: 0.12 | AH85: 0.11 | AI85: 0.105 | AJ85: 0.095 | AK85: 0.09 | AL85: 0.085 | AM85: 0.08 | AN85: 0.075 | AO85: 0.075 | AP85: 0.07 | AQ85: 0.065 | AR85: 0.065 | AS85: 0.06 | AT85: 0.06 | AU85: 0.055 | AV85: 0.055 | AW85: 0.053 | AX85: 0.05 | AY85: 0.05 | AZ85: 0.048 | BA85: 0.046 | BB85: 0.045 | BC85: 0.044 | BE85: 82 | BF85: 27 | BJ85: 82 | BK85: 21 | BL85: 82 | BM85: 17 | BN85: 82 | BO85: 12
A86: * Can be a negative number when expenses like trophies involved | I86: =SUM(I77:I85) -> 0.515 | J86: =SUM(J77:J85) -> 0 | K86: =SUM(K77:K85) -> 0 | L86: =SUM(L77:L85) -> 0 | P86: =SUM(P73:P85) -> 0.69 | Q86: =SUM(Q73:Q85) -> 0 | R86: =SUM(R73:R85) -> 0 | S86: =SUM(S73:S85) -> 0 | V86: 4 | Z86: 0.12 | AA86: 0.15 | AB86: 0.15 | AC86: 0.14 | AD86: 0.13 | AE86: 0.12 | AF86: 0.12 | AG86: 0.11 | AH86: 0.1 | AI86: 0.095 | AJ86: 0.09 | AK86: 0.085 | AL86: 0.08 | AM86: 0.075 | AN86: 0.075 | AO86: 0.07 | AP86: 0.065 | AQ86: 0.065 | AR86: 0.06 | AS86: 0.06 | AT86: 0.055 | AU86: 0.055 | AV86: 0.055 | AW86: 0.05 | AX86: 0.05 | AY86: 0.05 | AZ86: 0.045 | BA86: 0.045 | BB86: 0.044 | BC86: 0.042 | BE86: 83 | BF86: 27 | BJ86: 83 | BK86: 21 | BL86: 83 | BM86: 17 | BN86: 83 | BO86: 12
A87: RECREATIONAL AM DIVISION | H87: GIRLS JR < 15 | O87: BOYS JR < 15 | V87: 5 | AA87: 0.1 | AB87: 0.12 | AC87: 0.12 | AD87: 0.12 | AE87: 0.11 | AF87: 0.11 | AG87: 0.1 | AH87: 0.09 | AI87: 0.09 | AJ87: 0.085 | AK87: 0.08 | AL87: 0.075 | AM87: 0.075 | AN87: 0.07 | AO87: 0.065 | AP87: 0.065 | AQ87: 0.06 | AR87: 0.06 | AS87: 0.055 | AT87: 0.055 | AU87: 0.055 | AV87: 0.05 | AW87: 0.05 | AX87: 0.05 | AY87: 0.045 | AZ87: 0.045 | BA87: 0.044 | BB87: 0.042 | BC87: 0.042 | BE87: 84 | BF87: 28 | BJ87: 84 | BK87: 21 | BL87: 84 | BM87: 17 | BN87: 84 | BO87: 12
E88: Add (or reduce) local cash here* > | F88: 0 | L88: Add (or reduce) local cash here* > | M88: 0 | S88: Add (or reduce) local cash here* > | T88: 0 | V88: 6 | AB88: 0.08 | AC88: 0.1 | AD88: 0.1 | AE88: 0.1 | AF88: 0.09 | AG88: 0.09 | AH88: 0.09 | AI88: 0.08 | AJ88: 0.08 | AK88: 0.075 | AL88: 0.075 | AM88: 0.07 | AN88: 0.065 | AO88: 0.065 | AP88: 0.06 | AQ88: 0.06 | AR88: 0.055 | AS88: 0.055 | AT88: 0.055 | AU88: 0.05 | AV88: 0.05 | AW88: 0.05 | AX88: 0.045 | AY88: 0.045 | AZ88: 0.045 | BA88: 0.042 | BB88: 0.04 | BC88: 0.04 | BE88: 85 | BF88: 28 | BJ88: 85 | BK88: 21 | BL88: 85 | BM88: 17 | BN88: 85 | BO88: 12
A89: # Paid | C89: Field Size | D89: Pay pct | E89: Total Fees: | F89: =Cover!G23 -> 0 | H89: # Paid | J89: Field Size | K89: Pay pct | L89: Total Fees: | M89: =Cover!G44 -> 0 | O89: # Paid | Q89: Field Size | R89: Pay pct | S89: Total Fees: | T89: =Cover!G40 -> 0 | V89: 7 | AC89: 0.07 | AD89: 0.08 | AE89: 0.08 | AF89: 0.08 | AG89: 0.08 | AH89: 0.08 | AI89: 0.075 | AJ89: 0.075 | AK89: 0.07 | AL89: 0.07 | AM89: 0.065 | AN89: 0.065 | AO89: 0.06 | AP89: 0.06 | AQ89: 0.055 | AR89: 0.055 | AS89: 0.05 | AT89: 0.05 | AU89: 0.05 | AV89: 0.05 | AW89: 0.05 | AX89: 0.045 | AY89: 0.045 | AZ89: 0.045 | BA89: 0.04 | BB89: 0.04 | BC89: 0.04 | BE89: 86 | BF89: 28 | BJ89: 86 | BK89: 22 | BL89: 86 | BM89: 17 | BN89: 86 | BO89: 13
A90: =IF(D90=45%,VLOOKUP(C90,dbd,2,FALSE),IF(D90=33%,VLOOKUP(C90,dbe,2,FALSE),IF(D90=25%,VLOOKUP(C90,dbf,2,FALSE),IF(D90=20%,VLOOKUP(C90,dbg,2,FALSE),VLOOKUP(C90,dbh,2,FALSE))))) -> 23 | C90: =IF(Cover!F23=0,91,Cover!F23) -> 91 | D90: 0.25 | E90: Net Purse: | F90: =F89+F88 -> 0 | H90: =IF(K90=45%,VLOOKUP(J90,dbd,2,FALSE),IF(K90=33%,VLOOKUP(J90,dbe,2,FALSE),IF(K90=25%,VLOOKUP(J90,dbf,2,FALSE),IF(K90=20%,VLOOKUP(J90,dbg,2,FALSE),VLOOKUP(J90,dbh,2,FALSE))))) -> 23 | J90: =IF(Cover!F46=0,91,Cover!F46) -> 91 | K90: 0.25 | L90: Net Purse: | M90: =M89+M88 -> 0 | O90: =IF(R90=45%,VLOOKUP(Q90,dbd,2,FALSE),IF(R90=33%,VLOOKUP(Q90,dbe,2,FALSE),IF(R90=25%,VLOOKUP(Q90,dbf,2,FALSE),IF(R90=20%,VLOOKUP(Q90,dbg,2,FALSE),VLOOKUP(Q90,dbh,2,FALSE))))) -> 23 | Q90: =IF(Cover!F40=0,91,Cover!F40) -> 91 | R90: 0.25 | S90: Net Purse: | T90: =T89+T88 -> 0 | V90: 8 | AD90: 0.06 | AE90: 0.07 | AF90: 0.07 | AG90: 0.07 | AH90: 0.07 | AI90: 0.07 | AJ90: 0.07 | AK90: 0.065 | AL90: 0.065 | AM90: 0.065 | AN90: 0.06 | AO90: 0.06 | AP90: 0.055 | AQ90: 0.055 | AR90: 0.055 | AS90: 0.05 | AT90: 0.05 | AU90: 0.05 | AV90: 0.045 | AW90: 0.045 | AX90: 0.045 | AY90: 0.045 | AZ90: 0.04 | BA90: 0.04 | BB90: 0.04 | BC90: 0.038 | BE90: 87 | BF90: 29 | BJ90: 87 | BK90: 22 | BL90: 87 | BM90: 18 | BN90: 87 | BO90: 13
D91: =IF(C90=91," To use this table, enter player divisions on Scores page",IF(C90>66,"Field limit exceeded. Use printed Payout tables.","")) -> To use this table, enter player divisions on Scores page | K91: =IF(J90=91," To use this table, enter player divisions on Scores page",IF(J90>22,"Field limit exceeded. Use printed Payout tables.","")) -> To use this table, enter player divisions on Scores page | R91: =IF(Q90=91," To use this table, enter player divisions on Scores page",IF(Q90>22,"Field limit exceeded. Use printed Payout tables.","")) -> To use this table, enter player divisions on Scores page | V91: 9 | AE91: 0.06 | AF91: 0.06 | AG91: 0.06 | AH91: 0.06 | AI91: 0.065 | AJ91: 0.065 | AK91: 0.06 | AL91: 0.06 | AM91: 0.06 | AN91: 0.055 | AO91: 0.055 | AP91: 0.055 | AQ91: 0.05 | AR91: 0.05 | AS91: 0.05 | AT91: 0.05 | AU91: 0.045 | AV91: 0.045 | AW91: 0.045 | AX91: 0.045 | AY91: 0.04 | AZ91: 0.04 | BA91: 0.04 | BB91: 0.04 | BC91: 0.038 | BE91: 88 | BF91: 29 | BJ91: 88 | BK91: 22 | BL91: 88 | BM91: 18 | BN91: 88 | BO91: 13
B92: Prelim | C92: Proposed | D92: Round to | E92: Manual | F92: Final | I92: Prelim | J92: Proposed | K92: Round to | L92: Manual | M92: Final | P92: Prelim | Q92: Proposed | R92: Round to | S92: Manual | T92: Final | V92: 10 | AF92: 0.05 | AG92: 0.05 | AH92: 0.06 | AI92: 0.06 | AJ92: 0.06 | AK92: 0.06 | AL92: 0.055 | AM92: 0.055 | AN92: 0.055 | AO92: 0.055 | AP92: 0.05 | AQ92: 0.05 | AR92: 0.05 | AS92: 0.045 | AT92: 0.045 | AU92: 0.045 | AV92: 0.045 | AW92: 0.045 | AX92: 0.04 | AY92: 0.04 | AZ92: 0.04 | BA92: 0.04 | BB92: 0.04 | BC92: 0.036 | BE92: 89 | BF92: 29 | BJ92: 89 | BK92: 22 | BL92: 89 | BM92: 18 | BN92: 89 | BO92: 13
A93: Place | B93: Factor | C93: Local Pay | D93: nearest 5 | E93: Adj. (Local) | F93: Place | H93: Place | I93: Factor | J93: Local Pay | K93: nearest 5 | L93: Adj. (Local) | M93: Place | O93: Place | P93: Factor | Q93: Local Pay | R93: nearest 5 | S93: Adj. (Local) | T93: Place | V93: 11 | AG93: 0.05 | AH93: 0.05 | AI93: 0.05 | AJ93: 0.05 | AK93: 0.055 | AL93: 0.05 | AM93: 0.05 | AN93: 0.05 | AO93: 0.05 | AP93: 0.05 | AQ93: 0.05 | AR93: 0.045 | AS93: 0.045 | AT93: 0.045 | AU93: 0.045 | AV93: 0.04 | AW93: 0.04 | AX93: 0.04 | AY93: 0.04 | AZ93: 0.04 | BA93: 0.04 | BB93: 0.035 | BC93: 0.036 | BE93: 90 | BF93: 30 | BJ93: 90 | BK93: 23 | BL93: 90 | BM93: 18 | BN93: 90 | BO93: 13
A94: =IF(ROW()-93>$A$90,"",ROW()-93) -> 1 | B94: =IF(D$90=45%,VLOOKUP(A94,_pay5,A$90+1),VLOOKUP(A94,_pay3,A$90+1)) -> 0.07 | C94: =IF(B94="","",$F$90*B94) -> 0 | D94: =IF(C94="","",INT((C94+2.5)/5)*5) -> 0 | H94: =IF(ROW()-93>$H$90,"",ROW()-93) -> 1 | I94: =IF(K$90=45%,VLOOKUP(H94,_pay5,H$90+1),VLOOKUP(H94,_pay3,H$90+1)) -> 0.07 | J94: =IF(I94="","",$M$90*I94) -> 0 | K94: =IF(J94="","",INT((J94+2.5)/5)*5) -> 0 | O94: =IF(ROW()-93>$O$90,"",ROW()-93) -> 1 | P94: =IF(R$90=45%,VLOOKUP(O94,_pay5,O$90+1),VLOOKUP(O94,_pay3,O$90+1)) -> 0.07 | Q94: =IF(P94="","",$T$90*P94) -> 0 | R94: =IF(Q94="","",INT((Q94+2.5)/5)*5) -> 0 | V94: 12 | AH94: 0.04 | AI94: 0.045 | AJ94: 0.045 | AK94: 0.05 | AL94: 0.05 | AM94: 0.05 | AN94: 0.045 | AO94: 0.05 | AP94: 0.045 | AQ94: 0.045 | AR94: 0.045 | AS94: 0.045 | AT94: 0.04 | AU94: 0.04 | AV94: 0.04 | AW94: 0.04 | AX94: 0.04 | AY94: 0.04 | AZ94: 0.035 | BA94: 0.035 | BB94: 0.035 | BC94: 0.036 | BE94: 91 | BF94: 30 | BJ94: 91 | BK94: 23 | BL94: 91 | BM94: 18 | BN94: 91 | BO94: 13
A95: 2 | B95: =IF(A95="","",IF(D$90=45%,VLOOKUP(A95,_pay5,A$90+1),VLOOKUP(A95,_pay3,A$90+1))) -> 0.065 | C95: 0 | D95: 0 | H95: 2 | I95: =IF(H95="","",IF(K$90=45%,VLOOKUP(H95,_pay5,H$90+1),VLOOKUP(H95,_pay3,H$90+1))) -> 0.065 | J95: 0 | K95: 0 | O95: 2 | P95: =IF(O95="","",IF(R$90=45%,VLOOKUP(O95,_pay5,O$90+1),VLOOKUP(O95,_pay3,O$90+1))) -> 0.065 | Q95: 0 | R95: 0 | V95: 13 | AI95: 0.04 | AJ95: 0.04 | AK95: 0.045 | AL95: 0.045 | AM95: 0.045 | AN95: 0.045 | AO95: 0.045 | AP95: 0.045 | AQ95: 0.045 | AR95: 0.04 | AS95: 0.04 | AT95: 0.04 | AU95: 0.04 | AV95: 0.04 | AW95: 0.04 | AX95: 0.04 | AY95: 0.035 | AZ95: 0.035 | BA95: 0.035 | BB95: 0.035 | BC95: 0.034 | BE95: 92 | BF95: 30 | BJ95: 92 | BK95: 23 | BL95: 92 | BM95: 19 | BN95: 92 | BO95: 13
A96: 3 | B96: 0.06 | C96: 0 | D96: 0 | H96: 3 | I96: 0.06 | J96: 0 | K96: 0 | O96: 3 | P96: 0.06 | Q96: 0 | R96: 0 | V96: 14 | AJ96: 0.03 | AK96: 0.04 | AL96: 0.04 | AM96: 0.04 | AN96: 0.04 | AO96: 0.04 | AP96: 0.04 | AQ96: 0.04 | AR96: 0.04 | AS96: 0.04 | AT96: 0.04 | AU96: 0.04 | AV96: 0.04 | AW96: 0.035 | AX96: 0.035 | AY96: 0.035 | AZ96: 0.035 | BA96: 0.035 | BB96: 0.035 | BC96: 0.034 | BE96: 93 | BF96: 31 | BJ96: 93 | BK96: 23 | BL96: 93 | BM96: 19 | BN96: 93 | BO96: 14
A97: 4 | B97: 0.06 | C97: 0 | D97: 0 | H97: 4 | I97: 0.06 | J97: 0 | K97: 0 | O97: 4 | P97: 0.06 | Q97: 0 | R97: 0 | V97: 15 | AK97: 0.03 | AL97: 0.035 | AM97: 0.035 | AN97: 0.04 | AO97: 0.04 | AP97: 0.04 | AQ97: 0.04 | AR97: 0.04 | AS97: 0.04 | AT97: 0.035 | AU97: 0.035 | AV97: 0.035 | AW97: 0.035 | AX97: 0.035 | AY97: 0.035 | AZ97: 0.035 | BA97: 0.035 | BB97: 0.035 | BC97: 0.032 | BE97: 94 | BF97: 31 | BJ97: 94 | BK97: 24 | BL97: 94 | BM97: 19 | BN97: 94 | BO97: 14
A98: 5 | B98: 0.055 | C98: 0 | D98: 0 | H98: 5 | I98: 0.055 | J98: 0 | K98: 0 | O98: 5 | P98: 0.055 | Q98: 0 | R98: 0 | V98: 16 | AL98: 0.03 | AM98: 0.03 | AN98: 0.035 | AO98: 0.035 | AP98: 0.035 | AQ98: 0.035 | AR98: 0.035 | AS98: 0.035 | AT98: 0.035 | AU98: 0.035 | AV98: 0.035 | AW98: 0.035 | AX98: 0.035 | AY98: 0.035 | AZ98: 0.035 | BA98: 0.03 | BB98: 0.03 | BC98: 0.032 | BE98: 95 | BF98: 31 | BJ98: 95 | BK98: 24 | BL98: 95 | BM98: 19 | BN98: 95 | BO98: 14
A99: 6 | B99: 0.055 | C99: 0 | D99: 0 | H99: 6 | I99: 0.055 | J99: 0 | K99: 0 | O99: 6 | P99: 0.055 | Q99: 0 | R99: 0 | V99: 17 | AM99: 0.03 | AN99: 0.03 | AO99: 0.03 | AP99: 0.035 | AQ99: 0.035 | AR99: 0.035 | AS99: 0.035 | AT99: 0.035 | AU99: 0.035 | AV99: 0.035 | AW99: 0.03 | AX99: 0.03 | AY99: 0.03 | AZ99: 0.03 | BA99: 0.03 | BB99: 0.03 | BC99: 0.03 | BE99: 96 | BF99: 32 | BJ99: 96 | BK99: 24 | BL99: 96 | BM99: 19 | BN99: 96 | BO99: 14
A100: 7 | B100: 0.05 | C100: 0 | D100: 0 | H100: 7 | I100: 0.05 | J100: 0 | K100: 0 | O100: 7 | P100: 0.05 | Q100: 0 | R100: 0 | V100: 18 | AN100: 0.03 | AO100: 0.025 | AP100: 0.03 | AQ100: 0.03 | AR100: 0.03 | AS100: 0.03 | AT100: 0.03 | AU100: 0.03 | AV100: 0.03 | AW100: 0.03 | AX100: 0.03 | AY100: 0.03 | AZ100: 0.03 | BA100: 0.03 | BB100: 0.03 | BC100: 0.03 | BE100: 97 | BF100: 32 | BJ100: 97 | BK100: 24 | BL100: 97 | BM100: 20 | BN100: 97 | BO100: 14
A101: 8 | B101: 0.05 | C101: 0 | D101: 0 | H101: 8 | I101: 0.05 | J101: 0 | K101: 0 | O101: 8 | P101: 0.05 | Q101: 0 | R101: 0 | V101: 19 | AO101: 0.025 | AP101: 0.03 | AQ101: 0.03 | AR101: 0.03 | AS101: 0.03 | AT101: 0.03 | AU101: 0.03 | AV101: 0.03 | AW101: 0.03 | AX101: 0.03 | AY101: 0.03 | AZ101: 0.03 | BA101: 0.03 | BB101: 0.03 | BC101: 0.028 | BE101: 98 | BF101: 32 | BJ101: 98 | BK101: 25 | BL101: 98 | BM101: 20 | BN101: 98 | BO101: 14
A102: 9 | B102: 0.05 | C102: 0 | D102: 0 | H102: 9 | I102: 0.05 | J102: 0 | K102: 0 | O102: 9 | P102: 0.05 | Q102: 0 | R102: 0 | V102: 20 | AP102: 0.025 | AQ102: 0.025 | AR102: 0.025 | AS102: 0.03 | AT102: 0.03 | AU102: 0.03 | AV102: 0.03 | AW102: 0.03 | AX102: 0.03 | AY102: 0.03 | AZ102: 0.03 | BA102: 0.03 | BB102: 0.03 | BC102: 0.028 | BE102: 99 | BF102: 33 | BJ102: 99 | BK102: 25 | BL102: 99 | BM102: 20 | BN102: 99 | BO102: 14
A103: 10 | B103: 0.045 | C103: 0 | D103: 0 | H103: 10 | I103: 0.045 | J103: 0 | K103: 0 | O103: 10 | P103: 0.045 | Q103: 0 | R103: 0 | V103: 21 | AQ103: 0.025 | AR103: 0.025 | AS103: 0.025 | AT103: 0.025 | AU103: 0.025 | AV103: 0.025 | AW103: 0.025 | AX103: 0.025 | AY103: 0.025 | AZ103: 0.025 | BA103: 0.025 | BB103: 0.025 | BC103: 0.026 | BE103: 100 | BF103: 33 | BJ103: 100 | BK103: 25 | BL103: 100 | BM103: 20 | BN103: 100 | BO103: 15
A104: 11 | B104: 0.045 | C104: 0 | D104: 0 | H104: 11 | I104: 0.045 | J104: 0 | K104: 0 | O104: 11 | P104: 0.045 | Q104: 0 | R104: 0 | V104: 22 | AR104: 0.025 | AS104: 0.025 | AT104: 0.025 | AU104: 0.025 | AV104: 0.025 | AW104: 0.025 | AX104: 0.025 | AY104: 0.025 | AZ104: 0.025 | BA104: 0.025 | BB104: 0.025 | BC104: 0.026 | BJ104: 101 | BK104: 25 | BL104: 101 | BM104: 20 | BN104: 101 | BO104: 15
A105: 12 | B105: 0.045 | C105: 0 | D105: 0 | I105: =SUM(I94:I104) -> 0.605 | J105: =SUM(J94:J104) -> 0 | K105: =SUM(K94:K104) -> 0 | L105: =SUM(L94:L104) -> 0 | P105: =SUM(P94:P104) -> 0.605 | Q105: =SUM(Q94:Q104) -> 0 | R105: =SUM(R94:R104) -> 0 | S105: =SUM(S94:S104) -> 0 | V105: 23 | AS105: 0.02 | AT105: 0.025 | AU105: 0.025 | AV105: 0.025 | AW105: 0.025 | AX105: 0.025 | AY105: 0.025 | AZ105: 0.025 | BA105: 0.025 | BB105: 0.025 | BC105: 0.024 | BJ105: 102 | BK105: 26 | BL105: 102 | BM105: 21 | BN105: 102 | BO105: 15
A106: 13 | B106: 0.04 | C106: 0 | D106: 0 | V106: 24 | AT106: 0.02 | AU106: 0.02 | AV106: 0.02 | AW106: 0.02 | AX106: 0.025 | AY106: 0.025 | AZ106: 0.025 | BA106: 0.025 | BB106: 0.025 | BC106: 0.024 | BJ106: 103 | BK106: 26 | BL106: 103 | BM106: 21 | BN106: 103 | BO106: 15
A107: 14 | B107: 0.04 | C107: 0 | D107: 0 | V107: 25 | AU107: 0.02 | AV107: 0.02 | AW107: 0.02 | AX107: 0.02 | AY107: 0.02 | AZ107: 0.02 | BA107: 0.025 | BB107: 0.02 | BC107: 0.022 | BJ107: 104 | BK107: 26 | BL107: 104 | BM107: 21 | BN107: 104 | BO107: 15
A108: 15 | B108: 0.04 | C108: 0 | D108: 0 | V108: 26 | AV108: 0.02 | AW108: 0.02 | AX108: 0.02 | AY108: 0.02 | AZ108: 0.02 | BA108: 0.02 | BB108: 0.02 | BC108: 0.022 | BJ108: 105 | BK108: 26 | BL108: 105 | BM108: 21 | BN108: 105 | BO108: 15
A109: 16 | B109: 0.035 | C109: 0 | D109: 0 | H109: GIRLS JR < 12 | O109: BOYS JR < 12 | V109: 27 | AW109: 0.02 | AX109: 0.02 | AY109: 0.02 | AZ109: 0.02 | BA109: 0.02 | BB109: 0.02 | BC109: 0.02 | BJ109: 106 | BK109: 27 | BL109: 106 | BM109: 21 | BN109: 106 | BO109: 15
A110: 17 | B110: 0.035 | C110: 0 | D110: 0 | L110: Add (or reduce) local cash here* > | M110: 0 | S110: Add (or reduce) local cash here* > | T110: 0 | V110: 28 | AX110: 0.02 | AY110: 0.02 | AZ110: 0.02 | BA110: 0.02 | BB110: 0.02 | BC110: 0.02 | BJ110: 107 | BK110: 27 | BL110: 107 | BM110: 22 | BN110: 107 | BO110: 16
A111: 18 | B111: 0.03 | C111: 0 | D111: 0 | H111: # Paid | J111: Field Size | K111: Pay pct | L111: Total Fees: | M111: =Cover!G45 -> 0 | O111: # Paid | Q111: Field Size | R111: Pay pct | S111: Total Fees: | T111: =Cover!G41 -> 0 | V111: 29 | AY111: 0.015 | AZ111: 0.02 | BA111: 0.02 | BB111: 0.02 | BC111: 0.018 | BJ111: 108 | BK111: 27 | BL111: 108 | BM111: 22 | BN111: 108 | BO111: 16
A112: 19 | B112: 0.03 | C112: 0 | D112: 0 | H112: =IF(K112=45%,VLOOKUP(J112,dbd,2,FALSE),IF(K112=33%,VLOOKUP(J112,dbe,2,FALSE),IF(K112=25%,VLOOKUP(J112,dbf,2,FALSE),IF(K112=20%,VLOOKUP(J112,dbg,2,FALSE),VLOOKUP(J112,dbh,2,FALSE))))) -> 23 | J112: =IF(Cover!F47=0,91,Cover!F47) -> 91 | K112: 0.25 | L112: Net Purse: | M112: =M111+M110 -> 0 | O112: =IF(R112=45%,VLOOKUP(Q112,dbd,2,FALSE),IF(R112=33%,VLOOKUP(Q112,dbe,2,FALSE),IF(R112=25%,VLOOKUP(Q112,dbf,2,FALSE),IF(R112=20%,VLOOKUP(Q112,dbg,2,FALSE),VLOOKUP(Q112,dbh,2,FALSE))))) -> 23 | Q112: =IF(Cover!F41=0,91,Cover!F41) -> 91 | R112: 0.25 | S112: Net Purse: | T112: =T111+T110 -> 0 | V112: 30 | AZ112: 0.015 | BA112: 0.015 | BB112: 0.02 | BC112: 0.018 | BJ112: 109 | BK112: 27 | BL112: 109 | BM112: 22 | BN112: 109 | BO112: 16
A113: 20 | B113: 0.03 | C113: 0 | D113: 0 | K113: =IF(J112=91," To use this table, enter player divisions on Scores page",IF(J112>22,"Field limit exceeded. Use printed Payout tables.","")) -> To use this table, enter player divisions on Scores page | R113: =IF(Q112=91," To use this table, enter player divisions on Scores page",IF(Q112>22,"Field limit exceeded. Use printed Payout tables.","")) -> To use this table, enter player divisions on Scores page | V113: 31 | BA113: 0.015 | BB113: 0.015 | BC113: 0.018 | BJ113: 110 | BK113: 28 | BL113: 110 | BM113: 22 | BN113: 110 | BO113: 16
A114: 21 | B114: 0.025 | C114: 0 | D114: 0 | I114: Prelim | J114: Proposed | K114: Round to | L114: Manual | M114: Final | P114: Prelim | Q114: Proposed | R114: Round to | S114: Manual | T114: Final | V114: 32 | BB114: 0.015 | BC114: 0.016 | BJ114: 111 | BK114: 28 | BL114: 111 | BM114: 22 | BN114: 111 | BO114: 16
A115: 22 | B115: 0.025 | C115: 0 | D115: 0 | H115: Place | I115: Factor | J115: Local Pay | K115: nearest 5 | L115: Adj. (Local) | M115: Place | O115: Place | P115: Factor | Q115: Local Pay | R115: nearest 5 | S115: Adj. (Local) | T115: Place | V115: 33 | BC115: 0.016 | BJ115: 112 | BK115: 28 | BL115: 112 | BM115: 23 | BN115: 112 | BO115: 16
A116: 23 | B116: 0.02 | C116: 0 | D116: 0 | H116: =IF(ROW()-115>$H$112,"",ROW()-115) -> 1 | I116: =IF(K$112=45%,VLOOKUP(H116,_pay5,H$112+1),VLOOKUP(H116,_pay3,H$112+1)) -> 0.07 | J116: =IF(I116="","",$M$112*I116) -> 0 | K116: =IF(J116="","",INT((J116+2.5)/5)*5) -> 0 | O116: =IF(ROW()-115>$O$112,"",ROW()-115) -> 1 | P116: =IF(R$112=45%,VLOOKUP(O116,_pay5,O$112+1),VLOOKUP(O116,_pay3,O$112+1)) -> 0.07 | Q116: =IF(P116="","",$T$112*P116) -> 0 | R116: =IF(Q116="","",INT((Q116+2.5)/5)*5) -> 0 | BJ116: 113 | BK116: 28 | BL116: 113 | BM116: 23 | BN116: 113 | BO116: 16
H117: 2 | I117: =IF(H117="","",IF(K$112=45%,VLOOKUP(H117,_pay5,H$112+1),VLOOKUP(H117,_pay3,H$112+1))) -> 0.065 | J117: 0 | K117: 0 | O117: 2 | P117: =IF(O117="","",IF(R$112=45%,VLOOKUP(O117,_pay5,O$112+1),VLOOKUP(O117,_pay3,O$112+1))) -> 0.065 | Q117: 0 | R117: 0 | BJ117: 114 | BK117: 29 | BL117: 114 | BM117: 23 | BN117: 114 | BO117: 17
H118: 3 | I118: 0.06 | J118: 0 | K118: 0 | O118: 3 | P118: 0.06 | Q118: 0 | R118: 0 | BJ118: 115 | BK118: 29 | BL118: 115 | BM118: 23 | BN118: 115 | BO118: 17
H119: 4 | I119: 0.06 | J119: 0 | K119: 0 | O119: 4 | P119: 0.06 | Q119: 0 | R119: 0 | BJ119: 116 | BK119: 29 | BL119: 116 | BM119: 23 | BN119: 116 | BO119: 17
H120: 5 | I120: 0.055 | J120: 0 | K120: 0 | O120: 5 | P120: 0.055 | Q120: 0 | R120: 0 | BJ120: 117 | BK120: 29 | BL120: 117 | BM120: 24 | BN120: 117 | BO120: 17
H121: 6 | I121: 0.055 | J121: 0 | K121: 0 | O121: 6 | P121: 0.055 | Q121: 0 | R121: 0 | BJ121: 118 | BK121: 30 | BL121: 118 | BM121: 24 | BN121: 118 | BO121: 17
H122: 7 | I122: 0.05 | J122: 0 | K122: 0 | O122: 7 | P122: 0.05 | Q122: 0 | R122: 0 | BJ122: 119 | BK122: 30 | BL122: 119 | BM122: 24 | BN122: 119 | BO122: 17
H123: 8 | I123: 0.05 | J123: 0 | K123: 0 | O123: 8 | P123: 0.05 | Q123: 0 | R123: 0 | BJ123: 120 | BK123: 30 | BL123: 120 | BM123: 24 | BN123: 120 | BO123: 17
H124: 9 | I124: 0.05 | J124: 0 | K124: 0 | O124: 9 | P124: 0.05 | Q124: 0 | R124: 0 | BJ124: 121 | BK124: 30 | BL124: 121 | BM124: 24 | BN124: 121 | BO124: 18
H125: 10 | I125: 0.045 | J125: 0 | K125: 0 | O125: 10 | P125: 0.045 | Q125: 0 | R125: 0 | BJ125: 122 | BK125: 31 | BL125: 122 | BM125: 25 | BN125: 122 | BO125: 18
H126: 11 | I126: 0.045 | J126: 0 | K126: 0 | O126: 11 | P126: 0.045 | Q126: 0 | R126: 0 | BJ126: 123 | BK126: 31 | BL126: 123 | BM126: 25 | BN126: 123 | BO126: 18
B127: =SUM(B94:B126) -> 1 | C127: =SUM(C94:C126) -> 0 | D127: =SUM(D94:D126) -> 0 | E127: =SUM(E94:E126) -> 0 | I127: =SUM(I116:I126) -> 0.605 | J127: =SUM(J116:J126) -> 0 | K127: =SUM(K116:K126) -> 0 | L127: =SUM(L116:L126) -> 0 | P127: =SUM(P116:P126) -> 0.605 | Q127: =SUM(Q116:Q126) -> 0 | R127: =SUM(R116:R126) -> 0 | S127: =SUM(S116:S126) -> 0 | BJ127: 124 | BK127: 31 | BL127: 124 | BM127: 25 | BN127: 124 | BO127: 18
A128: * Can be a negative number when expenses like trophies involved | BJ128: 125 | BK128: 31 | BL128: 125 | BM128: 25 | BN128: 125 | BO128: 18
A129: GIRLS JR < 10 | H129: BOYS JR < 10 | O129: NOVICE AM DIVISION | BJ129: 126 | BK129: 32 | BL129: 126 | BM129: 25 | BN129: 126 | BO129: 18
E130: Add (or reduce) local cash here* > | F130: 0 | L130: Add (or reduce) local cash here* > | M130: 0 | S130: Add (or reduce) local cash here* > | T130: 0 | BJ130: 127 | BK130: 32 | BL130: 127 | BM130: 26 | BN130: 127 | BO130: 18
A131: # Paid | C131: Field Size | D131: Pay pct | E131: Total Fees: | F131: =Cover!G50 -> 0 | H131: # Paid | J131: Field Size | K131: Pay pct | L131: Total Fees: | M131: =Cover!G42 -> 0 | O131: # Paid | Q131: Field Size | R131: Pay pct | S131: Total Fees: | T131: =Cover!G24 -> 0 | BJ131: 128 | BK131: 32 | BL131: 128 | BM131: 26 | BN131: 128 | BO131: 19
A132: =IF(D132=45%,VLOOKUP(C132,dbd,2,FALSE),IF(D132=33%,VLOOKUP(C132,dbe,2,FALSE),IF(D132=25%,VLOOKUP(C132,dbf,2,FALSE),IF(D132=20%,VLOOKUP(C132,dbg,2,FALSE),VLOOKUP(C132,dbh,2,FALSE))))) -> 23 | C132: =IF(Cover!F48=0,91,Cover!F48) -> 91 | D132: 0.25 | E132: Net Purse: | F132: =F131+F130 -> 0 | H132: =IF(K132=45%,VLOOKUP(J132,dbd,2,FALSE),IF(K132=33%,VLOOKUP(J132,dbe,2,FALSE),IF(K132=25%,VLOOKUP(J132,dbf,2,FALSE),IF(K132=20%,VLOOKUP(J132,dbg,2,FALSE),VLOOKUP(J132,dbh,2,FALSE))))) -> 23 | J132: =IF(Cover!F42=0,91,Cover!F42) -> 91 | K132: 0.25 | L132: Net Purse: | M132: =M131+M130 -> 0 | O132: =IF(R132=45%,VLOOKUP(Q132,dbd,2,FALSE),IF(R132=33%,VLOOKUP(Q132,dbe,2,FALSE),IF(R132=25%,VLOOKUP(Q132,dbf,2,FALSE),IF(R132=20%,VLOOKUP(Q132,dbg,2,FALSE),VLOOKUP(Q132,dbh,2,FALSE))))) -> 23 | Q132: =IF(Cover!F24=0,91,Cover!F24) -> 91 | R132: 0.25 | S132: Net Purse: | T132: =T131+T130 -> 0 | BJ132: 129 | BK132: 32 | BL132: 129 | BM132: 26 | BN132: 129 | BO132: 19
D133: =IF(C132=91," To use this table, enter player divisions on Scores page",IF(C132>22,"Field limit exceeded. Use printed Payout tables.","")) -> To use this table, enter player divisions on Scores page | K133: =IF(J132=91," To use this table, enter player divisions on Scores page",IF(J132>22,"Field limit exceeded. Use printed Payout tables.","")) -> To use this table, enter player divisions on Scores page | R133: =IF(Q132=91," To use this table, enter player divisions on Scores page",IF(Q132>22,"Field limit exceeded. Use printed Payout tables.","")) -> To use this table, enter player divisions on Scores page | BJ133: 130 | BK133: =ROUND(0.25*BJ133,0) -> 33 | BL133: 130 | BM133: 26 | BN133: 130 | BO133: 19
B134: Prelim | C134: Proposed | D134: Round to | E134: Manual | F134: Final | I134: Prelim | J134: Proposed | K134: Round to | L134: Manual | M134: Final | P134: Prelim | Q134: Proposed | R134: Round to | S134: Manual | T134: Final | BJ134: 131 | BK134: =ROUND(0.25*BJ134,0) -> 33 | BL134: 131 | BM134: 26 | BN134: 131 | BO134: 19
A135: Place | B135: Factor | C135: Local Pay | D135: nearest 5 | E135: Adj. (Local) | F135: Place | H135: Place | I135: Factor | J135: Local Pay | K135: nearest 5 | L135: Adj. (Local) | M135: Place | O135: Place | P135: Factor | Q135: Local Pay | R135: nearest 5 | S135: Adj. (Local) | T135: Place | BJ135: 132 | BK135: =ROUND(0.25*BJ135,0) -> 33 | BL135: 132 | BM135: 27 | BN135: 132 | BO135: 19
A136: =IF(ROW()-135>$A$132,"",ROW()-135) -> 1 | B136: =IF(D$132=45%,VLOOKUP(A136,_pay5,A$132+1),VLOOKUP(A136,_pay3,A$132+1)) -> 0.07 | C136: =IF(B136="","",$F$132*B136) -> 0 | D136: =IF(C136="","",INT((C136+2.5)/5)*5) -> 0 | H136: =IF(ROW()-135>$H$132,"",ROW()-135) -> 1 | I136: =IF(K$132=45%,VLOOKUP(H136,_pay5,H$132+1),VLOOKUP(H136,_pay3,H$132+1)) -> 0.07 | J136: =IF(I136="","",$M$132*I136) -> 0 | K136: =IF(J136="","",INT((J136+2.5)/5)*5) -> 0 | O136: =IF(ROW()-135>$O$132,"",ROW()-135) -> 1 | P136: =IF(R$132=45%,VLOOKUP(O136,_pay5,O$132+1),VLOOKUP(O136,_pay3,O$132+1)) -> 0.07 | Q136: =IF(P136="","",$T$132*P136) -> 0 | R136: =IF(Q136="","",INT((Q136+2.5)/5)*5) -> 0 | BJ136: 133 | BK136: =ROUND(0.25*BJ136,0) -> 33 | BL136: 133 | BM136: 27 | BN136: 133 | BO136: 19
A137: 2 | B137: =IF(A137="","",IF(D$132=45%,VLOOKUP(A137,_pay5,A$132+1),VLOOKUP(A137,_pay3,A$132+1))) -> 0.065 | C137: 0 | D137: 0 | H137: 2 | I137: =IF(H137="","",IF(K$132=45%,VLOOKUP(H137,_pay5,H$132+1),VLOOKUP(H137,_pay3,H$132+1))) -> 0.065 | J137: 0 | K137: 0 | O137: 2 | P137: =IF(O137="","",IF(R$132=45%,VLOOKUP(O137,_pay5,O$132+1),VLOOKUP(O137,_pay3,O$132+1))) -> 0.065 | Q137: 0 | R137: 0 | BL137: 134 | BM137: 27 | BN137: 134 | BO137: 19
A138: 3 | B138: 0.06 | C138: 0 | D138: 0 | H138: 3 | I138: 0.06 | J138: 0 | K138: 0 | O138: 3 | P138: 0.06 | Q138: 0 | R138: 0 | BL138: 135 | BM138: 27 | BN138: 135 | BO138: 20
A139: 4 | B139: 0.06 | C139: 0 | D139: 0 | H139: 4 | I139: 0.06 | J139: 0 | K139: 0 | O139: 4 | P139: 0.06 | Q139: 0 | R139: 0 | BL139: 136 | BM139: 27 | BN139: 136 | BO139: 20
A140: 5 | B140: 0.055 | C140: 0 | D140: 0 | H140: 5 | I140: 0.055 | J140: 0 | K140: 0 | O140: 5 | P140: 0.055 | Q140: 0 | R140: 0 | BL140: 137 | BM140: 28 | BN140: 137 | BO140: 20
A141: 6 | B141: 0.055 | C141: 0 | D141: 0 | H141: 6 | I141: 0.055 | J141: 0 | K141: 0 | O141: 6 | P141: 0.055 | Q141: 0 | R141: 0 | BL141: 138 | BM141: 28 | BN141: 138 | BO141: 20
A142: 7 | B142: 0.05 | C142: 0 | D142: 0 | H142: 7 | I142: 0.05 | J142: 0 | K142: 0 | O142: 7 | P142: 0.05 | Q142: 0 | R142: 0 | BL142: 139 | BM142: 28 | BN142: 139 | BO142: 20
A143: 8 | B143: 0.05 | C143: 0 | D143: 0 | H143: 8 | I143: 0.05 | J143: 0 | K143: 0 | O143: 8 | P143: 0.05 | Q143: 0 | R143: 0 | BL143: 140 | BM143: 28 | BN143: 140 | BO143: 20
A144: 9 | B144: 0.05 | C144: 0 | D144: 0 | H144: 9 | I144: 0.05 | J144: 0 | K144: 0 | O144: 9 | P144: 0.05 | Q144: 0 | R144: 0 | BL144: 141 | BM144: 28 | BN144: 141 | BO144: 20
A145: 10 | B145: 0.045 | C145: 0 | D145: 0 | H145: 10 | I145: 0.045 | J145: 0 | K145: 0 | O145: 10 | P145: 0.045 | Q145: 0 | R145: 0 | BL145: 142 | BM145: 29 | BN145: 142 | BO145: 21
A146: 11 | B146: 0.045 | C146: 0 | D146: 0 | H146: 11 | I146: 0.045 | J146: 0 | K146: 0 | O146: 11 | P146: 0.045 | Q146: 0 | R146: 0 | BL146: 143 | BM146: 29 | BN146: 143 | BO146: 21
B147: =SUM(B136:B146) -> 0.605 | C147: =SUM(C136:C146) -> 0 | D147: =SUM(D136:D146) -> 0 | E147: =SUM(E136:E146) -> 0 | I147: =SUM(I136:I146) -> 0.605 | J147: =SUM(J136:J146) -> 0 | K147: =SUM(K136:K146) -> 0 | L147: =SUM(L136:L146) -> 0 | P147: =SUM(P136:P146) -> 0.605 | Q147: =SUM(Q136:Q146) -> 0 | R147: =SUM(R136:R146) -> 0 | S147: =SUM(S136:S146) -> 0 | BL147: 144 | BM147: 29 | BN147: 144 | BO147: 21
A149: ADV WOMEN GRANDMASTER | H149: ADV WOMEN SR GRANDMASTER | O149: NOVICE WOMEN AM
E150: Add (or reduce) local cash here* > | F150: 0 | L150: Add (or reduce) local cash here* > | M150: 0 | S150: Add (or reduce) local cash here* > | T150: 0
A151: # Paid | C151: Field Size | D151: Pay pct | E151: Total Fees: | F151: =Cover!G30 -> 0 | H151: # Paid | J151: Field Size | K151: Pay pct | L151: Total Fees: | M151: =Cover!G31 -> 0 | O151: # Paid | Q151: Field Size | R151: Pay pct | S151: Total Fees: | T151: =Cover!G36 -> 0
A152: =IF(D152=45%,VLOOKUP(C152,dbd,2,FALSE),IF(D152=33%,VLOOKUP(C152,dbe,2,FALSE),IF(D152=25%,VLOOKUP(C152,dbf,2,FALSE),IF(D152=20%,VLOOKUP(C152,dbg,2,FALSE),VLOOKUP(C152,dbh,2,FALSE))))) -> 23 | C152: =IF(Cover!F30=0,91,Cover!F30) -> 91 | D152: 0.25 | E152: Net Purse: | F152: =F151+F150 -> 0 | H152: =IF(K152=45%,VLOOKUP(J152,dbd,2,FALSE),IF(K152=33%,VLOOKUP(J152,dbe,2,FALSE),IF(K152=25%,VLOOKUP(J152,dbf,2,FALSE),IF(K152=20%,VLOOKUP(J152,dbg,2,FALSE),VLOOKUP(J152,dbh,2,FALSE))))) -> 23 | J152: =IF(Cover!F31=0,91,Cover!F31) -> 91 | K152: 0.25 | L152: Net Purse: | M152: =M151+M150 -> 0 | O152: =IF(R152=45%,VLOOKUP(Q152,dbd,2,FALSE),IF(R152=33%,VLOOKUP(Q152,dbe,2,FALSE),IF(R152=25%,VLOOKUP(Q152,dbf,2,FALSE),IF(R152=20%,VLOOKUP(Q152,dbg,2,FALSE),VLOOKUP(Q152,dbh,2,FALSE))))) -> 23 | Q152: =IF(Cover!F36=0,91,Cover!F36) -> 91 | R152: 0.25 | S152: Net Purse: | T152: =T151+T150 -> 0
D153: =IF(C152=91," To use this table, enter player divisions on Scores page",IF(C152>22,"Field limit exceeded. Use printed Payout tables.","")) -> To use this table, enter player divisions on Scores page | K153: =IF(J152=91," To use this table, enter player divisions on Scores page",IF(J152>4,"Field limit exceeded. Use printed Payout tables.","")) -> To use this table, enter player divisions on Scores page | R153: =IF(Q152=91," To use this table, enter player divisions on Scores page",IF(Q152>16,"Field limit exceeded. Use printed Payout tables.","")) -> To use this table, enter player divisions on Scores page
B154: Prelim | C154: Proposed | D154: Round to | E154: Manual | F154: Final | I154: Prelim | J154: Proposed | K154: Round to | L154: Manual | M154: Final | P154: Prelim | Q154: Proposed | R154: Round to | S154: Manual | T154: Final
A155: Place | B155: Factor | C155: Local Pay | D155: nearest 5 | E155: Adj. (Local) | F155: Place | H155: Place | I155: Factor | J155: Local Pay | K155: nearest 5 | L155: Adj. (Local) | M155: Place | O155: Place | P155: Factor | Q155: Local Pay | R155: nearest 5 | S155: Adj. (Local) | T155: Place
A156: =IF(ROW()-155>$A$152,"",ROW()-155) -> 1 | B156: =IF(D$152=45%,VLOOKUP(A156,_pay5,A$152+1),VLOOKUP(A156,_pay3,A$152+1)) -> 0.07 | C156: =IF(B156="","",$F$132*B156) -> 0 | D156: =IF(C156="","",INT((C156+2.5)/5)*5) -> 0 | H156: =IF(ROW()-155>$H$152,"",ROW()-155) -> 1 | I156: =IF(K$152=45%,VLOOKUP(H156,_pay5,H$152+1),VLOOKUP(H156,_pay3,H$152+1)) -> 0.07 | J156: =IF(I156="","",$M$152*I156) -> 0 | K156: =IF(J156="","",INT((J156+2.5)/5)*5) -> 0 | O156: =IF(ROW()-155>$O$152,"",ROW()-155) -> 1 | P156: =IF(R$152=45%,VLOOKUP(O156,_pay5,O$152+1),VLOOKUP(O156,_pay3,O$152+1)) -> 0.07 | Q156: =IF(P156="","",$T$152*P156) -> 0 | R156: =IF(Q156="","",INT((Q156+2.5)/5)*5) -> 0
A157: 2 | B157: =IF(A157="","",IF(D$152=45%,VLOOKUP(A157,_pay5,A$152+1),VLOOKUP(A157,_pay3,A$152+1))) -> 0.065 | C157: 0 | D157: 0 | H157: =IF(ROW()-155>$H$152,"",ROW()-155) -> 2 | I157: =IF(H157="","",IF(K$152=45%,VLOOKUP(H157,_pay5,H$152+1),VLOOKUP(H157,_pay3,H$152+1))) -> 0.065 | J157: =IF(I157="","",$M$152*I157) -> 0 | K157: =IF(J157="","",INT((J157+2.5)/5)*5) -> 0 | O157: 2 | P157: =IF(O157="","",IF(R$152=45%,VLOOKUP(O157,_pay5,O$152+1),VLOOKUP(O157,_pay3,O$152+1))) -> 0.065 | Q157: 0 | R157: 0
A158: 3 | B158: 0.06 | C158: 0 | D158: 0 | I158: =SUM(I156:I157) -> 0.135 | J158: =SUM(J156:J157) -> 0 | K158: =SUM(K156:K157) -> 0 | L158: =SUM(L156:L157) -> 0 | O158: 3 | P158: 0.06 | Q158: 0 | R158: 0
A159: 4 | B159: 0.06 | C159: 0 | D159: 0 | O159: 4 | P159: 0.06 | Q159: 0 | R159: 0
A160: 5 | B160: 0.055 | C160: 0 | D160: 0 | H160: ADVANCED LEGENDS | O160: 5 | P160: 0.055 | Q160: 0 | R160: 0
A161: 6 | B161: 0.055 | C161: 0 | D161: 0 | L161: Add (or reduce) local cash here* > | M161: 0 | O161: 6 | P161: 0.055 | Q161: 0 | R161: 0
A162: 7 | B162: 0.05 | C162: 0 | D162: 0 | H162: # Paid | J162: Field Size | K162: Pay pct | L162: Total Fees: | M162: =Cover!G28 -> 0 | O162: 7 | P162: 0.05 | Q162: 0 | R162: 0
A163: 8 | B163: 0.05 | C163: 0 | D163: 0 | H163: =IF(K163=45%,VLOOKUP(J163,dbd,2,FALSE),IF(K163=33%,VLOOKUP(J163,dbe,2,FALSE),IF(K163=25%,VLOOKUP(J163,dbf,2,FALSE),IF(K163=20%,VLOOKUP(J163,dbg,2,FALSE),VLOOKUP(J163,dbh,2,FALSE))))) -> 23 | J163: =IF(Cover!F28=0,91,Cover!F28) -> 91 | K163: 0.25 | L163: Net Purse: | M163: =M162+M161 -> 0 | O163: 8 | P163: 0.05 | Q163: 0 | R163: 0
A164: 9 | B164: 0.05 | C164: 0 | D164: 0 | K164: =IF(J163=91," To use this table, enter player divisions on Scores page",IF(J163>4,"Field limit exceeded. Use printed Payout tables.","")) -> To use this table, enter player divisions on Scores page | P164: =SUM(P156:P163) -> 0.465 | Q164: =SUM(Q156:Q163) -> 0 | R164: =SUM(R156:R163) -> 0 | S164: =SUM(S156:S163) -> 0
A165: 10 | B165: 0.045 | C165: 0 | D165: 0 | I165: Prelim | J165: Proposed | K165: Round to | L165: Manual | M165: Final
A166: 11 | B166: 0.045 | C166: 0 | D166: 0 | H166: Place | I166: Factor | J166: Local Pay | K166: nearest 5 | L166: Adj. (Local) | M166: Place | O166: ADV WOMEN LEGENDS
B167: =SUM(B156:B166) -> 0.605 | C167: =SUM(C156:C166) -> 0 | D167: =SUM(D156:D166) -> 0 | E167: =SUM(E156:E166) -> 0 | H167: =IF(ROW()-166>$H$163,"",ROW()-166) -> 1 | I167: =IF(K$163=45%,VLOOKUP(H167,_pay5,H$163+1),VLOOKUP(H167,_pay3,H$163+1)) -> 0.07 | J167: =IF(I167="","",$M$163*I167) -> 0 | K167: =IF(J167="","",INT((J167+2.5)/5)*5) -> 0 | S167: Add (or reduce) local cash here* > | T167: 0
A168: GIRLS JR < 6 | H168: =IF(ROW()-166>$H$163,"",ROW()-166) -> 2 | I168: =IF(H168="","",IF(K$163=45%,VLOOKUP(H168,_pay5,H$163+1),VLOOKUP(H168,_pay3,H$163+1))) -> 0.065 | J168: =IF(I168="","",$M$163*I168) -> 0 | K168: =IF(J168="","",INT((J168+2.5)/5)*5) -> 0 | O168: # Paid | Q168: Field Size | R168: Pay pct | S168: Total Fees: | T168: =Cover!G32 -> 0
E169: Enter Added Cash (or deduction) here* > | F169: 0 | I169: =SUM(I167:I168) -> 0.135 | J169: =SUM(J167:J168) -> 0 | K169: =SUM(K167:K168) -> 0 | L169: =SUM(L167:L168) -> 0 | O169: =IF(R169=45%,VLOOKUP(Q169,dbd,2,FALSE),IF(R169=33%,VLOOKUP(Q169,dbe,2,FALSE),IF(R169=25%,VLOOKUP(Q169,dbf,2,FALSE),IF(R169=20%,VLOOKUP(Q169,dbg,2,FALSE),VLOOKUP(Q169,dbh,2,FALSE))))) -> 23 | Q169: =IF(Cover!F32=0,91,Cover!F32) -> 91 | R169: 0.25 | S169: Net Purse: | T169: =T168+T167 -> 0
A170: # Paid | C170: Field Size | D170: Pay pct | E170: Total Fees: | F170: =Cover!G50 -> 0 | R170: =IF(Q169=91," To use this table, enter player divisions on Scores page",IF(Q169>4,"Field limit exceeded. Use printed Payout tables.","")) -> To use this table, enter player divisions on Scores page
A171: =IF(D171=45%,VLOOKUP(C171,dbd,2,FALSE),IF(D171=33%,VLOOKUP(C171,dbe,2,FALSE),IF(D171=25%,VLOOKUP(C171,dbf,2,FALSE),IF(D171=20%,VLOOKUP(C171,dbg,2,FALSE),VLOOKUP(C171,dbh,2,FALSE))))) -> 23 | C171: =IF(Cover!F50=0,91,Cover!F50) -> 91 | D171: 0.25 | E171: Net Purse: | F171: =F170+F169 -> 0 | P171: Prelim | Q171: Proposed | R171: Round to | S171: Manual | T171: Final
D172: =IF(C171=91," To use this table, enter player divisions on Scores page",IF(C171>22,"Field limit exceeded. Use printed Payout tables.","")) -> To use this table, enter player divisions on Scores page | O172: Place | P172: Factor | Q172: Local Pay | R172: nearest 5 | S172: Adj. (Local) | T172: Place
B173: Prelim | C173: Proposed | D173: Round | E173: Manual | F173: Final | O173: =IF(ROW()-172>$O$169,"",ROW()-172) -> 1 | P173: =IF(R$169=45%,VLOOKUP(O173,_pay5,O$169+1),VLOOKUP(O173,_pay3,O$169+1)) -> 0.07 | Q173: =IF(P173="","",$T$169*P173) -> 0 | R173: =IF(Q173="","",INT((Q173+2.5)/5)*5) -> 0
A174: Place | B174: Factor | C174: Payout $$ | D174: to $5 | E174: Adj. | F174: Place | O174: =IF(ROW()-172>$O$169,"",ROW()-172) -> 2 | P174: =IF(O174="","",IF(R$169=45%,VLOOKUP(O174,_pay5,O$169+1),VLOOKUP(O174,_pay3,O$169+1))) -> 0.065 | Q174: =IF(P174="","",$T$169*P174) -> 0 | R174: =IF(Q174="","",INT((Q174+2.5)/5)*5) -> 0
A175: =IF(ROW()-174>$A$171,"",ROW()-174) -> 1 | B175: =IF(D$171=45%,VLOOKUP(A175,__pay5,A$171+1),VLOOKUP(A175,__pay3,A$171+1)) -> 0.07 | C175: =IF(B175="","",$F$171*B175) -> 0 | D175: =IF(C175="","",INT((C175+2.5)/5)*5) -> 0 | P175: =SUM(P173:P174) -> 0.135 | Q175: =SUM(Q173:Q174) -> 0 | R175: =SUM(R173:R174) -> 0 | S175: =SUM(S173:S174) -> 0
A176: =IF(ROW()-174>$A$171,"",ROW()-174) -> 2 | B176: =IF(A176="","",IF(D$171=45%,VLOOKUP(A176,__pay5,A$171+1),VLOOKUP(A176,__pay3,A$171+1))) -> 0.065 | C176: =IF(B176="","",$F$171*B176) -> 0 | D176: =IF(C176="","",INT((C176+2.5)/5)*5) -> 0
A177: =IF(ROW()-174>$A$171,"",ROW()-174) -> 3 | B177: =IF(A177="","",IF(D$171=45%,VLOOKUP(A177,__pay5,A$171+1),VLOOKUP(A177,__pay3,A$171+1))) -> 0.06 | C177: =IF(B177="","",$F$171*B177) -> 0 | D177: =IF(C177="","",INT((C177+2.5)/5)*5) -> 0
A178: =IF(ROW()-174>$A$171,"",ROW()-174) -> 4 | B178: =IF(A178="","",IF(D$171=45%,VLOOKUP(A178,__pay5,A$171+1),VLOOKUP(A178,__pay3,A$171+1))) -> 0.06 | C178: =IF(B178="","",$F$171*B178) -> 0 | D178: =IF(C178="","",INT((C178+2.5)/5)*5) -> 0
B179: =SUM(B175:B178) -> 0.255 | C179: =SUM(C175:C178) -> 0 | D179: =SUM(D175:D178) -> 0 | E179: =SUM(E175:E178) -> 0
A180: GIRLS JR < 8 | H180: BOYS JR < 8 | O180: BOYS JR < 6
E181: Enter Added Cash (or deduction) here* > | F181: 0 | L181: Enter Added Cash (or deduction) here* > | M181: 0 | S181: Enter Added Cash (or deduction) here* > | T181: 0
A182: # Paid | C182: Field Size | D182: Pay pct | E182: Total Fees: | F182: =Cover!G49 -> 0 | H182: # Paid | J182: Field Size | K182: Pay pct | L182: Total Fees: | M182: =Cover!G43 -> 0 | O182: # Paid | Q182: Field Size | R182: Pay pct | S182: Total Fees: | T182: =Cover!G44 -> 0
A183: =IF(D183=45%,VLOOKUP(C183,dbd,2,FALSE),IF(D183=33%,VLOOKUP(C183,dbe,2,FALSE),IF(D183=25%,VLOOKUP(C183,dbf,2,FALSE),IF(D183=20%,VLOOKUP(C183,dbg,2,FALSE),VLOOKUP(C183,dbh,2,FALSE))))) -> 23 | C183: =IF(Cover!F49=0,91,Cover!F49) -> 91 | D183: 0.25 | E183: Net Purse: | F183: =F182+F181 -> 0 | H183: =IF(K183=45%,VLOOKUP(J183,dbd,2,FALSE),IF(K183=33%,VLOOKUP(J183,dbe,2,FALSE),IF(K183=25%,VLOOKUP(J183,dbf,2,FALSE),IF(K183=20%,VLOOKUP(J183,dbg,2,FALSE),VLOOKUP(J183,dbh,2,FALSE))))) -> 23 | J183: =IF(Cover!F43=0,91,Cover!F43) -> 91 | K183: 0.25 | L183: Net Purse: | M183: =M182+M181 -> 0 | O183: =IF(R183=45%,VLOOKUP(Q183,dbd,2,FALSE),IF(R183=33%,VLOOKUP(Q183,dbe,2,FALSE),IF(R183=25%,VLOOKUP(Q183,dbf,2,FALSE),IF(R183=20%,VLOOKUP(Q183,dbg,2,FALSE),VLOOKUP(Q183,dbh,2,FALSE))))) -> 23 | Q183: =IF(Cover!F44=0,91,Cover!F44) -> 91 | R183: 0.25 | S183: Net Purse: | T183: =T182+T181 -> 0
D184: =IF(C183=91," To use this table, enter player divisions on Scores page",IF(C183>22,"Field limit exceeded. Use printed Payout tables.","")) -> To use this table, enter player divisions on Scores page | K184: =IF(J183=91," To use this table, enter player divisions on Scores page",IF(J183>22,"Field limit exceeded. Use printed Payout tables.","")) -> To use this table, enter player divisions on Scores page | R184: =IF(Q183=91," To use this table, enter player divisions on Scores page",IF(Q183>22,"Field limit exceeded. Use printed Payout tables.","")) -> To use this table, enter player divisions on Scores page
B185: Prelim | C185: Proposed | D185: Round | E185: Manual | F185: Final | I185: Prelim | J185: Proposed | K185: Round | L185: Manual | M185: Final | P185: Prelim | Q185: Proposed | R185: Round | S185: Manual | T185: Final
A186: Place | B186: Factor | C186: Payout $$ | D186: to $5 | E186: Adj. | F186: Place | H186: Place | I186: Factor | J186: Payout $$ | K186: to $5 | L186: Adj. | M186: Place | O186: Place | P186: Factor | Q186: Payout $$ | R186: to $5 | S186: Adj. | T186: Place
A187: =IF(ROW()-186>$A$183,"",ROW()-186) -> 1 | B187: =IF(D$183=45%,VLOOKUP(A187,__pay5,A$183+1),VLOOKUP(A187,__pay3,A$183+1)) -> 0.07 | C187: =IF(B187="","",$F$183*B187) -> 0 | D187: =IF(C187="","",INT((C187+2.5)/5)*5) -> 0 | H187: =IF(ROW()-186>$H$183,"",ROW()-186) -> 1 | I187: =IF(K$183=45%,VLOOKUP(H187,__pay5,H$183+1),VLOOKUP(H187,__pay3,H$183+1)) -> 0.07 | J187: =IF(I187="","",$M$183*I187) -> 0 | K187: =IF(J187="","",INT((J187+2.5)/5)*5) -> 0 | O187: =IF(ROW()-186>$O$183,"",ROW()-186) -> 1 | P187: =IF(R$183=45%,VLOOKUP(O187,__pay5,O$183+1),VLOOKUP(O187,__pay3,O$183+1)) -> 0.07 | Q187: =IF(P187="","",$T$183*P187) -> 0 | R187: =IF(Q187="","",INT((Q187+2.5)/5)*5) -> 0
A188: 2 | B188: =IF(A188="","",IF(D$183=45%,VLOOKUP(A188,__pay5,A$183+1),VLOOKUP(A188,__pay3,A$183+1))) -> 0.065 | C188: 0 | D188: 0 | H188: 2 | I188: =IF(H188="","",IF(K$183=45%,VLOOKUP(H188,__pay5,H$183+1),VLOOKUP(H188,__pay3,H$183+1))) -> 0.065 | J188: 0 | K188: 0 | O188: 2 | P188: =IF(O188="","",IF(R$183=45%,VLOOKUP(O188,__pay5,O$183+1),VLOOKUP(O188,__pay3,O$183+1))) -> 0.065 | Q188: 0 | R188: 0
A189: 3 | B189: 0.06 | C189: 0 | D189: 0 | H189: 3 | I189: 0.06 | J189: 0 | K189: 0 | O189: 3 | P189: 0.06 | Q189: 0 | R189: 0
A190: 4 | B190: 0.06 | C190: 0 | D190: 0 | H190: 4 | I190: 0.06 | J190: 0 | K190: 0 | O190: 4 | P190: 0.06 | Q190: 0 | R190: 0
A191: 5 | B191: 0.055 | C191: 0 | D191: 0 | H191: 5 | I191: 0.055 | J191: 0 | K191: 0 | O191: 5 | P191: 0.055 | Q191: 0 | R191: 0
A192: 6 | B192: 0.055 | C192: 0 | D192: 0 | H192: 6 | I192: 0.055 | J192: 0 | K192: 0 | O192: 6 | P192: 0.055 | Q192: 0 | R192: 0
A193: 7 | B193: 0.05 | C193: 0 | D193: 0 | H193: 7 | I193: 0.05 | J193: 0 | K193: 0 | O193: 7 | P193: 0.05 | Q193: 0 | R193: 0
A194: 8 | B194: 0.05 | C194: 0 | D194: 0 | H194: 8 | I194: 0.05 | J194: 0 | K194: 0 | O194: 8 | P194: 0.05 | Q194: 0 | R194: 0
A195: 9 | B195: 0.05 | C195: 0 | D195: 0 | H195: 9 | I195: 0.05 | J195: 0 | K195: 0 | O195: 9 | P195: 0.05 | Q195: 0 | R195: 0
A196: 10 | B196: 0.045 | C196: 0 | D196: 0 | H196: 10 | I196: 0.045 | J196: 0 | K196: 0 | O196: 10 | P196: 0.045 | Q196: 0 | R196: 0
A197: 11 | B197: 0.045 | C197: 0 | D197: 0 | H197: 11 | I197: 0.045 | J197: 0 | K197: 0 | O197: 11 | P197: 0.045 | Q197: 0 | R197: 0
B198: =SUM(B187:B197) -> 0.605 | C198: =SUM(C187:C197) -> 0 | D198: =SUM(D187:D197) -> 0 | E198: =SUM(E187:E197) -> 0 | I198: =SUM(I187:I197) -> 0.605 | J198: =SUM(J187:J197) -> 0 | K198: =SUM(K187:K197) -> 0 | L198: =SUM(L187:L197) -> 0 | P198: =SUM(P187:P197) -> 0.605 | Q198: =SUM(Q187:Q197) -> 0 | R198: =SUM(R187:R197) -> 0 | S198: =SUM(S187:S197) -> 0

Sheet Finance
A1: PDGA International Tour Event: Financial Summary | O1: Currency > | P1: =IF(Cover!M7="","",Cover!M7) -> Euro € | Q1: (see Cover page cell M7)
A4: Part 1: | C4: Sponsors | G4: Please list all sponsors and their contributions.
A6: Cash Sponsors | G6: =IF(P1="","",P1) -> Euro € | H6: Non Cash Sponsors | L6: Description of Donation | P6: =IF(P1="","",P1) -> Euro €
A16: Total Cash Sponsors | G16: =SUM(G8:G15) -> 0 | L16: Total Non-Cash Sponsors | P16: =SUM(P8:P15) -> 0
A19: Part 2: | C19: Statement of Income and Expenses
A21: Instructions : Only EuroTour Series & International Major events are required to complete this section.
A22: Otherwise, this sheet is only provided to assist international TDs with the financial management of their event.
A24: Income | G24: =IF(P1="","",P1) -> Euro € | I24: Expenses | P24: =IF(P1="","",P1) -> Euro €
A26: Gross Pro Entry Fees | G26: =Cover!X7 -> 0 | I26: Total Pro Payout | P26: =Cover!M20 -> 0
A27: Cash Sponsorships | G27: =+Finance!G16 -> 0 | I27: Pro Player Packs - Actual Cost
A28: Late Fees | I28: Amateur Prizes - Actual Cost
A29: Gross Amateur Entry Fees | G29: =Cover!X8 -> 0 | I29: Amateur Player Packs - Actual Cost
A30: Gross Junior Entry Fees | G30: =Cover!X9 -> 0 | I30: Other Cash Prizes: Skins, etc.
A31: Non-Cash Sponsorships Value | G31: =+Finance!P16 -> 0 | I31: Other Prizes: CTPs, etc.- Actual Cost
A32: Other Cash: Raffles, Contests, etc. | I32: Sponsor Costs: Signs, Banners, Shirts
I33: Trophies
I34: PDGA Player Fees | P34: =IF(Cover!M8="Yes",Cover!M51,0) -> 0
A35: Ace Pool Collected | I35: Ace Pool | P35: =G35 -> 0
I36: PDGA Sanctioning/Insurance
I37: Park Permits | R37: # of players | T37: Fee each
I38: Regional Series Fees | P38: =R38*T38 -> 0 | Q38: = | S38: X
I39: Local Club Fees | P39: =R39*T39 -> 0 | Q39: = | S39: X
A40: Merchandise Sales | I40: Cost of Merchandise
A41: Food & Beverage Sales | I41: Food & Beverage Costs
A42: Other Income : please specify | I42: Other Expense : please specify
I43: TD Fee (if not donated)
A45: Total Income | G45: =SUM(G26:G43) -> 0 | I45: Total Expenses | P45: =SUM(P26:P43) -> 0
I46: NET: PROFIT or (LOSS) | P46: =G45-P45 -> 0

Sheet SupportData (hidden)
A1: This worksheet contains data used by other worksheets and formulas in this file.
A2: Please do not delete this worksheet or modify any data on it.
A4: Divcode | C4: Tier | D4: Code | E4: Fee | F4: Tier 1 | G4: Tier 2
A5: MPO | C5: NT | D5: 1 | E5: 5 | F5: NT
A6: MPM | C6: A / XA | D6: 2 | E6: 4 | F6: A / XA
A7: MPG | C7: B / XB | D7: 3 | E7: 3 | F7: B / XB
A8: MPS | C8: C / XC | D8: 4 | E8: 2 | F8: C / XC
A9: MPL | C9: D | D9: 5 | E9: 2 | F9: D
A10: MPE | C10: A Pro / B Am | D10: 9 | F10: Pro A | G10: Am B
A11: MPR | C11: A Pro / C Am | D11: 10 | F11: Pro A | G11: Am C
A12: FPO | C12: B Pro / C Am | D12: 11 | F12: Pro B | G12: Am C
A13: FPM | C13: A Am / B Pro | D13: 12 | F13: Am A | G13: Pro B
A14: FPG | C14: A Am / C Pro | D14: 13 | F14: Am A | G14: Pro C
A15: FPS | C15: B Am / C Pro | D15: 14 | F15: Am B | G15: Pro C
A16: FPL
A17: MA1
A18: MA2
A19: MA3 | C19: Pro A | E19: 4
A20: MA4 | C20: Pro B | E20: 3
A21: MM1 | C21: Pro C | E21: 2
A22: MG1 | C22: Am A | E22: 4
A23: MS1 | C23: Am B | E23: 3
A24: ML1 | C24: Am C | E24: 2
A25: FA1
A26: FA2 | D26: =IF(Cover!$Q7="","",VLOOKUP(Cover!$Q7,tierDB,2,FALSE)) ->  | F26: =IF(Cover!$Q7="","",VLOOKUP(Cover!$Q7,tierDB,4,FALSE)) ->  | G26: =IF(Cover!$Q7="","",VLOOKUP(Cover!$Q7,tierDB,5,FALSE)) -> 
A27: FA3
A28: FA4
A29: FM1
A30: FG1
A31: FS1
A32: FL1
A33: MJ1
A34: MJ2
A35: MJ3
A36: MJ4
A37: FJ1
A38: FJ2
A39: FJ3
A40: FJ4
